Workbook

Sheet ف.1.ث.ع
F1: كشف رصد درجات أعمال الفصل الأول للصف الثاني القسم العلمي | AA1: نموذج امتحان رقم (3)
L3: المرحلة / التعليم الثانوي | U3: الصف / الثاني | W3: القسم / العلمي | AC3: فصل | AD3: 1/2 | AF3: انثى | AP3: 1/2 | AQ3: ذكر
AP4: 2/2 | AQ4: انثى
B5: رقم مسلسل | C5: اسم الطالب بالكامل | D5: الرقم السري | E5: المــــــــــــــــــــــــــــــــــــواد الدراسيــــــــــــــــــــــــــــــــــــــــة | AP5: 3/2
E6: اللغة العربية | G6: 5 | H6: اللغة الإنجليزية | J6: 5 | K6: الرياضيات | M6: 5 | N6: الفيزياء | P6: 5 | Q6: الكيمياء | S6: 4 | T6: الأحياء | V6: 4 | W6: التربية الإسلامية | Y6: 2 | Z6: الإحصاء | AB6: 2 | AC6: تقنية المعلومات | AE6: 2 | AF6: الجنس | AG6: الفصل | AH6: المجموع العام | AI6: النسبة | AJ6: التقدير | AK6: ارقام التريب | AL6: الترتيب على مستوى المدرسة | AM6: التكرار | AN6: الترتيب على مستوى الفصل | AP6: 4/2
E7: اعمال السنـــة | F7: درجة الأمتحان | G7: المجمـــــــــوع | H7: اعمال السنـــة | I7: درجة الأمتحان | J7: المجمـــــــــوع | K7: اعمال السنـــة | L7: درجة الأمتحان | M7: المجمـــــــــوع | N7: اعمال السنـــة | O7: درجة الأمتحان | P7: المجمـــــــــوع | Q7: اعمال السنـــة | R7: درجة الأمتحان | S7: المجمـــــــــوع | T7: اعمال السنـــة | U7: درجة الأمتحان | V7: المجمـــــــــوع | W7: اعمال السنـــة | X7: درجة الأمتحان | Y7: المجمـــــــــوع | Z7: اعمال السنـــة | AA7: درجة الأمتحان | AB7: المجمـــــــــوع | AC7: اعمال السنـــة | AD7: درجة الأمتحان | AE7: المجمـــــــــوع
E8: 50 | F8: 50 | G8: 100 | H8: 50 | I8: 50 | J8: 100 | K8: 50 | L8: 50 | M8: 100 | N8: 50 | O8: 50 | P8: 100 | Q8: 40 | R8: 40 | S8: 80 | T8: 40 | U8: 40 | V8: 80 | W8: 20 | X8: 20 | Y8: 40 | Z8: 20 | AA8: 20 | AB8: 40 | AC8: 20 | AD8: 20 | AE8: 40
B9: عمود1 | C9: عمود2 | D9: عمود3 | E9: عمود4 | F9: عمود5 | G9: عمود6 | H9: عمود7 | I9: عمود8 | J9: عمود9 | K9: عمود10 | L9: عمود11 | M9: عمود12 | N9: عمود13 | O9: عمود14 | P9: عمود15 | Q9: عمود16 | R9: عمود17 | S9: عمود18 | T9: عمود19 | U9: عمود20 | V9: عمود21 | W9: عمود22 | X9: عمود23 | Y9: عمود24 | Z9: عمود25 | AA9: عمود26 | AB9: عمود27 | AC9: عمود28 | AD9: عمود29 | AE9: عمود30 | AF9: عمود31 | AG9: عمود32 | AH9: عمود33 | AI9: عمود34 | AJ9: عمود35 | AK9: عمود36 | AL9: عمود37 | AM9: عمود38 | AN9: عمود39
B10: =IF(C10="","",SUBTOTAL(3,$C$10:C10)) -> 0 | C10: الطالب 1 | D10: 501 | E10: 47 | F10: 42 | G10: 89 | H10: 42 | I10: 38 | J10: 80 | K10: 42 | L10: 45 | M10: 87 | N10: 49 | O10: 49 | P10: 98 | Q10: 39 | R10: 38 | S10: 77 | T10: 39 | U10: 36 | V10: 75 | W10: 20 | X10: 20 | Y10: 40 | Z10: 19 | AA10: 16 | AB10: 35 | AC10: 16 | AD10: 16 | AE10: 32 | AF10: انثى | AG10: 3/2 | AH10: =الجدول5[[#This Row],[عمود6]]+الجدول5[[#This Row],[عمود9]]+الجدول5[[#This Row],[عمود12]]+الجدول5[[#This Row],[عمود15]]+الجدول5[[#This Row],[عمود18]]+الجدول5[[#This Row],[عمود21]]+الجدول5[[#This Row],[عمود24]]+الجدول5[[#This Row],[عمود27]]+الجدول5[[#This Row],[عمود30]] -> 613 | AI10: =الجدول5[[#This Row],[عمود33]]/680*100 -> 90.14705882 | AJ10: =IF(الجدول5[[#This Row],[عمود33]]="","",evaltion(الجدول5[[#This Row],[عمود34]])) -> ممتاز | AK10: =RANK(AH10,$AH$10:$AH$300) -> 28 | AL10: =IF(AK10>10,"",atrteb(AK10)) ->  | AM10: =IF(AK10>10,"",IF(COUNTIF(AH$10:$AH10,AH10)=1,"","مكرر")) -> 
B11: =IF(C11="","",SUBTOTAL(3,$C$10:C11)) -> 0 | C11: الطالب 2 | D11: 502 | E11: 38 | F11: 37 | G11: 75 | H11: 33 | I11: 23 | J11: 56 | K11: 42 | L11: 28 | M11: 70 | N11: 40 | O11: 25 | P11: 65 | Q11: 27 | R11: 28 | S11: 55 | T11: 34 | U11: 23 | V11: 57 | W11: 16 | X11: 13 | Y11: 29 | Z11: 15 | AA11: 5 | AB11: 20 | AC11: 13 | AD11: 15 | AE11: 28 | AF11: انثى | AG11: 4/2 | AH11: =الجدول5[[#This Row],[عمود6]]+الجدول5[[#This Row],[عمود9]]+الجدول5[[#This Row],[عمود12]]+الجدول5[[#This Row],[عمود15]]+الجدول5[[#This Row],[عمود18]]+الجدول5[[#This Row],[عمود21]]+الجدول5[[#This Row],[عمود24]]+الجدول5[[#This Row],[عمود27]]+الجدول5[[#This Row],[عمود30]] -> 455 | AI11: =الجدول5[[#This Row],[عمود33]]/680*100 -> 66.91176471 | AJ11: =IF(الجدول5[[#This Row],[عمود33]]="","",evaltion(الجدول5[[#This Row],[عمود34]])) -> جيد فقط | AK11: =RANK(AH11,$AH$10:$AH$300) -> 99 | AL11: =IF(AK11>10,"",atrteb(AK11)) ->  | AM11: =IF(AK11>10,"",IF(COUNTIF(AH$10:$AH11,AH11)=1,"","مكرر")) -> 
B12: =IF(C12="","",SUBTOTAL(3,$C$10:C12)) -> 0 | C12: الطالب 3 | D12: 502 | E12: 46 | F12: 47 | G12: 93 | H12: 47 | I12: 48 | J12: 95 | K12: 50 | L12: 50 | M12: 100 | N12: 49 | O12: 41 | P12: 90 | Q12: 37 | R12: 37 | S12: 74 | T12: 39 | U12: 33 | V12: 72 | W12: 16 | X12: 20 | Y12: 36 | Z12: 19 | AA12: 15 | AB12: 34 | AC12: 15 | AD12: 16 | AE12: 31 | AF12: انثى | AG12: 2/2 | AH12: =الجدول5[[#This Row],[عمود6]]+الجدول5[[#This Row],[عمود9]]+الجدول5[[#This Row],[عمود12]]+الجدول5[[#This Row],[عمود15]]+الجدول5[[#This Row],[عمود18]]+الجدول5[[#This Row],[عمود21]]+الجدول5[[#This Row],[عمود24]]+الجدول5[[#This Row],[عمود27]]+الجدول5[[#This Row],[عمود30]] -> 625 | AI12: =الجدول5[[#This Row],[عمود33]]/680*100 -> 91.91176471 | AJ12: =IF(الجدول5[[#This Row],[عمود33]]="","",evaltion(الجدول5[[#This Row],[عمود34]])) -> ممتاز | AK12: 24 | AL12: =IF(AK12>10,"",atrteb(AK12)) ->  | AM12: =IF(AK12>10,"",IF(COUNTIF(AH$10:$AH12,AH12)=1,"","مكرر")) -> 
B13: =IF(C13="","",SUBTOTAL(3,$C$10:C13)) -> 0 | C13: الطالب 4 | D13: 503 | E13: 44 | F13: 39 | G13: 83 | H13: 24 | I13: 27 | J13: 51 | K13: 40 | L13: 26 | M13: 66 | N13: 39 | O13: 38 | P13: 77 | Q13: 35 | R13: 28 | S13: 63 | T13: 31 | U13: 14 | V13: 45 | W13: 16 | X13: 17 | Y13: 33 | Z13: 15 | AA13: 9 | AB13: 24 | AC13: 11 | AD13: 9 | AE13: 20 | AF13: ذكر | AG13: 2/2 | AH13: =الجدول5[[#This Row],[عمود6]]+الجدول5[[#This Row],[عمود9]]+الجدول5[[#This Row],[عمود12]]+الجدول5[[#This Row],[عمود15]]+الجدول5[[#This Row],[عمود18]]+الجدول5[[#This Row],[عمود21]]+الجدول5[[#This Row],[عمود24]]+الجدول5[[#This Row],[عمود27]]+الجدول5[[#This Row],[عمود30]] -> 462 | AI13: =الجدول5[[#This Row],[عمود33]]/680*100 -> 67.94117647 | AJ13: =IF(الجدول5[[#This Row],[عمود33]]="","",evaltion(الجدول5[[#This Row],[عمود34]])) -> جيد فقط | AK13: 94 | AL13: =IF(AK13>10,"",atrteb(AK13)) ->  | AM13: =IF(AK13>10,"",IF(COUNTIF(AH$10:$AH13,AH13)=1,"","مكرر")) -> 
B14: =IF(C14="","",SUBTOTAL(3,$C$10:C14)) -> 0 | C14: الطالب 5 | D14: 503 | E14: 49 | F14: 46 | G14: 95 | H14: 29 | I14: 40 | J14: 69 | K14: 36 | L14: 39 | M14: 75 | N14: 39 | O14: 42 | P14: 81 | Q14: 31 | R14: 36 | S14: 67 | T14: 34 | U14: 37 | V14: 71 | W14: 14 | X14: 20 | Y14: 34 | Z14: 15 | AA14: 6 | AB14: 21 | AC14: 11 | AD14: 9 | AE14: 20 | AF14: انثى | AG14: 2/2 | AH14: =الجدول5[[#This Row],[عمود6]]+الجدول5[[#This Row],[عمود9]]+الجدول5[[#This Row],[عمود12]]+الجدول5[[#This Row],[عمود15]]+الجدول5[[#This Row],[عمود18]]+الجدول5[[#This Row],[عمود21]]+الجدول5[[#This Row],[عمود24]]+الجدول5[[#This Row],[عمود27]]+الجدول5[[#This Row],[عمود30]] -> 533 | AI14: =الجدول5[[#This Row],[عمود33]]/680*100 -> 78.38235294 | AJ14: =IF(الجدول5[[#This Row],[عمود33]]="","",evaltion(الجدول5[[#This Row],[عمود34]])) -> جيد جدا | AK14: 68 | AL14: =IF(AK14>10,"",atrteb(AK14)) ->  | AM14: =IF(AK14>10,"",IF(COUNTIF(AH$10:$AH14,AH14)=1,"","مكرر")) -> 
B15: =IF(C15="","",SUBTOTAL(3,$C$10:C15)) -> 0 | C15: الطالب 6 | D15: 504 | E15: 42 | F15: 42 | G15: 84 | H15: 29 | I15: 17 | J15: 46 | K15: 33 | L15: 26 | M15: 59 | N15: 42 | O15: 29 | P15: 71 | Q15: 31 | R15: 31 | S15: 62 | T15: 33 | U15: 26 | V15: 59 | W15: 16 | X15: 19 | Y15: 35 | Z15: 16 | AA15: 10 | AB15: 26 | AC15: 11 | AD15: 7 | AE15: 18 | AF15: انثى | AG15: 2/2 | AH15: =الجدول5[[#This Row],[عمود6]]+الجدول5[[#This Row],[عمود9]]+الجدول5[[#This Row],[عمود12]]+الجدول5[[#This Row],[عمود15]]+الجدول5[[#This Row],[عمود18]]+الجدول5[[#This Row],[عمود21]]+الجدول5[[#This Row],[عمود24]]+الجدول5[[#This Row],[عمود27]]+الجدول5[[#This Row],[عمود30]] -> 460 | AI15: =الجدول5[[#This Row],[عمود33]]/680*100 -> 67.64705882 | AJ15: =IF(الجدول5[[#This Row],[عمود33]]="","",evaltion(الجدول5[[#This Row],[عمود34]])) -> جيد فقط | AK15: 95 | AL15: =IF(AK15>10,"",atrteb(AK15)) ->  | AM15: =IF(AK15>10,"",IF(COUNTIF(AH$10:$AH15,AH15)=1,"","مكرر")) -> 
B16: =IF(C16="","",SUBTOTAL(3,$C$10:C16)) -> 0 | C16: الطالب 7 | D16: 504 | E16: 41 | F16: 39 | G16: 80 | H16: 37 | I16: 38 | J16: 75 | K16: 37 | L16: 26 | M16: 63 | N16: 45 | O16: 35 | P16: 80 | Q16: 26 | R16: 33 | S16: 59 | T16: 31 | U16: 27 | V16: 58 | W16: 14 | X16: 19 | Y16: 33 | Z16: 14 | AA16: 7 | AB16: 21 | AC16: 13 | AD16: 10 | AE16: 23 | AF16: انثى | AG16: 3/2 | AH16: =الجدول5[[#This Row],[عمود6]]+الجدول5[[#This Row],[عمود9]]+الجدول5[[#This Row],[عمود12]]+الجدول5[[#This Row],[عمود15]]+الجدول5[[#This Row],[عمود18]]+الجدول5[[#This Row],[عمود21]]+الجدول5[[#This Row],[عمود24]]+الجدول5[[#This Row],[عمود27]]+الجدول5[[#This Row],[عمود30]] -> 492 | AI16: =الجدول5[[#This Row],[عمود33]]/680*100 -> 72.35294118 | AJ16: =IF(الجدول5[[#This Row],[عمود33]]="","",evaltion(الجدول5[[#This Row],[عمود34]])) -> جيد فقط | AK16: 86 | AL16: =IF(AK16>10,"",atrteb(AK16)) ->  | AM16: =IF(AK16>10,"",IF(COUNTIF(AH$10:$AH16,AH16)=1,"","مكرر")) -> 
B17: =IF(C17="","",SUBTOTAL(3,$C$10:C17)) -> 0 | C17: الطالب 8 | D17: 505 | E17: 43 | F17: 40 | G17: 83 | H17: 22 | I17: 23 | J17: 45 | K17: 29 | L17: 8 | M17: 37 | N17: 40 | O17: 27 | P17: 67 | Q17: 25 | R17: 23 | S17: 48 | T17: 28 | U17: 23 | V17: 51 | W17: 17 | X17: 13 | Y17: 30 | Z17: 16 | AA17: 4 | AB17: 20 | AC17: 13 | AD17: 8 | AE17: 21 | AF17: ذكر | AG17: 1/2 | AH17: =الجدول5[[#This Row],[عمود6]]+الجدول5[[#This Row],[عمود9]]+الجدول5[[#This Row],[عمود12]]+الجدول5[[#This Row],[عمود15]]+الجدول5[[#This Row],[عمود18]]+الجدول5[[#This Row],[عمود21]]+الجدول5[[#This Row],[عمود24]]+الجدول5[[#This Row],[عمود27]]+الجدول5[[#This Row],[عمود30]] -> 402 | AI17: =الجدول5[[#This Row],[عمود33]]/680*100 -> 59.11764706 | AJ17: =IF(الجدول5[[#This Row],[عمود33]]="","",evaltion(الجدول5[[#This Row],[عمود34]])) -> مقبول | AK17: 116 | AL17: =IF(AK17>10,"",atrteb(AK17)) ->  | AM17: =IF(AK17>10,"",IF(COUNTIF(AH$10:$AH17,AH17)=1,"","مكرر")) -> 
B18: =IF(C18="","",SUBTOTAL(3,$C$10:C18)) -> 0 | C18: الطالب 9 | D18: 505 | E18: 46 | F18: 44 | G18: 90 | H18: 41 | I18: 36 | J18: 77 | K18: 42 | L18: 43 | M18: 85 | N18: 44 | O18: 44 | P18: 88 | Q18: 37 | R18: 37 | S18: 74 | T18: 36 | U18: 35 | V18: 71 | W18: 19 | X18: 19 | Y18: 38 | Z18: 17 | AA18: 18 | AB18: 35 | AC18: 17 | AD18: 14 | AE18: 31 | AF18: انثى | AG18: 3/2 | AH18: =الجدول5[[#This Row],[عمود6]]+الجدول5[[#This Row],[عمود9]]+الجدول5[[#This Row],[عمود12]]+الجدول5[[#This Row],[عمود15]]+الجدول5[[#This Row],[عمود18]]+الجدول5[[#This Row],[عمود21]]+الجدول5[[#This Row],[عمود24]]+الجدول5[[#This Row],[عمود27]]+الجدول5[[#This Row],[عمود30]] -> 589 | AI18: =الجدول5[[#This Row],[عمود33]]/680*100 -> 86.61764706 | AJ18: =IF(الجدول5[[#This Row],[عمود33]]="","",evaltion(الجدول5[[#This Row],[عمود34]])) -> ممتاز | AK18: 39 | AL18: =IF(AK18>10,"",atrteb(AK18)) ->  | AM18: =IF(AK18>10,"",IF(COUNTIF(AH$10:$AH18,AH18)=1,"","مكرر")) -> 
B19: =IF(C19="","",SUBTOTAL(3,$C$10:C19)) -> 1 | C19: الطالب 10 | D19: 506 | E19: 48 | F19: 47 | G19: 95 | H19: 42 | I19: 20 | J19: 62 | K19: 26 | L19: 34 | M19: 60 | N19: 46 | O19: 33 | P19: 79 | Q19: 30 | R19: 28 | S19: 58 | T19: 34 | U19: 21 | V19: 55 | W19: 20 | X19: 20 | Y19: 40 | Z19: 18 | AA19: 5 | AB19: 23 | AC19: 15 | AD19: 8 | AE19: 23 | AF19: انثى | AG19: 1/2 | AH19: =الجدول5[[#This Row],[عمود6]]+الجدول5[[#This Row],[عمود9]]+الجدول5[[#This Row],[عمود12]]+الجدول5[[#This Row],[عمود15]]+الجدول5[[#This Row],[عمود18]]+الجدول5[[#This Row],[عمود21]]+الجدول5[[#This Row],[عمود24]]+الجدول5[[#This Row],[عمود27]]+الجدول5[[#This Row],[عمود30]] -> 495 | AI19: =الجدول5[[#This Row],[عمود33]]/680*100 -> 72.79411765 | AJ19: =IF(الجدول5[[#This Row],[عمود33]]="","",evaltion(الجدول5[[#This Row],[عمود34]])) -> جيد فقط | AK19: 84 | AL19: =IF(AK19>10,"",atrteb(AK19)) ->  | AM19: =IF(AK19>10,"",IF(COUNTIF(AH$10:$AH19,AH19)=1,"","مكرر")) -> 
B20: =IF(C20="","",SUBTOTAL(3,$C$10:C20)) -> 2 | C20: الطالب 11 | D20: 506 | E20: 41 | F20: 38 | G20: 79 | H20: 29 | I20: 23 | J20: 52 | K20: 30 | L20: 13 | M20: 43 | N20: 38 | O20: 27 | P20: 65 | Q20: 27 | R20: 24 | S20: 51 | T20: 29 | U20: 23 | V20: 52 | W20: 15 | X20: 16 | Y20: 31 | Z20: 17 | AA20: 7 | AB20: 24 | AC20: 12 | AD20: 8 | AE20: 20 | AF20: انثى | AG20: 1/2 | AH20: =الجدول5[[#This Row],[عمود6]]+الجدول5[[#This Row],[عمود9]]+الجدول5[[#This Row],[عمود12]]+الجدول5[[#This Row],[عمود15]]+الجدول5[[#This Row],[عمود18]]+الجدول5[[#This Row],[عمود21]]+الجدول5[[#This Row],[عمود24]]+الجدول5[[#This Row],[عمود27]]+الجدول5[[#This Row],[عمود30]] -> 417 | AI20: =الجدول5[[#This Row],[عمود33]]/680*100 -> 61.32352941 | AJ20: =IF(الجدول5[[#This Row],[عمود33]]="","",evaltion(الجدول5[[#This Row],[عمود34]])) -> مقبول | AK20: 110 | AL20: =IF(AK20>10,"",atrteb(AK20)) ->  | AM20: =IF(AK20>10,"",IF(COUNTIF(AH$10:$AH20,AH20)=1,"","مكرر")) -> 
B21: =IF(C21="","",SUBTOTAL(3,$C$10:C21)) -> 2 | C21: الطالب 12 | D21: 507 | E21: 49 | F21: 48 | G21: 97 | H21: 48 | I21: 46 | J21: 94 | K21: 44 | L21: 50 | M21: 94 | N21: 47 | O21: 45 | P21: 92 | Q21: 38 | R21: 39 | S21: 77 | T21: 38 | U21: 36 | V21: 74 | W21: 20 | X21: 20 | Y21: 40 | Z21: 19 | AA21: 16 | AB21: 35 | AC21: 15 | AD21: 17 | AE21: 32 | AF21: ذكر | AG21: 2/2 | AH21: =الجدول5[[#This Row],[عمود6]]+الجدول5[[#This Row],[عمود9]]+الجدول5[[#This Row],[عمود12]]+الجدول5[[#This Row],[عمود15]]+الجدول5[[#This Row],[عمود18]]+الجدول5[[#This Row],[عمود21]]+الجدول5[[#This Row],[عمود24]]+الجدول5[[#This Row],[عمود27]]+الجدول5[[#This Row],[عمود30]] -> 635 | AI21: =الجدول5[[#This Row],[عمود33]]/680*100 -> 93.38235294 | AJ21: =IF(الجدول5[[#This Row],[عمود33]]="","",evaltion(الجدول5[[#This Row],[عمود34]])) -> ممتاز | AK21: 20 | AL21: =IF(AK21>10,"",atrteb(AK21)) ->  | AM21: =IF(AK21>10,"",IF(COUNTIF(AH$10:$AH21,AH21)=1,"","مكرر")) -> 
B22: =IF(C22="","",SUBTOTAL(3,$C$10:C22)) -> 2 | C22: الطالب 13 | D22: 507 | E22: 48 | F22: 49 | G22: 97 | H22: 42 | I22: 43 | J22: 85 | K22: 40 | L22: 37 | M22: 77 | N22: 47 | O22: 42 | P22: 89 | Q22: 37 | R22: 34 | S22: 71 | T22: 36 | U22: 35 | V22: 71 | W22: 16 | X22: 20 | Y22: 36 | Z22: 17 | AA22: 14 | AB22: 31 | AC22: 13 | AD22: 16 | AE22: 29 | AF22: انثى | AG22: 2/2 | AH22: =الجدول5[[#This Row],[عمود6]]+الجدول5[[#This Row],[عمود9]]+الجدول5[[#This Row],[عمود12]]+الجدول5[[#This Row],[عمود15]]+الجدول5[[#This Row],[عمود18]]+الجدول5[[#This Row],[عمود21]]+الجدول5[[#This Row],[عمود24]]+الجدول5[[#This Row],[عمود27]]+الجدول5[[#This Row],[عمود30]] -> 586 | AI22: =الجدول5[[#This Row],[عمود33]]/680*100 -> 86.17647059 | AJ22: =IF(الجدول5[[#This Row],[عمود33]]="","",evaltion(الجدول5[[#This Row],[عمود34]])) -> ممتاز | AK22: 42 | AL22: =IF(AK22>10,"",atrteb(AK22)) ->  | AM22: =IF(AK22>10,"",IF(COUNTIF(AH$10:$AH22,AH22)=1,"","مكرر")) -> 
B23: =IF(C23="","",SUBTOTAL(3,$C$10:C23)) -> 2 | C23: الطالب 14 | D23: 508 | E23: 34 | F23: 32 | G23: 66 | H23: 33 | I23: 21 | J23: 54 | K23: 34 | L23: 22 | M23: 56 | N23: 43 | O23: 33 | P23: 76 | Q23: 28 | R23: 28 | S23: 56 | T23: 34 | U23: 29 | V23: 63 | W23: 17 | X23: 16 | Y23: 33 | Z23: 12 | AA23: 2 | AB23: 14 | AC23: 11 | AD23: 10 | AE23: 21 | AF23: انثى | AG23: 4/2 | AH23: =الجدول5[[#This Row],[عمود6]]+الجدول5[[#This Row],[عمود9]]+الجدول5[[#This Row],[عمود12]]+الجدول5[[#This Row],[عمود15]]+الجدول5[[#This Row],[عمود18]]+الجدول5[[#This Row],[عمود21]]+الجدول5[[#This Row],[عمود24]]+الجدول5[[#This Row],[عمود27]]+الجدول5[[#This Row],[عمود30]] -> 439 | AI23: =الجدول5[[#This Row],[عمود33]]/680*100 -> 64.55882353 | AJ23: =IF(الجدول5[[#This Row],[عمود33]]="","",evaltion(الجدول5[[#This Row],[عمود34]])) -> مقبول | AK23: 102 | AL23: =IF(AK23>10,"",atrteb(AK23)) ->  | AM23: =IF(AK23>10,"",IF(COUNTIF(AH$10:$AH23,AH23)=1,"","مكرر")) -> 
B24: =IF(C24="","",SUBTOTAL(3,$C$10:C24)) -> 2 | C24: الطالب 15 | D24: 508 | E24: 36 | F24: 22 | G24: 58 | H24: 27 | I24: 24 | J24: 51 | K24: 37 | L24: 23 | M24: 60 | N24: 42 | O24: 31 | P24: 73 | Q24: 24 | R24: 27 | S24: 51 | T24: 36 | U24: 24 | V24: 60 | W24: 17 | X24: 16 | Y24: 33 | Z24: 15 | AA24: 6 | AB24: 21 | AC24: 11 | AD24: 10 | AE24: 21 | AF24: انثى | AG24: 4/2 | AH24: =الجدول5[[#This Row],[عمود6]]+الجدول5[[#This Row],[عمود9]]+الجدول5[[#This Row],[عمود12]]+الجدول5[[#This Row],[عمود15]]+الجدول5[[#This Row],[عمود18]]+الجدول5[[#This Row],[عمود21]]+الجدول5[[#This Row],[عمود24]]+الجدول5[[#This Row],[عمود27]]+الجدول5[[#This Row],[عمود30]] -> 428 | AI24: =الجدول5[[#This Row],[عمود33]]/680*100 -> 62.94117647 | AJ24: =IF(الجدول5[[#This Row],[عمود33]]="","",evaltion(الجدول5[[#This Row],[عمود34]])) -> مقبول | AK24: 107 | AL24: =IF(AK24>10,"",atrteb(AK24)) ->  | AM24: =IF(AK24>10,"",IF(COUNTIF(AH$10:$AH24,AH24)=1,"","مكرر")) -> 
B25: =IF(C25="","",SUBTOTAL(3,$C$10:C25)) -> 2 | C25: الطالب 16 | D25: 509 | E25: 45 | F25: 45 | G25: 90 | H25: 46 | I25: 46 | J25: 92 | K25: 49 | L25: 42 | M25: 91 | N25: 48 | O25: 48 | P25: 96 | Q25: 34 | R25: 38 | S25: 72 | T25: 36 | U25: 33 | V25: 69 | W25: 19 | X25: 20 | Y25: 39 | Z25: 18 | AA25: 14 | AB25: 32 | AC25: 15 | AD25: 13 | AE25: 28 | AF25: ذكر | AG25: 2/2 | AH25: =الجدول5[[#This Row],[عمود6]]+الجدول5[[#This Row],[عمود9]]+الجدول5[[#This Row],[عمود12]]+الجدول5[[#This Row],[عمود15]]+الجدول5[[#This Row],[عمود18]]+الجدول5[[#This Row],[عمود21]]+الجدول5[[#This Row],[عمود24]]+الجدول5[[#This Row],[عمود27]]+الجدول5[[#This Row],[عمود30]] -> 609 | AI25: =الجدول5[[#This Row],[عمود33]]/680*100 -> 89.55882353 | AJ25: =IF(الجدول5[[#This Row],[عمود33]]="","",evaltion(الجدول5[[#This Row],[عمود34]])) -> ممتاز | AK25: 30 | AL25: =IF(AK25>10,"",atrteb(AK25)) ->  | AM25: =IF(AK25>10,"",IF(COUNTIF(AH$10:$AH25,AH25)=1,"","مكرر")) -> 
B26: =IF(C26="","",SUBTOTAL(3,$C$10:C26)) -> 2 | C26: الطالب 17 | D26: 509 | E26: 47 | F26: 46 | G26: 93 | H26: 38 | I26: 39 | J26: 77 | K26: 46 | L26: 38 | M26: 84 | N26: 46 | O26: 45 | P26: 91 | Q26: 32 | R26: 34 | S26: 66 | T26: 38 | U26: 35 | V26: 73 | W26: 18 | X26: 20 | Y26: 38 | Z26: 15 | AA26: 12 | AB26: 27 | AC26: 11 | AD26: 15 | AE26: 26 | AF26: انثى | AG26: 4/2 | AH26: =الجدول5[[#This Row],[عمود6]]+الجدول5[[#This Row],[عمود9]]+الجدول5[[#This Row],[عمود12]]+الجدول5[[#This Row],[عمود15]]+الجدول5[[#This Row],[عمود18]]+الجدول5[[#This Row],[عمود21]]+الجدول5[[#This Row],[عمود24]]+الجدول5[[#This Row],[عمود27]]+الجدول5[[#This Row],[عمود30]] -> 575 | AI26: =الجدول5[[#This Row],[عمود33]]/680*100 -> 84.55882353 | AJ26: =IF(الجدول5[[#This Row],[عمود33]]="","",evaltion(الجدول5[[#This Row],[عمود34]])) -> جيد جدا | AK26: 47 | AL26: =IF(AK26>10,"",atrteb(AK26)) ->  | AM26: =IF(AK26>10,"",IF(COUNTIF(AH$10:$AH26,AH26)=1,"","مكرر")) -> 
B27: =IF(C27="","",SUBTOTAL(3,$C$10:C27)) -> 3 | C27: الطالب 18 | D27: 510 | E27: 46 | F27: 43 | G27: 89 | H27: 35 | I27: 31 | J27: 66 | K27: 39 | L27: 31 | M27: 70 | N27: 36 | O27: 35 | P27: 71 | Q27: 33 | R27: 32 | S27: 65 | T27: 30 | U27: 29 | V27: 59 | W27: 18 | X27: 19 | Y27: 37 | Z27: 18 | AA27: 10 | AB27: 28 | AC27: 15 | AD27: 13 | AE27: 28 | AF27: انثى | AG27: 1/2 | AH27: =الجدول5[[#This Row],[عمود6]]+الجدول5[[#This Row],[عمود9]]+الجدول5[[#This Row],[عمود12]]+الجدول5[[#This Row],[عمود15]]+الجدول5[[#This Row],[عمود18]]+الجدول5[[#This Row],[عمود21]]+الجدول5[[#This Row],[عمود24]]+الجدول5[[#This Row],[عمود27]]+الجدول5[[#This Row],[عمود30]] -> 513 | AI27: =الجدول5[[#This Row],[عمود33]]/680*100 -> 75.44117647 | AJ27: =IF(الجدول5[[#This Row],[عمود33]]="","",evaltion(الجدول5[[#This Row],[عمود34]])) -> جيد جدا | AK27: 78 | AL27: =IF(AK27>10,"",atrteb(AK27)) ->  | AM27: =IF(AK27>10,"",IF(COUNTIF(AH$10:$AH27,AH27)=1,"","مكرر")) -> 
B28: =IF(C28="","",SUBTOTAL(3,$C$10:C28)) -> 4 | C28: الطالب 19 | D28: 510 | E28: 47 | F28: 47 | G28: 94 | H28: 33 | I28: 30 | J28: 63 | K28: 32 | L28: 31 | M28: 63 | N28: 42 | O28: 43 | P28: 85 | Q28: 34 | R28: 27 | S28: 61 | T28: 36 | U28: 28 | V28: 64 | W28: 20 | X28: 19 | Y28: 39 | Z28: 19 | AA28: 10 | AB28: 29 | AC28: 13 | AD28: 15 | AE28: 28 | AF28: انثى | AG28: 1/2 | AH28: =الجدول5[[#This Row],[عمود6]]+الجدول5[[#This Row],[عمود9]]+الجدول5[[#This Row],[عمود12]]+الجدول5[[#This Row],[عمود15]]+الجدول5[[#This Row],[عمود18]]+الجدول5[[#This Row],[عمود21]]+الجدول5[[#This Row],[عمود24]]+الجدول5[[#This Row],[عمود27]]+الجدول5[[#This Row],[عمود30]] -> 526 | AI28: =الجدول5[[#This Row],[عمود33]]/680*100 -> 77.35294118 | AJ28: =IF(الجدول5[[#This Row],[عمود33]]="","",evaltion(الجدول5[[#This Row],[عمود34]])) -> جيد جدا | AK28: 74 | AL28: =IF(AK28>10,"",atrteb(AK28)) ->  | AM28: =IF(AK28>10,"",IF(COUNTIF(AH$10:$AH28,AH28)=1,"","مكرر")) -> 
B29: =IF(C29="","",SUBTOTAL(3,$C$10:C29)) -> 4 | C29: الطالب 20 | D29: 511 | E29: 46 | F29: 40 | G29: 86 | H29: 39 | I29: 24 | J29: 63 | K29: 45 | L29: 38 | M29: 83 | N29: 46 | O29: 41 | P29: 87 | Q29: 32 | R29: 30 | S29: 62 | T29: 36 | U29: 24 | V29: 60 | W29: 19 | X29: 20 | Y29: 39 | Z29: 16 | AA29: 11 | AB29: 27 | AC29: 15 | AD29: 9 | AE29: 24 | AF29: ذكر | AG29: 3/2 | AH29: =الجدول5[[#This Row],[عمود6]]+الجدول5[[#This Row],[عمود9]]+الجدول5[[#This Row],[عمود12]]+الجدول5[[#This Row],[عمود15]]+الجدول5[[#This Row],[عمود18]]+الجدول5[[#This Row],[عمود21]]+الجدول5[[#This Row],[عمود24]]+الجدول5[[#This Row],[عمود27]]+الجدول5[[#This Row],[عمود30]] -> 531 | AI29: =الجدول5[[#This Row],[عمود33]]/680*100 -> 78.08823529 | AJ29: =IF(الجدول5[[#This Row],[عمود33]]="","",evaltion(الجدول5[[#This Row],[عمود34]])) -> جيد جدا | AK29: 70 | AL29: =IF(AK29>10,"",atrteb(AK29)) ->  | AM29: =IF(AK29>10,"",IF(COUNTIF(AH$10:$AH29,AH29)=1,"","مكرر")) -> 
B30: =IF(C30="","",SUBTOTAL(3,$C$10:C30)) -> 4 | C30: الطالب 21 | D30: 511 | E30: 46 | F30: 46 | G30: 92 | H30: 38 | I30: 30 | J30: 68 | K30: 38 | L30: 34 | M30: 72 | N30: 48 | O30: 42 | P30: 90 | Q30: 32 | R30: 34 | S30: 66 | T30: 38 | U30: 34 | V30: 72 | W30: 20 | X30: 18 | Y30: 38 | Z30: 17 | AA30: 10 | AB30: 27 | AC30: 13 | AD30: 9 | AE30: 22 | AF30: انثى | AG30: 4/2 | AH30: =الجدول5[[#This Row],[عمود6]]+الجدول5[[#This Row],[عمود9]]+الجدول5[[#This Row],[عمود12]]+الجدول5[[#This Row],[عمود15]]+الجدول5[[#This Row],[عمود18]]+الجدول5[[#This Row],[عمود21]]+الجدول5[[#This Row],[عمود24]]+الجدول5[[#This Row],[عمود27]]+الجدول5[[#This Row],[عمود30]] -> 547 | AI30: =الجدول5[[#This Row],[عمود33]]/680*100 -> 80.44117647 | AJ30: =IF(الجدول5[[#This Row],[عمود33]]="","",evaltion(الجدول5[[#This Row],[عمود34]])) -> جيد جدا | AK30: 63 | AL30: =IF(AK30>10,"",atrteb(AK30)) ->  | AM30: =IF(AK30>10,"",IF(COUNTIF(AH$10:$AH30,AH30)=1,"","مكرر")) -> 
B31: =IF(C31="","",SUBTOTAL(3,$C$10:C31)) -> 4 | C31: الطالب 22 | D31: 512 | E31: 46 | F31: 45 | G31: 91 | H31: 40 | I31: 32 | J31: 72 | K31: 43 | L31: 33 | M31: 76 | N31: 49 | O31: 47 | P31: 96 | Q31: 36 | R31: 39 | S31: 75 | T31: 38 | U31: 36 | V31: 74 | W31: 20 | X31: 20 | Y31: 40 | Z31: 20 | AA31: 13 | AB31: 33 | AC31: 15 | AD31: 15 | AE31: 30 | AF31: انثى | AG31: 4/2 | AH31: =الجدول5[[#This Row],[عمود6]]+الجدول5[[#This Row],[عمود9]]+الجدول5[[#This Row],[عمود12]]+الجدول5[[#This Row],[عمود15]]+الجدول5[[#This Row],[عمود18]]+الجدول5[[#This Row],[عمود21]]+الجدول5[[#This Row],[عمود24]]+الجدول5[[#This Row],[عمود27]]+الجدول5[[#This Row],[عمود30]] -> 587 | AI31: =الجدول5[[#This Row],[عمود33]]/680*100 -> 86.32352941 | AJ31: =IF(الجدول5[[#This Row],[عمود33]]="","",evaltion(الجدول5[[#This Row],[عمود34]])) -> ممتاز | AK31: 41 | AL31: =IF(AK31>10,"",atrteb(AK31)) ->  | AM31: =IF(AK31>10,"",IF(COUNTIF(AH$10:$AH31,AH31)=1,"","مكرر")) -> 
B32: =IF(C32="","",SUBTOTAL(3,$C$10:C32)) -> 5 | C32: الطالب 23 | D32: 512 | E32: 46 | F32: 45 | G32: 91 | H32: 40 | I32: 36 | J32: 76 | K32: 39 | L32: 34 | M32: 73 | N32: 48 | O32: 38 | P32: 86 | Q32: 37 | R32: 36 | S32: 73 | T32: 37 | U32: 29 | V32: 66 | W32: 19 | X32: 20 | Y32: 39 | Z32: 19 | AA32: 7 | AB32: 26 | AC32: 15 | AD32: 12 | AE32: 27 | AF32: انثى | AG32: 1/2 | AH32: =الجدول5[[#This Row],[عمود6]]+الجدول5[[#This Row],[عمود9]]+الجدول5[[#This Row],[عمود12]]+الجدول5[[#This Row],[عمود15]]+الجدول5[[#This Row],[عمود18]]+الجدول5[[#This Row],[عمود21]]+الجدول5[[#This Row],[عمود24]]+الجدول5[[#This Row],[عمود27]]+الجدول5[[#This Row],[عمود30]] -> 557 | AI32: =الجدول5[[#This Row],[عمود33]]/680*100 -> 81.91176471 | AJ32: =IF(الجدول5[[#This Row],[عمود33]]="","",evaltion(الجدول5[[#This Row],[عمود34]])) -> جيد جدا | AK32: 58 | AL32: =IF(AK32>10,"",atrteb(AK32)) ->  | AM32: =IF(AK32>10,"",IF(COUNTIF(AH$10:$AH32,AH32)=1,"","مكرر")) -> 
B33: =IF(C33="","",SUBTOTAL(3,$C$10:C33)) -> 5 | C33: الطالب 24 | D33: 513 | E33: 43 | F33: 42 | G33: 85 | H33: 39 | I33: 43 | J33: 82 | K33: 39 | L33: 34 | M33: 73 | N33: 41 | O33: 43 | P33: 84 | Q33: 35 | R33: 28 | S33: 63 | T33: 36 | U33: 32 | V33: 68 | W33: 17 | X33: 16 | Y33: 33 | Z33: 18 | AA33: 9 | AB33: 27 | AC33: 13 | AD33: 12 | AE33: 25 | AF33: ذكر | AG33: 2/2 | AH33: =الجدول5[[#This Row],[عمود6]]+الجدول5[[#This Row],[عمود9]]+الجدول5[[#This Row],[عمود12]]+الجدول5[[#This Row],[عمود15]]+الجدول5[[#This Row],[عمود18]]+الجدول5[[#This Row],[عمود21]]+الجدول5[[#This Row],[عمود24]]+الجدول5[[#This Row],[عمود27]]+الجدول5[[#This Row],[عمود30]] -> 540 | AI33: =الجدول5[[#This Row],[عمود33]]/680*100 -> 79.41176471 | AJ33: =IF(الجدول5[[#This Row],[عمود33]]="","",evaltion(الجدول5[[#This Row],[عمود34]])) -> جيد جدا | AK33: 65 | AL33: =IF(AK33>10,"",atrteb(AK33)) ->  | AM33: =IF(AK33>10,"",IF(COUNTIF(AH$10:$AH33,AH33)=1,"","مكرر")) -> 
B34: =IF(C34="","",SUBTOTAL(3,$C$10:C34)) -> 5 | C34: الطالب 25 | D34: 513 | E34: 42 | F34: 41 | G34: 83 | H34: 36 | I34: 22 | J34: 58 | K34: 31 | L34: 33 | M34: 64 | N34: 42 | O34: 36 | P34: 78 | Q34: 28 | R34: 31 | S34: 59 | T34: 35 | U34: 22 | V34: 57 | W34: 20 | X34: 20 | Y34: 40 | Z34: 14 | AA34: 13 | AB34: 27 | AC34: 15 | AD34: 8 | AE34: 23 | AF34: انثى | AG34: 3/2 | AH34: =الجدول5[[#This Row],[عمود6]]+الجدول5[[#This Row],[عمود9]]+الجدول5[[#This Row],[عمود12]]+الجدول5[[#This Row],[عمود15]]+الجدول5[[#This Row],[عمود18]]+الجدول5[[#This Row],[عمود21]]+الجدول5[[#This Row],[عمود24]]+الجدول5[[#This Row],[عمود27]]+الجدول5[[#This Row],[عمود30]] -> 489 | AI34: =الجدول5[[#This Row],[عمود33]]/680*100 -> 71.91176471 | AJ34: =IF(الجدول5[[#This Row],[عمود33]]="","",evaltion(الجدول5[[#This Row],[عمود34]])) -> جيد فقط | AK34: 88 | AL34: =IF(AK34>10,"",atrteb(AK34)) ->  | AM34: =IF(AK34>10,"",IF(COUNTIF(AH$10:$AH34,AH34)=1,"","مكرر")) -> 
B35: =IF(C35="","",SUBTOTAL(3,$C$10:C35)) -> 5 | C35: الطالب 26 | D35: 514 | E35: 46 | F35: 41 | G35: 87 | H35: 39 | I35: 32 | J35: 71 | K35: 46 | L35: 42 | M35: 88 | N35: 47 | O35: 39 | P35: 86 | Q35: 32 | R35: 34 | S35: 66 | T35: 35 | U35: 32 | V35: 67 | W35: 19 | X35: 19 | Y35: 38 | Z35: 11 | AA35: 14 | AB35: 25 | AC35: 16 | AD35: 13 | AE35: 29 | AF35: انثى | AG35: 3/2 | AH35: =الجدول5[[#This Row],[عمود6]]+الجدول5[[#This Row],[عمود9]]+الجدول5[[#This Row],[عمود12]]+الجدول5[[#This Row],[عمود15]]+الجدول5[[#This Row],[عمود18]]+الجدول5[[#This Row],[عمود21]]+الجدول5[[#This Row],[عمود24]]+الجدول5[[#This Row],[عمود27]]+الجدول5[[#This Row],[عمود30]] -> 557 | AI35: =الجدول5[[#This Row],[عمود33]]/680*100 -> 81.91176471 | AJ35: =IF(الجدول5[[#This Row],[عمود33]]="","",evaltion(الجدول5[[#This Row],[عمود34]])) -> جيد جدا | AK35: 58 | AL35: =IF(AK35>10,"",atrteb(AK35)) ->  | AM35: =IF(AK35>10,"",IF(COUNTIF(AH$10:$AH35,AH35)=1,"","مكرر")) -> 
B36: =IF(C36="","",SUBTOTAL(3,$C$10:C36)) -> 5 | C36: الطالب 27 | D36: 514 | E36: 33 | F36: 37 | G36: 70 | H36: 27 | I36: 19 | J36: 46 | K36: 39 | L36: 40 | M36: 79 | N36: 40 | O36: 46 | P36: 86 | Q36: 26 | R36: 33 | S36: 59 | T36: 37 | U36: 24 | V36: 61 | W36: 17 | X36: 19 | Y36: 36 | Z36: 20 | AA36: 10 | AB36: 30 | AC36: 12 | AD36: 12 | AE36: 24 | AF36: انثى | AG36: 4/2 | AH36: =الجدول5[[#This Row],[عمود6]]+الجدول5[[#This Row],[عمود9]]+الجدول5[[#This Row],[عمود12]]+الجدول5[[#This Row],[عمود15]]+الجدول5[[#This Row],[عمود18]]+الجدول5[[#This Row],[عمود21]]+الجدول5[[#This Row],[عمود24]]+الجدول5[[#This Row],[عمود27]]+الجدول5[[#This Row],[عمود30]] -> 491 | AI36: =الجدول5[[#This Row],[عمود33]]/680*100 -> 72.20588235 | AJ36: =IF(الجدول5[[#This Row],[عمود33]]="","",evaltion(الجدول5[[#This Row],[عمود34]])) -> جيد فقط | AK36: 87 | AL36: =IF(AK36>10,"",atrteb(AK36)) ->  | AM36: =IF(AK36>10,"",IF(COUNTIF(AH$10:$AH36,AH36)=1,"","مكرر")) -> 
B37: =IF(C37="","",SUBTOTAL(3,$C$10:C37)) -> 5 | C37: الطالب 28 | D37: 515 | E37: 45 | F37: 40 | G37: 85 | H37: 40 | I37: 32 | J37: 72 | K37: 41 | M37: 41 | N37: 44 | O37: 39 | P37: 83 | Q37: 28 | R37: 29 | S37: 57 | T37: 36 | U37: 35 | V37: 71 | W37: 19 | X37: 16 | Y37: 35 | Z37: 15 | AA37: 12 | AB37: 27 | AC37: 16 | AD37: 12 | AE37: 28 | AF37: ذكر | AG37: 2/2 | AH37: =الجدول5[[#This Row],[عمود6]]+الجدول5[[#This Row],[عمود9]]+الجدول5[[#This Row],[عمود12]]+الجدول5[[#This Row],[عمود15]]+الجدول5[[#This Row],[عمود18]]+الجدول5[[#This Row],[عمود21]]+الجدول5[[#This Row],[عمود24]]+الجدول5[[#This Row],[عمود27]]+الجدول5[[#This Row],[عمود30]] -> 499 | AI37: =الجدول5[[#This Row],[عمود33]]/680*100 -> 73.38235294 | AJ37: =IF(الجدول5[[#This Row],[عمود33]]="","",evaltion(الجدول5[[#This Row],[عمود34]])) -> جيد فقط | AK37: 83 | AL37: =IF(AK37>10,"",atrteb(AK37)) ->  | AM37: =IF(AK37>10,"",IF(COUNTIF(AH$10:$AH37,AH37)=1,"","مكرر")) -> 
B38: =IF(C38="","",SUBTOTAL(3,$C$10:C38)) -> 5 | C38: الطالب 29 | D38: 515 | E38: 45 | F38: 45 | G38: 90 | H38: 40 | I38: 36 | J38: 76 | K38: 45 | L38: 37 | M38: 82 | N38: 45 | O38: 43 | P38: 88 | Q38: 36 | R38: 35 | S38: 71 | T38: 39 | U38: 33 | V38: 72 | W38: 20 | X38: 20 | Y38: 40 | Z38: 13 | AA38: 9 | AB38: 22 | AC38: 13 | AD38: 11 | AE38: 24 | AF38: انثى | AG38: 4/2 | AH38: =الجدول5[[#This Row],[عمود6]]+الجدول5[[#This Row],[عمود9]]+الجدول5[[#This Row],[عمود12]]+الجدول5[[#This Row],[عمود15]]+الجدول5[[#This Row],[عمود18]]+الجدول5[[#This Row],[عمود21]]+الجدول5[[#This Row],[عمود24]]+الجدول5[[#This Row],[عمود27]]+الجدول5[[#This Row],[عمود30]] -> 565 | AI38: =الجدول5[[#This Row],[عمود33]]/680*100 -> 83.08823529 | AJ38: =IF(الجدول5[[#This Row],[عمود33]]="","",evaltion(الجدول5[[#This Row],[عمود34]])) -> جيد جدا | AK38: 53 | AL38: =IF(AK38>10,"",atrteb(AK38)) ->  | AM38: =IF(AK38>10,"",IF(COUNTIF(AH$10:$AH38,AH38)=1,"","مكرر")) -> 
B39: =IF(C39="","",SUBTOTAL(3,$C$10:C39)) -> 5 | C39: الطالب 30 | D39: 516 | E39: 32 | F39: 38 | G39: 70 | H39: 25 | I39: 18 | J39: 43 | K39: 23 | L39: 8 | M39: 31 | N39: 33 | O39: 17 | P39: 50 | Q39: 24 | R39: 24 | S39: 48 | T39: 27 | U39: 10 | V39: 37 | W39: 13 | X39: 16 | Y39: 29 | Z39: 9 | AA39: 2 | AB39: 11 | AC39: 8 | AD39: 5 | AE39: 13 | AF39: انثى | AG39: 2/2 | AH39: =الجدول5[[#This Row],[عمود6]]+الجدول5[[#This Row],[عمود9]]+الجدول5[[#This Row],[عمود12]]+الجدول5[[#This Row],[عمود15]]+الجدول5[[#This Row],[عمود18]]+الجدول5[[#This Row],[عمود21]]+الجدول5[[#This Row],[عمود24]]+الجدول5[[#This Row],[عمود27]]+الجدول5[[#This Row],[عمود30]] -> 332 | AI39: =الجدول5[[#This Row],[عمود33]]/680*100 -> 48.82352941 | AJ39: =IF(الجدول5[[#This Row],[عمود33]]="","",evaltion(الجدول5[[#This Row],[عمود34]])) -> راسب | AK39: 127 | AL39: =IF(AK39>10,"",atrteb(AK39)) ->  | AM39: =IF(AK39>10,"",IF(COUNTIF(AH$10:$AH39,AH39)=1,"","مكرر")) -> 
B40: =IF(C40="","",SUBTOTAL(3,$C$10:C40)) -> 5 | C40: الطالب 31 | D40: 516 | E40: 31 | F40: 23 | G40: 54 | H40: 26 | I40: 16 | J40: 42 | K40: 33 | L40: 8 | M40: 41 | N40: 40 | O40: 21 | P40: 61 | Q40: 25 | R40: 26 | S40: 51 | T40: 27 | U40: 14 | V40: 41 | W40: 15 | X40: 11 | Y40: 26 | Z40: 13 | AA40: 3 | AB40: 16 | AC40: 14 | AD40: 9 | AE40: 23 | AF40: انثى | AG40: 4/2 | AH40: =الجدول5[[#This Row],[عمود6]]+الجدول5[[#This Row],[عمود9]]+الجدول5[[#This Row],[عمود12]]+الجدول5[[#This Row],[عمود15]]+الجدول5[[#This Row],[عمود18]]+الجدول5[[#This Row],[عمود21]]+الجدول5[[#This Row],[عمود24]]+الجدول5[[#This Row],[عمود27]]+الجدول5[[#This Row],[عمود30]] -> 355 | AI40: =الجدول5[[#This Row],[عمود33]]/680*100 -> 52.20588235 | AJ40: =IF(الجدول5[[#This Row],[عمود33]]="","",evaltion(الجدول5[[#This Row],[عمود34]])) -> مقبول | AK40: 125 | AL40: =IF(AK40>10,"",atrteb(AK40)) ->  | AM40: =IF(AK40>10,"",IF(COUNTIF(AH$10:$AH40,AH40)=1,"","مكرر")) -> 
B41: =IF(C41="","",SUBTOTAL(3,$C$10:C41)) -> 5 | C41: الطالب 32 | D41: 517 | E41: 49 | F41: 49 | G41: 98 | H41: 50 | I41: 49 | J41: 99 | K41: 48 | L41: 50 | M41: 98 | N41: 50 | O41: 48 | P41: 98 | Q41: 39 | R41: 39 | S41: 78 | T41: 40 | U41: 37 | V41: 77 | W41: 20 | X41: 20 | Y41: 40 | Z41: 20 | AA41: 18 | AB41: 38 | AC41: 19 | AD41: 16 | AE41: 35 | AF41: ذكر | AG41: 1/2 | AH41: =الجدول5[[#This Row],[عمود6]]+الجدول5[[#This Row],[عمود9]]+الجدول5[[#This Row],[عمود12]]+الجدول5[[#This Row],[عمود15]]+الجدول5[[#This Row],[عمود18]]+الجدول5[[#This Row],[عمود21]]+الجدول5[[#This Row],[عمود24]]+الجدول5[[#This Row],[عمود27]]+الجدول5[[#This Row],[عمود30]] -> 661 | AI41: =الجدول5[[#This Row],[عمود33]]/680*100 -> 97.20588235 | AJ41: =IF(الجدول5[[#This Row],[عمود33]]="","",evaltion(الجدول5[[#This Row],[عمود34]])) -> ممتاز | AK41: 8 | AL41: =IF(AK41>10,"",atrteb(AK41)) -> الترتيب الثامن | AM41: =IF(AK41>10,"",IF(COUNTIF(AH$10:$AH41,AH41)=1,"","مكرر")) -> 
B42: =IF(C42="","",SUBTOTAL(3,$C$10:C42)) -> 5 | C42: الطالب 33 | D42: 517 | E42: 48 | F42: 47 | G42: 95 | H42: 49 | I42: 50 | J42: 99 | K42: 48 | L42: 50 | M42: 98 | N42: 50 | O42: 50 | P42: 100 | Q42: 40 | R42: 39 | S42: 79 | T42: 40 | U42: 40 | V42: 80 | W42: 20 | X42: 20 | Y42: 40 | Z42: 20 | AA42: 20 | AB42: 40 | AC42: 17 | AD42: 17 | AE42: 34 | AF42: انثى | AG42: 2/2 | AH42: =الجدول5[[#This Row],[عمود6]]+الجدول5[[#This Row],[عمود9]]+الجدول5[[#This Row],[عمود12]]+الجدول5[[#This Row],[عمود15]]+الجدول5[[#This Row],[عمود18]]+الجدول5[[#This Row],[عمود21]]+الجدول5[[#This Row],[عمود24]]+الجدول5[[#This Row],[عمود27]]+الجدول5[[#This Row],[عمود30]] -> 665 | AI42: =الجدول5[[#This Row],[عمود33]]/680*100 -> 97.79411765 | AJ42: =IF(الجدول5[[#This Row],[عمود33]]="","",evaltion(الجدول5[[#This Row],[عمود34]])) -> ممتاز | AK42: 6 | AL42: =IF(AK42>10,"",atrteb(AK42)) -> الترتيب السادس | AM42: =IF(AK42>10,"",IF(COUNTIF(AH$10:$AH42,AH42)=1,"","مكرر")) -> 
B43: =IF(C43="","",SUBTOTAL(3,$C$10:C43)) -> 5 | C43: الطالب 34 | D43: 518 | E43: 41 | F43: 41 | G43: 82 | H43: 38 | I43: 30 | J43: 68 | K43: 47 | L43: 50 | M43: 97 | N43: 46 | O43: 43 | P43: 89 | Q43: 34 | R43: 37 | S43: 71 | T43: 39 | U43: 33 | V43: 72 | W43: 19 | X43: 20 | Y43: 39 | Z43: 14 | AA43: 12 | AB43: 26 | AC43: 16 | AD43: 15 | AE43: 31 | AF43: انثى | AG43: 3/2 | AH43: =الجدول5[[#This Row],[عمود6]]+الجدول5[[#This Row],[عمود9]]+الجدول5[[#This Row],[عمود12]]+الجدول5[[#This Row],[عمود15]]+الجدول5[[#This Row],[عمود18]]+الجدول5[[#This Row],[عمود21]]+الجدول5[[#This Row],[عمود24]]+الجدول5[[#This Row],[عمود27]]+الجدول5[[#This Row],[عمود30]] -> 575 | AI43: =الجدول5[[#This Row],[عمود33]]/680*100 -> 84.55882353 | AJ43: =IF(الجدول5[[#This Row],[عمود33]]="","",evaltion(الجدول5[[#This Row],[عمود34]])) -> جيد جدا | AK43: 47 | AL43: =IF(AK43>10,"",atrteb(AK43)) ->  | AM43: =IF(AK43>10,"",IF(COUNTIF(AH$10:$AH43,AH43)=1,"","مكرر")) -> 
B44: =IF(C44="","",SUBTOTAL(3,$C$10:C44)) -> 5 | C44: الطالب 35 | D44: 518 | E44: 42 | F44: 42 | G44: 84 | H44: 33 | I44: 40 | J44: 73 | K44: 46 | L44: 50 | M44: 96 | N44: 46 | O44: 44 | P44: 90 | Q44: 26 | R44: 30 | S44: 56 | T44: 40 | U44: 35 | V44: 75 | W44: 15 | X44: 20 | Y44: 35 | Z44: 15 | AA44: 20 | AB44: 35 | AC44: 15 | AD44: 16 | AE44: 31 | AF44: انثى | AG44: 3/2 | AH44: =الجدول5[[#This Row],[عمود6]]+الجدول5[[#This Row],[عمود9]]+الجدول5[[#This Row],[عمود12]]+الجدول5[[#This Row],[عمود15]]+الجدول5[[#This Row],[عمود18]]+الجدول5[[#This Row],[عمود21]]+الجدول5[[#This Row],[عمود24]]+الجدول5[[#This Row],[عمود27]]+الجدول5[[#This Row],[عمود30]] -> 575 | AI44: =الجدول5[[#This Row],[عمود33]]/680*100 -> 84.55882353 | AJ44: =IF(الجدول5[[#This Row],[عمود33]]="","",evaltion(الجدول5[[#This Row],[عمود34]])) -> جيد جدا | AK44: 47 | AL44: =IF(AK44>10,"",atrteb(AK44)) ->  | AM44: =IF(AK44>10,"",IF(COUNTIF(AH$10:$AH44,AH44)=1,"","مكرر")) -> 
B45: =IF(C45="","",SUBTOTAL(3,$C$10:C45)) -> 5 | C45: الطالب 36 | D45: 519 | E45: 40 | F45: 40 | G45: 80 | H45: 34 | I45: 26 | J45: 60 | K45: 30 | L45: 26 | M45: 56 | N45: 45 | O45: 33 | P45: 78 | Q45: 32 | R45: 27 | S45: 59 | T45: 30 | U45: 31 | V45: 61 | W45: 17 | X45: 17 | Y45: 34 | Z45: 15 | AA45: 6 | AB45: 21 | AC45: 14 | AD45: 11 | AE45: 25 | AF45: ذكر | AG45: 1/2 | AH45: =الجدول5[[#This Row],[عمود6]]+الجدول5[[#This Row],[عمود9]]+الجدول5[[#This Row],[عمود12]]+الجدول5[[#This Row],[عمود15]]+الجدول5[[#This Row],[عمود18]]+الجدول5[[#This Row],[عمود21]]+الجدول5[[#This Row],[عمود24]]+الجدول5[[#This Row],[عمود27]]+الجدول5[[#This Row],[عمود30]] -> 474 | AI45: =الجدول5[[#This Row],[عمود33]]/680*100 -> 69.70588235 | AJ45: =IF(الجدول5[[#This Row],[عمود33]]="","",evaltion(الجدول5[[#This Row],[عمود34]])) -> جيد فقط | AK45: 91 | AL45: =IF(AK45>10,"",atrteb(AK45)) ->  | AM45: =IF(AK45>10,"",IF(COUNTIF(AH$10:$AH45,AH45)=1,"","مكرر")) -> 
B46: =IF(C46="","",SUBTOTAL(3,$C$10:C46)) -> 5 | C46: الطالب 37 | D46: 519 | E46: 49 | F46: 42 | G46: 91 | H46: 49 | I46: 43 | J46: 92 | K46: 48 | L46: 50 | M46: 98 | N46: 50 | O46: 48 | P46: 98 | Q46: 40 | R46: 39 | S46: 79 | T46: 40 | U46: 29 | V46: 69 | W46: 20 | X46: 20 | Y46: 40 | Z46: 16 | AA46: 20 | AB46: 36 | AC46: 17 | AD46: 16 | AE46: 33 | AF46: انثى | AG46: 3/2 | AH46: =الجدول5[[#This Row],[عمود6]]+الجدول5[[#This Row],[عمود9]]+الجدول5[[#This Row],[عمود12]]+الجدول5[[#This Row],[عمود15]]+الجدول5[[#This Row],[عمود18]]+الجدول5[[#This Row],[عمود21]]+الجدول5[[#This Row],[عمود24]]+الجدول5[[#This Row],[عمود27]]+الجدول5[[#This Row],[عمود30]] -> 636 | AI46: =الجدول5[[#This Row],[عمود33]]/680*100 -> 93.52941176 | AJ46: =IF(الجدول5[[#This Row],[عمود33]]="","",evaltion(الجدول5[[#This Row],[عمود34]])) -> ممتاز | AK46: 19 | AL46: =IF(AK46>10,"",atrteb(AK46)) ->  | AM46: =IF(AK46>10,"",IF(COUNTIF(AH$10:$AH46,AH46)=1,"","مكرر")) -> 
B47: =IF(C47="","",SUBTOTAL(3,$C$10:C47)) -> 5 | C47: الطالب 38 | D47: 520 | E47: 40 | F47: 35 | G47: 75 | H47: 31 | I47: 14 | J47: 45 | K47: 28 | L47: 20 | M47: 48 | N47: 39 | O47: 31 | P47: 70 | Q47: 28 | R47: 29 | S47: 57 | T47: 35 | U47: 28 | V47: 63 | W47: 18 | X47: 20 | Y47: 38 | Z47: 17 | AA47: 4 | AB47: 21 | AC47: 9 | AD47: 4 | AE47: 13 | AF47: انثى | AG47: 4/2 | AH47: =الجدول5[[#This Row],[عمود6]]+الجدول5[[#This Row],[عمود9]]+الجدول5[[#This Row],[عمود12]]+الجدول5[[#This Row],[عمود15]]+الجدول5[[#This Row],[عمود18]]+الجدول5[[#This Row],[عمود21]]+الجدول5[[#This Row],[عمود24]]+الجدول5[[#This Row],[عمود27]]+الجدول5[[#This Row],[عمود30]] -> 430 | AI47: =الجدول5[[#This Row],[عمود33]]/680*100 -> 63.23529412 | AJ47: =IF(الجدول5[[#This Row],[عمود33]]="","",evaltion(الجدول5[[#This Row],[عمود34]])) -> مقبول | AK47: 105 | AL47: =IF(AK47>10,"",atrteb(AK47)) ->  | AM47: =IF(AK47>10,"",IF(COUNTIF(AH$10:$AH47,AH47)=1,"","مكرر")) -> 
B48: =IF(C48="","",SUBTOTAL(3,$C$10:C48)) -> 5 | C48: الطالب 39 | D48: 520 | E48: 48 | F48: 46 | G48: 94 | H48: 48 | I48: 50 | J48: 98 | K48: 49 | L48: 50 | M48: 99 | N48: 50 | O48: 49 | P48: 99 | Q48: 39 | R48: 40 | S48: 79 | T48: 39 | U48: 37 | V48: 76 | W48: 19 | X48: 17 | Y48: 36 | Z48: 20 | AA48: 19 | AB48: 39 | AC48: 18 | AD48: 19 | AE48: 37 | AF48: انثى | AG48: 4/2 | AH48: =الجدول5[[#This Row],[عمود6]]+الجدول5[[#This Row],[عمود9]]+الجدول5[[#This Row],[عمود12]]+الجدول5[[#This Row],[عمود15]]+الجدول5[[#This Row],[عمود18]]+الجدول5[[#This Row],[عمود21]]+الجدول5[[#This Row],[عمود24]]+الجدول5[[#This Row],[عمود27]]+الجدول5[[#This Row],[عمود30]] -> 657 | AI48: =الجدول5[[#This Row],[عمود33]]/680*100 -> 96.61764706 | AJ48: =IF(الجدول5[[#This Row],[عمود33]]="","",evaltion(الجدول5[[#This Row],[عمود34]])) -> ممتاز | AK48: 13 | AL48: =IF(AK48>10,"",atrteb(AK48)) ->  | AM48: =IF(AK48>10,"",IF(COUNTIF(AH$10:$AH48,AH48)=1,"","مكرر")) -> 
B49: =IF(C49="","",SUBTOTAL(3,$C$10:C49)) -> 5 | C49: الطالب 40 | D49: 521 | E49: 47 | F49: 42 | G49: 89 | H49: 37 | I49: 25 | J49: 62 | K49: 34 | L49: 28 | M49: 62 | N49: 44 | O49: 40 | P49: 84 | Q49: 30 | R49: 36 | S49: 66 | T49: 38 | U49: 35 | V49: 73 | W49: 20 | X49: 20 | Y49: 40 | Z49: 17 | AA49: 11 | AB49: 28 | AC49: 13 | AD49: 15 | AE49: 28 | AF49: ذكر | AG49: 4/2 | AH49: =الجدول5[[#This Row],[عمود6]]+الجدول5[[#This Row],[عمود9]]+الجدول5[[#This Row],[عمود12]]+الجدول5[[#This Row],[عمود15]]+الجدول5[[#This Row],[عمود18]]+الجدول5[[#This Row],[عمود21]]+الجدول5[[#This Row],[عمود24]]+الجدول5[[#This Row],[عمود27]]+الجدول5[[#This Row],[عمود30]] -> 532 | AI49: =الجدول5[[#This Row],[عمود33]]/680*100 -> 78.23529412 | AJ49: =IF(الجدول5[[#This Row],[عمود33]]="","",evaltion(الجدول5[[#This Row],[عمود34]])) -> جيد جدا | AK49: 69 | AL49: =IF(AK49>10,"",atrteb(AK49)) ->  | AM49: =IF(AK49>10,"",IF(COUNTIF(AH$10:$AH49,AH49)=1,"","مكرر")) -> 
B50: =IF(C50="","",SUBTOTAL(3,$C$10:C50)) -> 6 | C50: الطالب 41 | D50: 521 | E50: 49 | F50: 49 | G50: 98 | H50: 50 | I50: 50 | J50: 100 | K50: 50 | L50: 50 | M50: 100 | N50: 48 | O50: 50 | P50: 98 | Q50: 40 | R50: 39 | S50: 79 | T50: 40 | U50: 40 | V50: 80 | W50: 20 | X50: 20 | Y50: 40 | Z50: 20 | AA50: 20 | AB50: 40 | AC50: 19 | AD50: 19 | AE50: 38 | AF50: انثى | AG50: 1/2 | AH50: =الجدول5[[#This Row],[عمود6]]+الجدول5[[#This Row],[عمود9]]+الجدول5[[#This Row],[عمود12]]+الجدول5[[#This Row],[عمود15]]+الجدول5[[#This Row],[عمود18]]+الجدول5[[#This Row],[عمود21]]+الجدول5[[#This Row],[عمود24]]+الجدول5[[#This Row],[عمود27]]+الجدول5[[#This Row],[عمود30]] -> 673 | AI50: =الجدول5[[#This Row],[عمود33]]/680*100 -> 98.97058824 | AJ50: =IF(الجدول5[[#This Row],[عمود33]]="","",evaltion(الجدول5[[#This Row],[عمود34]])) -> ممتاز | AK50: 1 | AL50: =IF(AK50>10,"",atrteb(AK50)) -> الترتيب الأول | AM50: =IF(AK50>10,"",IF(COUNTIF(AH$10:$AH50,AH50)=1,"","مكرر")) -> 
B51: =IF(C51="","",SUBTOTAL(3,$C$10:C51)) -> 6 | C51: الطالب 42 | D51: 522 | E51: 49 | F51: 49 | G51: 98 | H51: 50 | I51: 50 | J51: 100 | K51: 47 | L51: 48 | M51: 95 | N51: 50 | O51: 48 | P51: 98 | Q51: 39 | R51: 40 | S51: 79 | T51: 39 | U51: 39 | V51: 78 | W51: 20 | X51: 20 | Y51: 40 | Z51: 20 | AA51: 20 | AB51: 40 | AC51: 16 | AD51: 15 | AE51: 31 | AF51: انثى | AG51: 2/2 | AH51: =الجدول5[[#This Row],[عمود6]]+الجدول5[[#This Row],[عمود9]]+الجدول5[[#This Row],[عمود12]]+الجدول5[[#This Row],[عمود15]]+الجدول5[[#This Row],[عمود18]]+الجدول5[[#This Row],[عمود21]]+الجدول5[[#This Row],[عمود24]]+الجدول5[[#This Row],[عمود27]]+الجدول5[[#This Row],[عمود30]] -> 659 | AI51: =الجدول5[[#This Row],[عمود33]]/680*100 -> 96.91176471 | AJ51: =IF(الجدول5[[#This Row],[عمود33]]="","",evaltion(الجدول5[[#This Row],[عمود34]])) -> ممتاز | AK51: 9 | AL51: =IF(AK51>10,"",atrteb(AK51)) -> الترتيب التاسع | AM51: =IF(AK51>10,"",IF(COUNTIF(AH$10:$AH51,AH51)=1,"","مكرر")) -> 
B52: =IF(C52="","",SUBTOTAL(3,$C$10:C52)) -> 7 | C52: الطالب 43 | D52: 522 | E52: 47 | F52: 47 | G52: 94 | H52: 48 | I52: 45 | J52: 93 | K52: 41 | L52: 43 | M52: 84 | N52: 48 | O52: 42 | P52: 90 | Q52: 37 | R52: 37 | S52: 74 | T52: 36 | U52: 38 | V52: 74 | W52: 20 | X52: 20 | Y52: 40 | Z52: 17 | AA52: 10 | AB52: 27 | AC52: 16 | AD52: 14 | AE52: 30 | AF52: انثى | AG52: 1/2 | AH52: =الجدول5[[#This Row],[عمود6]]+الجدول5[[#This Row],[عمود9]]+الجدول5[[#This Row],[عمود12]]+الجدول5[[#This Row],[عمود15]]+الجدول5[[#This Row],[عمود18]]+الجدول5[[#This Row],[عمود21]]+الجدول5[[#This Row],[عمود24]]+الجدول5[[#This Row],[عمود27]]+الجدول5[[#This Row],[عمود30]] -> 606 | AI52: =الجدول5[[#This Row],[عمود33]]/680*100 -> 89.11764706 | AJ52: =IF(الجدول5[[#This Row],[عمود33]]="","",evaltion(الجدول5[[#This Row],[عمود34]])) -> ممتاز | AK52: 32 | AL52: =IF(AK52>10,"",atrteb(AK52)) ->  | AM52: =IF(AK52>10,"",IF(COUNTIF(AH$10:$AH52,AH52)=1,"","مكرر")) -> 
B53: =IF(C53="","",SUBTOTAL(3,$C$10:C53)) -> 7 | C53: الطالب 44 | D53: 523 | E53: 34 | F53: 39 | G53: 73 | H53: 22 | I53: 17 | J53: 39 | K53: 28 | L53: 33 | M53: 61 | N53: 34 | O53: 34 | P53: 68 | Q53: 30 | R53: 20 | S53: 50 | T53: 24 | U53: 18 | V53: 42 | W53: 14 | X53: 19 | Y53: 33 | Z53: 12 | AA53: 5 | AB53: 17 | AC53: 9 | AD53: 10 | AE53: 19 | AF53: ذكر | AG53: 2/2 | AH53: =الجدول5[[#This Row],[عمود6]]+الجدول5[[#This Row],[عمود9]]+الجدول5[[#This Row],[عمود12]]+الجدول5[[#This Row],[عمود15]]+الجدول5[[#This Row],[عمود18]]+الجدول5[[#This Row],[عمود21]]+الجدول5[[#This Row],[عمود24]]+الجدول5[[#This Row],[عمود27]]+الجدول5[[#This Row],[عمود30]] -> 402 | AI53: =الجدول5[[#This Row],[عمود33]]/680*100 -> 59.11764706 | AJ53: =IF(الجدول5[[#This Row],[عمود33]]="","",evaltion(الجدول5[[#This Row],[عمود34]])) -> مقبول | AK53: 116 | AL53: =IF(AK53>10,"",atrteb(AK53)) ->  | AM53: =IF(AK53>10,"",IF(COUNTIF(AH$10:$AH53,AH53)=1,"","مكرر")) -> 
B54: =IF(C54="","",SUBTOTAL(3,$C$10:C54)) -> 8 | C54: الطالب 45 | D54: 523 | E54: 49 | F54: 47 | G54: 96 | H54: 30 | I54: 29 | J54: 59 | K54: 46 | L54: 42 | M54: 88 | N54: 44 | O54: 43 | P54: 87 | Q54: 38 | R54: 36 | S54: 74 | T54: 31 | U54: 26 | V54: 57 | W54: 19 | X54: 20 | Y54: 39 | Z54: 17 | AA54: 12 | AB54: 29 | AC54: 17 | AD54: 16 | AE54: 33 | AF54: انثى | AG54: 1/2 | AH54: =الجدول5[[#This Row],[عمود6]]+الجدول5[[#This Row],[عمود9]]+الجدول5[[#This Row],[عمود12]]+الجدول5[[#This Row],[عمود15]]+الجدول5[[#This Row],[عمود18]]+الجدول5[[#This Row],[عمود21]]+الجدول5[[#This Row],[عمود24]]+الجدول5[[#This Row],[عمود27]]+الجدول5[[#This Row],[عمود30]] -> 562 | AI54: =الجدول5[[#This Row],[عمود33]]/680*100 -> 82.64705882 | AJ54: =IF(الجدول5[[#This Row],[عمود33]]="","",evaltion(الجدول5[[#This Row],[عمود34]])) -> جيد جدا | AK54: 54 | AL54: =IF(AK54>10,"",atrteb(AK54)) ->  | AM54: =IF(AK54>10,"",IF(COUNTIF(AH$10:$AH54,AH54)=1,"","مكرر")) -> 
B55: =IF(C55="","",SUBTOTAL(3,$C$10:C55)) -> 8 | C55: الطالب 46 | D55: 524 | E55: 49 | F55: 48 | G55: 97 | H55: 44 | I55: 46 | J55: 90 | K55: 43 | L55: 34 | M55: 77 | N55: 50 | O55: 44 | P55: 94 | Q55: 37 | R55: 37 | S55: 74 | T55: 38 | U55: 33 | V55: 71 | W55: 20 | X55: 19 | Y55: 39 | Z55: 19 | AA55: 15 | AB55: 34 | AC55: 14 | AD55: 17 | AE55: 31 | AF55: انثى | AG55: 2/2 | AH55: =الجدول5[[#This Row],[عمود6]]+الجدول5[[#This Row],[عمود9]]+الجدول5[[#This Row],[عمود12]]+الجدول5[[#This Row],[عمود15]]+الجدول5[[#This Row],[عمود18]]+الجدول5[[#This Row],[عمود21]]+الجدول5[[#This Row],[عمود24]]+الجدول5[[#This Row],[عمود27]]+الجدول5[[#This Row],[عمود30]] -> 607 | AI55: =الجدول5[[#This Row],[عمود33]]/680*100 -> 89.26470588 | AJ55: =IF(الجدول5[[#This Row],[عمود33]]="","",evaltion(الجدول5[[#This Row],[عمود34]])) -> ممتاز | AK55: 31 | AL55: =IF(AK55>10,"",atrteb(AK55)) ->  | AM55: =IF(AK55>10,"",IF(COUNTIF(AH$10:$AH55,AH55)=1,"","مكرر")) -> 
B56: =IF(C56="","",SUBTOTAL(3,$C$10:C56)) -> 8 | C56: الطالب 47 | D56: 524 | E56: 24 | F56: 11 | G56: 35 | H56: 25 | I56: 9 | J56: 34 | K56: 22 | L56: 7 | M56: 29 | N56: 33 | O56: 12 | P56: 45 | Q56: 17 | R56: 10 | S56: 27 | T56: 27 | U56: 6 | V56: 33 | W56: 13 | X56: 3 | Y56: 16 | Z56: 17 | AA56: 0 | AB56: 17 | AC56: 7 | AD56: 2 | AE56: 9 | AF56: انثى | AG56: 4/2 | AH56: =الجدول5[[#This Row],[عمود6]]+الجدول5[[#This Row],[عمود9]]+الجدول5[[#This Row],[عمود12]]+الجدول5[[#This Row],[عمود15]]+الجدول5[[#This Row],[عمود18]]+الجدول5[[#This Row],[عمود21]]+الجدول5[[#This Row],[عمود24]]+الجدول5[[#This Row],[عمود27]]+الجدول5[[#This Row],[عمود30]] -> 245 | AI56: =الجدول5[[#This Row],[عمود33]]/680*100 -> 36.02941176 | AJ56: =IF(الجدول5[[#This Row],[عمود33]]="","",evaltion(الجدول5[[#This Row],[عمود34]])) -> راسب | AK56: 128 | AL56: =IF(AK56>10,"",atrteb(AK56)) ->  | AM56: =IF(AK56>10,"",IF(COUNTIF(AH$10:$AH56,AH56)=1,"","مكرر")) -> 
B57: =IF(C57="","",SUBTOTAL(3,$C$10:C57)) -> 8 | C57: الطالب 48 | D57: 525 | E57: 47 | F57: 44 | G57: 91 | H57: 43 | I57: 38 | J57: 81 | K57: 49 | L57: 47 | M57: 96 | N57: 50 | O57: 50 | P57: 100 | Q57: 40 | R57: 40 | S57: 80 | T57: 39 | U57: 39 | V57: 78 | W57: 20 | X57: 20 | Y57: 40 | Z57: 20 | AA57: 17 | AB57: 37 | AC57: 12 | AD57: 15 | AE57: 27 | AF57: ذكر | AG57: 4/2 | AH57: =الجدول5[[#This Row],[عمود6]]+الجدول5[[#This Row],[عمود9]]+الجدول5[[#This Row],[عمود12]]+الجدول5[[#This Row],[عمود15]]+الجدول5[[#This Row],[عمود18]]+الجدول5[[#This Row],[عمود21]]+الجدول5[[#This Row],[عمود24]]+الجدول5[[#This Row],[عمود27]]+الجدول5[[#This Row],[عمود30]] -> 630 | AI57: =الجدول5[[#This Row],[عمود33]]/680*100 -> 92.64705882 | AJ57: =IF(الجدول5[[#This Row],[عمود33]]="","",evaltion(الجدول5[[#This Row],[عمود34]])) -> ممتاز | AK57: 22 | AL57: =IF(AK57>10,"",atrteb(AK57)) ->  | AM57: =IF(AK57>10,"",IF(COUNTIF(AH$10:$AH57,AH57)=1,"","مكرر")) -> 
B58: =IF(C58="","",SUBTOTAL(3,$C$10:C58)) -> 8 | C58: الطالب 49 | D58: 525 | E58: 42 | F58: 41 | G58: 83 | H58: 34 | I58: 21 | J58: 55 | K58: 31 | L58: 26 | M58: 57 | N58: 39 | O58: 29 | P58: 68 | Q58: 28 | R58: 25 | S58: 53 | T58: 29 | U58: 29 | V58: 58 | W58: 10 | X58: 20 | Y58: 30 | Z58: 14 | AA58: 7 | AB58: 21 | AC58: 11 | AD58: 9 | AE58: 20 | AF58: انثى | AG58: 2/2 | AH58: =الجدول5[[#This Row],[عمود6]]+الجدول5[[#This Row],[عمود9]]+الجدول5[[#This Row],[عمود12]]+الجدول5[[#This Row],[عمود15]]+الجدول5[[#This Row],[عمود18]]+الجدول5[[#This Row],[عمود21]]+الجدول5[[#This Row],[عمود24]]+الجدول5[[#This Row],[عمود27]]+الجدول5[[#This Row],[عمود30]] -> 445 | AI58: =الجدول5[[#This Row],[عمود33]]/680*100 -> 65.44117647 | AJ58: =IF(الجدول5[[#This Row],[عمود33]]="","",evaltion(الجدول5[[#This Row],[عمود34]])) -> جيد فقط | AK58: 101 | AL58: =IF(AK58>10,"",atrteb(AK58)) ->  | AM58: =IF(AK58>10,"",IF(COUNTIF(AH$10:$AH58,AH58)=1,"","مكرر")) -> 
B59: =IF(C59="","",SUBTOTAL(3,$C$10:C59)) -> 8 | C59: الطالب 50 | D59: 526 | E59: 45 | F59: 41 | G59: 86 | H59: 42 | I59: 34 | J59: 76 | K59: 42 | L59: 42 | M59: 84 | N59: 45 | O59: 44 | P59: 89 | Q59: 35 | R59: 37 | S59: 72 | T59: 38 | U59: 30 | V59: 68 | W59: 19 | X59: 20 | Y59: 39 | Z59: 19 | AA59: 16 | AB59: 35 | AC59: 12 | AD59: 10 | AE59: 22 | AF59: انثى | AG59: 3/2 | AH59: =الجدول5[[#This Row],[عمود6]]+الجدول5[[#This Row],[عمود9]]+الجدول5[[#This Row],[عمود12]]+الجدول5[[#This Row],[عمود15]]+الجدول5[[#This Row],[عمود18]]+الجدول5[[#This Row],[عمود21]]+الجدول5[[#This Row],[عمود24]]+الجدول5[[#This Row],[عمود27]]+الجدول5[[#This Row],[عمود30]] -> 571 | AI59: =الجدول5[[#This Row],[عمود33]]/680*100 -> 83.97058824 | AJ59: =IF(الجدول5[[#This Row],[عمود33]]="","",evaltion(الجدول5[[#This Row],[عمود34]])) -> جيد جدا | AK59: 51 | AL59: =IF(AK59>10,"",atrteb(AK59)) ->  | AM59: =IF(AK59>10,"",IF(COUNTIF(AH$10:$AH59,AH59)=1,"","مكرر")) -> 
B60: =IF(C60="","",SUBTOTAL(3,$C$10:C60)) -> 8 | C60: الطالب 51 | D60: 526 | E60: 41 | F60: 40 | G60: 81 | H60: 39 | I60: 24 | J60: 63 | K60: 32 | L60: 23 | M60: 55 | N60: 41 | O60: 32 | P60: 73 | Q60: 26 | R60: 29 | S60: 55 | T60: 36 | U60: 23 | V60: 59 | W60: 17 | X60: 20 | Y60: 37 | Z60: 15 | AA60: 5 | AB60: 20 | AC60: 10 | AD60: 7 | AE60: 17 | AF60: انثى | AG60: 4/2 | AH60: =الجدول5[[#This Row],[عمود6]]+الجدول5[[#This Row],[عمود9]]+الجدول5[[#This Row],[عمود12]]+الجدول5[[#This Row],[عمود15]]+الجدول5[[#This Row],[عمود18]]+الجدول5[[#This Row],[عمود21]]+الجدول5[[#This Row],[عمود24]]+الجدول5[[#This Row],[عمود27]]+الجدول5[[#This Row],[عمود30]] -> 460 | AI60: =الجدول5[[#This Row],[عمود33]]/680*100 -> 67.64705882 | AJ60: =IF(الجدول5[[#This Row],[عمود33]]="","",evaltion(الجدول5[[#This Row],[عمود34]])) -> جيد فقط | AK60: 95 | AL60: =IF(AK60>10,"",atrteb(AK60)) ->  | AM60: =IF(AK60>10,"",IF(COUNTIF(AH$10:$AH60,AH60)=1,"","مكرر")) -> 
B61: =IF(C61="","",SUBTOTAL(3,$C$10:C61)) -> 8 | C61: الطالب 52 | D61: 527 | E61: 40 | F61: 42 | G61: 82 | H61: 31 | I61: 20 | J61: 51 | K61: 27 | L61: 13 | M61: 40 | N61: 40 | O61: 27 | P61: 67 | Q61: 28 | R61: 23 | S61: 51 | T61: 31 | U61: 24 | V61: 55 | W61: 14 | X61: 14 | Y61: 28 | Z61: 14 | AA61: 4 | AB61: 18 | AC61: 11 | AD61: 7 | AE61: 18 | AF61: ذكر | AG61: 2/2 | AH61: =الجدول5[[#This Row],[عمود6]]+الجدول5[[#This Row],[عمود9]]+الجدول5[[#This Row],[عمود12]]+الجدول5[[#This Row],[عمود15]]+الجدول5[[#This Row],[عمود18]]+الجدول5[[#This Row],[عمود21]]+الجدول5[[#This Row],[عمود24]]+الجدول5[[#This Row],[عمود27]]+الجدول5[[#This Row],[عمود30]] -> 410 | AI61: =الجدول5[[#This Row],[عمود33]]/680*100 -> 60.29411765 | AJ61: =IF(الجدول5[[#This Row],[عمود33]]="","",evaltion(الجدول5[[#This Row],[عمود34]])) -> مقبول | AK61: 114 | AL61: =IF(AK61>10,"",atrteb(AK61)) ->  | AM61: =IF(AK61>10,"",IF(COUNTIF(AH$10:$AH61,AH61)=1,"","مكرر")) -> 
B62: =IF(C62="","",SUBTOTAL(3,$C$10:C62)) -> 8 | C62: الطالب 53 | D62: 527 | E62: 42 | F62: 43 | G62: 85 | H62: 34 | I62: 32 | J62: 66 | K62: 39 | L62: 40 | M62: 79 | N62: 42 | O62: 45 | P62: 87 | Q62: 32 | R62: 33 | S62: 65 | T62: 37 | U62: 34 | V62: 71 | W62: 20 | X62: 20 | Y62: 40 | Z62: 13 | AA62: 14 | AB62: 27 | AC62: 14 | AD62: 13 | AE62: 27 | AF62: انثى | AG62: 3/2 | AH62: =الجدول5[[#This Row],[عمود6]]+الجدول5[[#This Row],[عمود9]]+الجدول5[[#This Row],[عمود12]]+الجدول5[[#This Row],[عمود15]]+الجدول5[[#This Row],[عمود18]]+الجدول5[[#This Row],[عمود21]]+الجدول5[[#This Row],[عمود24]]+الجدول5[[#This Row],[عمود27]]+الجدول5[[#This Row],[عمود30]] -> 547 | AI62: =الجدول5[[#This Row],[عمود33]]/680*100 -> 80.44117647 | AJ62: =IF(الجدول5[[#This Row],[عمود33]]="","",evaltion(الجدول5[[#This Row],[عمود34]])) -> جيد جدا | AK62: 63 | AL62: =IF(AK62>10,"",atrteb(AK62)) ->  | AM62: =IF(AK62>10,"",IF(COUNTIF(AH$10:$AH62,AH62)=1,"","مكرر")) -> 
B63: =IF(C63="","",SUBTOTAL(3,$C$10:C63)) -> 9 | C63: الطالب 54 | D63: 528 | E63: 39 | F63: 43 | G63: 82 | H63: 25 | I63: 13 | J63: 38 | K63: 18 | L63: 11 | M63: 29 | N63: 41 | O63: 27 | P63: 68 | Q63: 25 | R63: 26 | S63: 51 | T63: 27 | U63: 15 | V63: 42 | W63: 19 | X63: 16 | Y63: 35 | Z63: 16 | AA63: 4 | AB63: 20 | AC63: 12 | AD63: 7 | AE63: 19 | AF63: انثى | AG63: 1/2 | AH63: =الجدول5[[#This Row],[عمود6]]+الجدول5[[#This Row],[عمود9]]+الجدول5[[#This Row],[عمود12]]+الجدول5[[#This Row],[عمود15]]+الجدول5[[#This Row],[عمود18]]+الجدول5[[#This Row],[عمود21]]+الجدول5[[#This Row],[عمود24]]+الجدول5[[#This Row],[عمود27]]+الجدول5[[#This Row],[عمود30]] -> 384 | AI63: =الجدول5[[#This Row],[عمود33]]/680*100 -> 56.47058824 | AJ63: =IF(الجدول5[[#This Row],[عمود33]]="","",evaltion(الجدول5[[#This Row],[عمود34]])) -> مقبول | AK63: 122 | AL63: =IF(AK63>10,"",atrteb(AK63)) ->  | AM63: =IF(AK63>10,"",IF(COUNTIF(AH$10:$AH63,AH63)=1,"","مكرر")) -> 
B64: =IF(C64="","",SUBTOTAL(3,$C$10:C64)) -> 9 | C64: الطالب 55 | D64: 528 | E64: 49 | F64: 47 | G64: 96 | H64: 48 | I64: 50 | J64: 98 | K64: 47 | L64: 50 | M64: 97 | N64: 50 | O64: 48 | P64: 98 | Q64: 40 | R64: 40 | S64: 80 | T64: 40 | U64: 39 | V64: 79 | W64: 20 | X64: 20 | Y64: 40 | Z64: 20 | AA64: 20 | AB64: 40 | AC64: 18 | AD64: 17 | AE64: 35 | AF64: انثى | AG64: 3/2 | AH64: =الجدول5[[#This Row],[عمود6]]+الجدول5[[#This Row],[عمود9]]+الجدول5[[#This Row],[عمود12]]+الجدول5[[#This Row],[عمود15]]+الجدول5[[#This Row],[عمود18]]+الجدول5[[#This Row],[عمود21]]+الجدول5[[#This Row],[عمود24]]+الجدول5[[#This Row],[عمود27]]+الجدول5[[#This Row],[عمود30]] -> 663 | AI64: =الجدول5[[#This Row],[عمود33]]/680*100 -> 97.5 | AJ64: =IF(الجدول5[[#This Row],[عمود33]]="","",evaltion(الجدول5[[#This Row],[عمود34]])) -> ممتاز | AK64: 7 | AL64: =IF(AK64>10,"",atrteb(AK64)) -> الترتيب السابع | AM64: =IF(AK64>10,"",IF(COUNTIF(AH$10:$AH64,AH64)=1,"","مكرر")) -> 
B65: =IF(C65="","",SUBTOTAL(3,$C$10:C65)) -> 9 | C65: الطالب 56 | D65: 529 | E65: 46 | F65: 47 | G65: 93 | H65: 42 | I65: 45 | J65: 87 | K65: 38 | L65: 22 | M65: 60 | N65: 45 | O65: 44 | P65: 89 | Q65: 35 | R65: 30 | S65: 65 | T65: 31 | U65: 31 | V65: 62 | W65: 19 | X65: 19 | Y65: 38 | Z65: 15 | AA65: 15 | AB65: 30 | AC65: 11 | AD65: 13 | AE65: 24 | AF65: ذكر | AG65: 1/2 | AH65: =الجدول5[[#This Row],[عمود6]]+الجدول5[[#This Row],[عمود9]]+الجدول5[[#This Row],[عمود12]]+الجدول5[[#This Row],[عمود15]]+الجدول5[[#This Row],[عمود18]]+الجدول5[[#This Row],[عمود21]]+الجدول5[[#This Row],[عمود24]]+الجدول5[[#This Row],[عمود27]]+الجدول5[[#This Row],[عمود30]] -> 548 | AI65: =الجدول5[[#This Row],[عمود33]]/680*100 -> 80.58823529 | AJ65: =IF(الجدول5[[#This Row],[عمود33]]="","",evaltion(الجدول5[[#This Row],[عمود34]])) -> جيد جدا | AK65: 62 | AL65: =IF(AK65>10,"",atrteb(AK65)) ->  | AM65: =IF(AK65>10,"",IF(COUNTIF(AH$10:$AH65,AH65)=1,"","مكرر")) -> 
B66: =IF(C66="","",SUBTOTAL(3,$C$10:C66)) -> 9 | C66: الطالب 57 | D66: 529 | E66: 50 | F66: 48 | G66: 98 | H66: 50 | I66: 50 | J66: 100 | K66: 50 | L66: 48 | M66: 98 | N66: 50 | O66: 50 | P66: 100 | Q66: 40 | R66: 40 | S66: 80 | T66: 40 | U66: 40 | V66: 80 | W66: 20 | X66: 20 | Y66: 40 | Z66: 20 | AA66: 19 | AB66: 39 | AC66: 19 | AD66: 18 | AE66: 37 | AF66: انثى | AG66: 3/2 | AH66: =الجدول5[[#This Row],[عمود6]]+الجدول5[[#This Row],[عمود9]]+الجدول5[[#This Row],[عمود12]]+الجدول5[[#This Row],[عمود15]]+الجدول5[[#This Row],[عمود18]]+الجدول5[[#This Row],[عمود21]]+الجدول5[[#This Row],[عمود24]]+الجدول5[[#This Row],[عمود27]]+الجدول5[[#This Row],[عمود30]] -> 672 | AI66: =الجدول5[[#This Row],[عمود33]]/680*100 -> 98.82352941 | AJ66: =IF(الجدول5[[#This Row],[عمود33]]="","",evaltion(الجدول5[[#This Row],[عمود34]])) -> ممتاز | AK66: 2 | AL66: =IF(AK66>10,"",atrteb(AK66)) -> الترتيب الثاني | AM66: =IF(AK66>10,"",IF(COUNTIF(AH$10:$AH66,AH66)=1,"","مكرر")) -> 
B67: =IF(C67="","",SUBTOTAL(3,$C$10:C67)) -> 9 | C67: الطالب 58 | D67: 530 | E67: 43 | F67: 39 | G67: 82 | H67: 36 | I67: 22 | J67: 58 | K67: 30 | L67: 14 | M67: 44 | N67: 46 | O67: 26 | P67: 72 | Q67: 22 | R67: 33 | S67: 55 | T67: 32 | U67: 13 | V67: 45 | W67: 13 | X67: 16 | Y67: 29 | Z67: 19 | AA67: 1 | AB67: 20 | AC67: 11 | AD67: 5 | AE67: 16 | AF67: انثى | AG67: 2/2 | AH67: =الجدول5[[#This Row],[عمود6]]+الجدول5[[#This Row],[عمود9]]+الجدول5[[#This Row],[عمود12]]+الجدول5[[#This Row],[عمود15]]+الجدول5[[#This Row],[عمود18]]+الجدول5[[#This Row],[عمود21]]+الجدول5[[#This Row],[عمود24]]+الجدول5[[#This Row],[عمود27]]+الجدول5[[#This Row],[عمود30]] -> 421 | AI67: =الجدول5[[#This Row],[عمود33]]/680*100 -> 61.91176471 | AJ67: =IF(الجدول5[[#This Row],[عمود33]]="","",evaltion(الجدول5[[#This Row],[عمود34]])) -> مقبول | AK67: 108 | AL67: =IF(AK67>10,"",atrteb(AK67)) ->  | AM67: =IF(AK67>10,"",IF(COUNTIF(AH$10:$AH67,AH67)=1,"","مكرر")) -> 
B68: =IF(C68="","",SUBTOTAL(3,$C$10:C68)) -> 9 | C68: الطالب 59 | D68: 530 | E68: 45 | F68: 43 | G68: 88 | H68: 43 | I68: 22 | J68: 65 | K68: 35 | L68: 29 | M68: 64 | N68: 43 | O68: 41 | P68: 84 | Q68: 29 | R68: 31 | S68: 60 | T68: 36 | U68: 32 | V68: 68 | W68: 17 | X68: 18 | Y68: 35 | Z68: 20 | AA68: 8 | AB68: 28 | AC68: 9 | AD68: 7 | AE68: 16 | AF68: انثى | AG68: 4/2 | AH68: =الجدول5[[#This Row],[عمود6]]+الجدول5[[#This Row],[عمود9]]+الجدول5[[#This Row],[عمود12]]+الجدول5[[#This Row],[عمود15]]+الجدول5[[#This Row],[عمود18]]+الجدول5[[#This Row],[عمود21]]+الجدول5[[#This Row],[عمود24]]+الجدول5[[#This Row],[عمود27]]+الجدول5[[#This Row],[عمود30]] -> 508 | AI68: =الجدول5[[#This Row],[عمود33]]/680*100 -> 74.70588235 | AJ68: =IF(الجدول5[[#This Row],[عمود33]]="","",evaltion(الجدول5[[#This Row],[عمود34]])) -> جيد فقط | AK68: 79 | AL68: =IF(AK68>10,"",atrteb(AK68)) ->  | AM68: =IF(AK68>10,"",IF(COUNTIF(AH$10:$AH68,AH68)=1,"","مكرر")) -> 
B69: =IF(C69="","",SUBTOTAL(3,$C$10:C69)) -> 9 | C69: الطالب 60 | D69: 531 | E69: 48 | F69: 48 | G69: 96 | H69: 49 | I69: 40 | J69: 89 | K69: 47 | L69: 46 | M69: 93 | N69: 50 | O69: 46 | P69: 96 | Q69: 38 | R69: 40 | S69: 78 | T69: 40 | U69: 37 | V69: 77 | W69: 20 | X69: 20 | Y69: 40 | Z69: 16 | AA69: 9 | AB69: 25 | AC69: 15 | AD69: 13 | AE69: 28 | AF69: ذكر | AG69: 4/2 | AH69: =الجدول5[[#This Row],[عمود6]]+الجدول5[[#This Row],[عمود9]]+الجدول5[[#This Row],[عمود12]]+الجدول5[[#This Row],[عمود15]]+الجدول5[[#This Row],[عمود18]]+الجدول5[[#This Row],[عمود21]]+الجدول5[[#This Row],[عمود24]]+الجدول5[[#This Row],[عمود27]]+الجدول5[[#This Row],[عمود30]] -> 622 | AI69: =الجدول5[[#This Row],[عمود33]]/680*100 -> 91.47058824 | AJ69: =IF(الجدول5[[#This Row],[عمود33]]="","",evaltion(الجدول5[[#This Row],[عمود34]])) -> ممتاز | AK69: 26 | AL69: =IF(AK69>10,"",atrteb(AK69)) ->  | AM69: =IF(AK69>10,"",IF(COUNTIF(AH$10:$AH69,AH69)=1,"","مكرر")) -> 
B70: =IF(C70="","",SUBTOTAL(3,$C$10:C70)) -> 9 | C70: الطالب 61 | D70: 531 | E70: 43 | F70: 41 | G70: 84 | H70: 33 | I70: 21 | J70: 54 | K70: 42 | L70: 43 | M70: 85 | N70: 43 | O70: 35 | P70: 78 | Q70: 31 | R70: 34 | S70: 65 | T70: 38 | U70: 30 | V70: 68 | W70: 17 | X70: 19 | Y70: 36 | Z70: 20 | AA70: 13 | AB70: 33 | AC70: 13 | AD70: 15 | AE70: 28 | AF70: انثى | AG70: 4/2 | AH70: =الجدول5[[#This Row],[عمود6]]+الجدول5[[#This Row],[عمود9]]+الجدول5[[#This Row],[عمود12]]+الجدول5[[#This Row],[عمود15]]+الجدول5[[#This Row],[عمود18]]+الجدول5[[#This Row],[عمود21]]+الجدول5[[#This Row],[عمود24]]+الجدول5[[#This Row],[عمود27]]+الجدول5[[#This Row],[عمود30]] -> 531 | AI70: =الجدول5[[#This Row],[عمود33]]/680*100 -> 78.08823529 | AJ70: =IF(الجدول5[[#This Row],[عمود33]]="","",evaltion(الجدول5[[#This Row],[عمود34]])) -> جيد جدا | AK70: 70 | AL70: =IF(AK70>10,"",atrteb(AK70)) ->  | AM70: =IF(AK70>10,"",IF(COUNTIF(AH$10:$AH70,AH70)=1,"","مكرر")) -> 
B71: =IF(C71="","",SUBTOTAL(3,$C$10:C71)) -> 10 | C71: الطالب 62 | D71: 532 | E71: 48 | F71: 48 | G71: 96 | H71: 40 | I71: 36 | J71: 76 | K71: 39 | L71: 35 | M71: 74 | N71: 44 | O71: 39 | P71: 83 | Q71: 35 | R71: 34 | S71: 69 | T71: 34 | U71: 30 | V71: 64 | W71: 19 | X71: 19 | Y71: 38 | Z71: 18 | AA71: 11 | AB71: 29 | AC71: 15 | AD71: 14 | AE71: 29 | AF71: انثى | AG71: 1/2 | AH71: =الجدول5[[#This Row],[عمود6]]+الجدول5[[#This Row],[عمود9]]+الجدول5[[#This Row],[عمود12]]+الجدول5[[#This Row],[عمود15]]+الجدول5[[#This Row],[عمود18]]+الجدول5[[#This Row],[عمود21]]+الجدول5[[#This Row],[عمود24]]+الجدول5[[#This Row],[عمود27]]+الجدول5[[#This Row],[عمود30]] -> 558 | AI71: =الجدول5[[#This Row],[عمود33]]/680*100 -> 82.05882353 | AJ71: =IF(الجدول5[[#This Row],[عمود33]]="","",evaltion(الجدول5[[#This Row],[عمود34]])) -> جيد جدا | AK71: 57 | AL71: =IF(AK71>10,"",atrteb(AK71)) ->  | AM71: =IF(AK71>10,"",IF(COUNTIF(AH$10:$AH71,AH71)=1,"","مكرر")) -> 
B72: =IF(C72="","",SUBTOTAL(3,$C$10:C72)) -> 10 | C72: الطالب 63 | D72: 532 | E72: 46 | F72: 40 | G72: 86 | H72: 34 | I72: 27 | J72: 61 | K72: 36 | L72: 18 | M72: 54 | N72: 46 | O72: 33 | P72: 79 | Q72: 27 | R72: 29 | S72: 56 | T72: 32 | U72: 16 | V72: 48 | W72: 14 | X72: 13 | Y72: 27 | Z72: 17 | AA72: 7 | AB72: 24 | AC72: 13 | AD72: 10 | AE72: 23 | AF72: انثى | AG72: 2/2 | AH72: =الجدول5[[#This Row],[عمود6]]+الجدول5[[#This Row],[عمود9]]+الجدول5[[#This Row],[عمود12]]+الجدول5[[#This Row],[عمود15]]+الجدول5[[#This Row],[عمود18]]+الجدول5[[#This Row],[عمود21]]+الجدول5[[#This Row],[عمود24]]+الجدول5[[#This Row],[عمود27]]+الجدول5[[#This Row],[عمود30]] -> 458 | AI72: =الجدول5[[#This Row],[عمود33]]/680*100 -> 67.35294118 | AJ72: =IF(الجدول5[[#This Row],[عمود33]]="","",evaltion(الجدول5[[#This Row],[عمود34]])) -> جيد فقط | AK72: 97 | AL72: =IF(AK72>10,"",atrteb(AK72)) ->  | AM72: =IF(AK72>10,"",IF(COUNTIF(AH$10:$AH72,AH72)=1,"","مكرر")) -> 
B73: =IF(C73="","",SUBTOTAL(3,$C$10:C73)) -> 10 | C73: الطالب 64 | D73: 533 | E73: 31 | F73: 22 | G73: 53 | H73: 31 | I73: 20 | J73: 51 | K73: 41 | L73: 29 | M73: 70 | N73: 33 | O73: 30 | P73: 63 | Q73: 20 | R73: 23 | S73: 43 | T73: 31 | U73: 21 | V73: 52 | W73: 14 | X73: 9 | Y73: 23 | Z73: 11 | AA73: 7 | AB73: 18 | AC73: 13 | AD73: 10 | AE73: 23 | AF73: ذكر | AG73: 3/2 | AH73: =الجدول5[[#This Row],[عمود6]]+الجدول5[[#This Row],[عمود9]]+الجدول5[[#This Row],[عمود12]]+الجدول5[[#This Row],[عمود15]]+الجدول5[[#This Row],[عمود18]]+الجدول5[[#This Row],[عمود21]]+الجدول5[[#This Row],[عمود24]]+الجدول5[[#This Row],[عمود27]]+الجدول5[[#This Row],[عمود30]] -> 396 | AI73: =الجدول5[[#This Row],[عمود33]]/680*100 -> 58.23529412 | AJ73: =IF(الجدول5[[#This Row],[عمود33]]="","",evaltion(الجدول5[[#This Row],[عمود34]])) -> مقبول | AK73: 119 | AL73: =IF(AK73>10,"",atrteb(AK73)) ->  | AM73: =IF(AK73>10,"",IF(COUNTIF(AH$10:$AH73,AH73)=1,"","مكرر")) -> 
B74: =IF(C74="","",SUBTOTAL(3,$C$10:C74)) -> 10 | C74: الطالب 65 | D74: 533 | E74: 48 | F74: 45 | G74: 93 | H74: 46 | I74: 40 | J74: 86 | K74: 48 | L74: 50 | M74: 98 | N74: 48 | O74: 44 | P74: 92 | Q74: 39 | R74: 40 | S74: 79 | T74: 39 | U74: 33 | V74: 72 | W74: 20 | X74: 20 | Y74: 40 | Z74: 16 | AA74: 14 | AB74: 30 | AC74: 17 | AD74: 18 | AE74: 35 | AF74: انثى | AG74: 3/2 | AH74: =الجدول5[[#This Row],[عمود6]]+الجدول5[[#This Row],[عمود9]]+الجدول5[[#This Row],[عمود12]]+الجدول5[[#This Row],[عمود15]]+الجدول5[[#This Row],[عمود18]]+الجدول5[[#This Row],[عمود21]]+الجدول5[[#This Row],[عمود24]]+الجدول5[[#This Row],[عمود27]]+الجدول5[[#This Row],[عمود30]] -> 625 | AI74: =الجدول5[[#This Row],[عمود33]]/680*100 -> 91.91176471 | AJ74: =IF(الجدول5[[#This Row],[عمود33]]="","",evaltion(الجدول5[[#This Row],[عمود34]])) -> ممتاز | AK74: 24 | AL74: =IF(AK74>10,"",atrteb(AK74)) ->  | AM74: =IF(AK74>10,"",IF(COUNTIF(AH$10:$AH74,AH74)=1,"","مكرر")) -> 
B75: =IF(C75="","",SUBTOTAL(3,$C$10:C75)) -> 10 | C75: الطالب 66 | D75: 534 | E75: 48 | F75: 47 | G75: 95 | H75: 42 | I75: 34 | J75: 76 | K75: 46 | L75: 48 | M75: 94 | N75: 48 | O75: 42 | P75: 90 | Q75: 36 | R75: 35 | S75: 71 | T75: 37 | U75: 38 | V75: 75 | W75: 20 | X75: 20 | Y75: 40 | Z75: 15 | AA75: 12 | AB75: 27 | AC75: 17 | AD75: 16 | AE75: 33 | AF75: انثى | AG75: 2/2 | AH75: =الجدول5[[#This Row],[عمود6]]+الجدول5[[#This Row],[عمود9]]+الجدول5[[#This Row],[عمود12]]+الجدول5[[#This Row],[عمود15]]+الجدول5[[#This Row],[عمود18]]+الجدول5[[#This Row],[عمود21]]+الجدول5[[#This Row],[عمود24]]+الجدول5[[#This Row],[عمود27]]+الجدول5[[#This Row],[عمود30]] -> 601 | AI75: =الجدول5[[#This Row],[عمود33]]/680*100 -> 88.38235294 | AJ75: =IF(الجدول5[[#This Row],[عمود33]]="","",evaltion(الجدول5[[#This Row],[عمود34]])) -> ممتاز | AK75: =RANK(AH75,$AH$10:$AH$300) -> 37 | AL75: =IF(AK75>10,"",atrteb(AK75)) ->  | AM75: =IF(AK75>10,"",IF(COUNTIF(AH$10:$AH75,AH75)=1,"","مكرر")) -> 
B76: =IF(C76="","",SUBTOTAL(3,$C$10:C76)) -> 10 | C76: الطالب 67 | D76: 534 | E76: 47 | F76: 47 | G76: 94 | H76: 40 | I76: 33 | J76: 73 | K76: 44 | L76: 47 | M76: 91 | N76: 49 | O76: 45 | P76: 94 | Q76: 36 | R76: 39 | S76: 75 | T76: 39 | U76: 37 | V76: 76 | W76: 20 | X76: 20 | Y76: 40 | Z76: 15 | AA76: 20 | AB76: 35 | AC76: 17 | AD76: 16 | AE76: 33 | AF76: انثى | AG76: 3/2 | AH76: =الجدول5[[#This Row],[عمود6]]+الجدول5[[#This Row],[عمود9]]+الجدول5[[#This Row],[عمود12]]+الجدول5[[#This Row],[عمود15]]+الجدول5[[#This Row],[عمود18]]+الجدول5[[#This Row],[عمود21]]+الجدول5[[#This Row],[عمود24]]+الجدول5[[#This Row],[عمود27]]+الجدول5[[#This Row],[عمود30]] -> 611 | AI76: =الجدول5[[#This Row],[عمود33]]/680*100 -> 89.85294118 | AJ76: =IF(الجدول5[[#This Row],[عمود33]]="","",evaltion(الجدول5[[#This Row],[عمود34]])) -> ممتاز | AK76: 29 | AL76: =IF(AK76>10,"",atrteb(AK76)) ->  | AM76: =IF(AK76>10,"",IF(COUNTIF(AH$10:$AH76,AH76)=1,"","مكرر")) -> 
B77: =IF(C77="","",SUBTOTAL(3,$C$10:C77)) -> 10 | C77: الطالب 68 | D77: 535 | E77: 36 | F77: 33 | G77: 69 | H77: 32 | I77: 21 | J77: 53 | K77: 36 | L77: 28 | M77: 64 | N77: 38 | O77: 22 | P77: 60 | Q77: 20 | R77: 22 | S77: 42 | T77: 30 | U77: 22 | V77: 52 | W77: 20 | X77: 16 | Y77: 36 | Z77: 10 | AA77: 6 | AB77: 16 | AC77: 14 | AD77: 11 | AE77: 25 | AF77: ذكر | AG77: 3/2 | AH77: =الجدول5[[#This Row],[عمود6]]+الجدول5[[#This Row],[عمود9]]+الجدول5[[#This Row],[عمود12]]+الجدول5[[#This Row],[عمود15]]+الجدول5[[#This Row],[عمود18]]+الجدول5[[#This Row],[عمود21]]+الجدول5[[#This Row],[عمود24]]+الجدول5[[#This Row],[عمود27]]+الجدول5[[#This Row],[عمود30]] -> 417 | AI77: =الجدول5[[#This Row],[عمود33]]/680*100 -> 61.32352941 | AJ77: =IF(الجدول5[[#This Row],[عمود33]]="","",evaltion(الجدول5[[#This Row],[عمود34]])) -> مقبول | AK77: 110 | AL77: =IF(AK77>10,"",atrteb(AK77)) ->  | AM77: =IF(AK77>10,"",IF(COUNTIF(AH$10:$AH77,AH77)=1,"","مكرر")) -> 
B78: =IF(C78="","",SUBTOTAL(3,$C$10:C78)) -> 10 | C78: الطالب 69 | D78: 535 | E78: 48 | F78: 48 | G78: 96 | H78: 33 | I78: 38 | J78: 71 | K78: 42 | L78: 46 | M78: 88 | N78: 47 | O78: 44 | P78: 91 | Q78: 36 | R78: 38 | S78: 74 | T78: 36 | U78: 35 | V78: 71 | W78: 20 | X78: 20 | Y78: 40 | Z78: 18 | AA78: 13 | AB78: 31 | AC78: 13 | AD78: 11 | AE78: 24 | AF78: انثى | AG78: 2/2 | AH78: =الجدول5[[#This Row],[عمود6]]+الجدول5[[#This Row],[عمود9]]+الجدول5[[#This Row],[عمود12]]+الجدول5[[#This Row],[عمود15]]+الجدول5[[#This Row],[عمود18]]+الجدول5[[#This Row],[عمود21]]+الجدول5[[#This Row],[عمود24]]+الجدول5[[#This Row],[عمود27]]+الجدول5[[#This Row],[عمود30]] -> 586 | AI78: =الجدول5[[#This Row],[عمود33]]/680*100 -> 86.17647059 | AJ78: =IF(الجدول5[[#This Row],[عمود33]]="","",evaltion(الجدول5[[#This Row],[عمود34]])) -> ممتاز | AK78: 42 | AL78: =IF(AK78>10,"",atrteb(AK78)) ->  | AM78: =IF(AK78>10,"",IF(COUNTIF(AH$10:$AH78,AH78)=1,"","مكرر")) -> 
B79: =IF(C79="","",SUBTOTAL(3,$C$10:C79)) -> 10 | C79: الطالب 70 | D79: 536 | E79: 44 | F79: 46 | G79: 90 | H79: 43 | I79: 38 | J79: 81 | K79: 48 | L79: 38 | M79: 86 | N79: 47 | O79: 47 | P79: 94 | Q79: 31 | R79: 35 | S79: 66 | T79: 39 | U79: 33 | V79: 72 | W79: 17 | X79: 18 | Y79: 35 | Z79: 16 | AA79: 11 | AB79: 27 | AC79: 17 | AD79: 14 | AE79: 31 | AF79: انثى | AG79: 3/2 | AH79: =الجدول5[[#This Row],[عمود6]]+الجدول5[[#This Row],[عمود9]]+الجدول5[[#This Row],[عمود12]]+الجدول5[[#This Row],[عمود15]]+الجدول5[[#This Row],[عمود18]]+الجدول5[[#This Row],[عمود21]]+الجدول5[[#This Row],[عمود24]]+الجدول5[[#This Row],[عمود27]]+الجدول5[[#This Row],[عمود30]] -> 582 | AI79: =الجدول5[[#This Row],[عمود33]]/680*100 -> 85.58823529 | AJ79: =IF(الجدول5[[#This Row],[عمود33]]="","",evaltion(الجدول5[[#This Row],[عمود34]])) -> ممتاز | AK79: 44 | AL79: =IF(AK79>10,"",atrteb(AK79)) ->  | AM79: =IF(AK79>10,"",IF(COUNTIF(AH$10:$AH79,AH79)=1,"","مكرر")) -> 
B80: =IF(C80="","",SUBTOTAL(3,$C$10:C80)) -> 10 | C80: الطالب 71 | D80: 536 | E80: 48 | F80: 50 | G80: 98 | H80: 41 | I80: 36 | J80: 77 | K80: 46 | L80: 50 | M80: 96 | N80: 48 | O80: 45 | P80: 93 | Q80: 38 | R80: 38 | S80: 76 | T80: 40 | U80: 36 | V80: 76 | W80: 20 | X80: 20 | Y80: 40 | Z80: 20 | AA80: 18 | AB80: 38 | AC80: 17 | AD80: 18 | AE80: 35 | AF80: انثى | AG80: 4/2 | AH80: =الجدول5[[#This Row],[عمود6]]+الجدول5[[#This Row],[عمود9]]+الجدول5[[#This Row],[عمود12]]+الجدول5[[#This Row],[عمود15]]+الجدول5[[#This Row],[عمود18]]+الجدول5[[#This Row],[عمود21]]+الجدول5[[#This Row],[عمود24]]+الجدول5[[#This Row],[عمود27]]+الجدول5[[#This Row],[عمود30]] -> 629 | AI80: =الجدول5[[#This Row],[عمود33]]/680*100 -> 92.5 | AJ80: =IF(الجدول5[[#This Row],[عمود33]]="","",evaltion(الجدول5[[#This Row],[عمود34]])) -> ممتاز | AK80: 23 | AL80: =IF(AK80>10,"",atrteb(AK80)) ->  | AM80: =IF(AK80>10,"",IF(COUNTIF(AH$10:$AH80,AH80)=1,"","مكرر")) -> 
B81: =IF(C81="","",SUBTOTAL(3,$C$10:C81)) -> 10 | C81: الطالب 72 | D81: 537 | E81: 46 | F81: 48 | G81: 94 | H81: 40 | I81: 43 | J81: 83 | K81: 45 | L81: 43 | M81: 88 | N81: 48 | O81: 48 | P81: 96 | Q81: 37 | R81: 31 | S81: 68 | T81: 32 | U81: 34 | V81: 66 | W81: 20 | X81: 20 | Y81: 40 | Z81: 20 | AA81: 19 | AB81: 39 | AC81: 13 | AD81: 15 | AE81: 28 | AF81: ذكر | AG81: 1/2 | AH81: =الجدول5[[#This Row],[عمود6]]+الجدول5[[#This Row],[عمود9]]+الجدول5[[#This Row],[عمود12]]+الجدول5[[#This Row],[عمود15]]+الجدول5[[#This Row],[عمود18]]+الجدول5[[#This Row],[عمود21]]+الجدول5[[#This Row],[عمود24]]+الجدول5[[#This Row],[عمود27]]+الجدول5[[#This Row],[عمود30]] -> 602 | AI81: =الجدول5[[#This Row],[عمود33]]/680*100 -> 88.52941176 | AJ81: =IF(الجدول5[[#This Row],[عمود33]]="","",evaltion(الجدول5[[#This Row],[عمود34]])) -> ممتاز | AK81: 35 | AL81: =IF(AK81>10,"",atrteb(AK81)) ->  | AM81: =IF(AK81>10,"",IF(COUNTIF(AH$10:$AH81,AH81)=1,"","مكرر")) -> 
B82: =IF(C82="","",SUBTOTAL(3,$C$10:C82)) -> 10 | C82: الطالب 73 | D82: 537 | E82: 49 | F82: 42 | G82: 91 | H82: 35 | I82: 28 | J82: 63 | K82: 40 | L82: 31 | M82: 71 | N82: 48 | O82: 45 | P82: 93 | Q82: 36 | R82: 38 | S82: 74 | T82: 39 | U82: 35 | V82: 74 | W82: 19 | X82: 19 | Y82: 38 | Z82: 15 | AA82: 12 | AB82: 27 | AC82: 15 | AD82: 15 | AE82: 30 | AF82: انثى | AG82: 4/2 | AH82: =الجدول5[[#This Row],[عمود6]]+الجدول5[[#This Row],[عمود9]]+الجدول5[[#This Row],[عمود12]]+الجدول5[[#This Row],[عمود15]]+الجدول5[[#This Row],[عمود18]]+الجدول5[[#This Row],[عمود21]]+الجدول5[[#This Row],[عمود24]]+الجدول5[[#This Row],[عمود27]]+الجدول5[[#This Row],[عمود30]] -> 561 | AI82: =الجدول5[[#This Row],[عمود33]]/680*100 -> 82.5 | AJ82: =IF(الجدول5[[#This Row],[عمود33]]="","",evaltion(الجدول5[[#This Row],[عمود34]])) -> جيد جدا | AK82: 56 | AL82: =IF(AK82>10,"",atrteb(AK82)) ->  | AM82: =IF(AK82>10,"",IF(COUNTIF(AH$10:$AH82,AH82)=1,"","مكرر")) -> 
B83: =IF(C83="","",SUBTOTAL(3,$C$10:C83)) -> 10 | C83: الطالب 74 | D83: 538 | E83: 49 | F83: 49 | G83: 98 | H83: 50 | I83: 50 | J83: 100 | K83: 50 | L83: 50 | M83: 100 | N83: 50 | O83: 50 | P83: 100 | Q83: 40 | R83: 40 | S83: 80 | T83: 40 | U83: 40 | V83: 80 | W83: 15 | X83: 20 | Y83: 35 | Z83: 19 | AA83: 20 | AB83: 39 | AC83: 19 | AD83: 18 | AE83: 37 | AF83: انثى | AG83: 3/2 | AH83: =الجدول5[[#This Row],[عمود6]]+الجدول5[[#This Row],[عمود9]]+الجدول5[[#This Row],[عمود12]]+الجدول5[[#This Row],[عمود15]]+الجدول5[[#This Row],[عمود18]]+الجدول5[[#This Row],[عمود21]]+الجدول5[[#This Row],[عمود24]]+الجدول5[[#This Row],[عمود27]]+الجدول5[[#This Row],[عمود30]] -> 669 | AI83: =الجدول5[[#This Row],[عمود33]]/680*100 -> 98.38235294 | AJ83: =IF(الجدول5[[#This Row],[عمود33]]="","",evaltion(الجدول5[[#This Row],[عمود34]])) -> ممتاز | AK83: 4 | AL83: =IF(AK83>10,"",atrteb(AK83)) -> الترتيب الرابع | AM83: =IF(AK83>10,"",IF(COUNTIF(AH$10:$AH83,AH83)=1,"","مكرر")) -> 
B84: =IF(C84="","",SUBTOTAL(3,$C$10:C84)) -> 11 | C84: الطالب 75 | D84: 538 | E84: 47 | F84: 42 | G84: 89 | H84: 43 | I84: 33 | J84: 76 | K84: 39 | L84: 31 | M84: 70 | N84: 48 | O84: 31 | P84: 79 | Q84: 32 | R84: 28 | S84: 60 | T84: 35 | U84: 24 | V84: 59 | W84: 16 | X84: 20 | Y84: 36 | Z84: 18 | AA84: 12 | AB84: 30 | AC84: 12 | AD84: 9 | AE84: 21 | AF84: انثى | AG84: 1/2 | AH84: =الجدول5[[#This Row],[عمود6]]+الجدول5[[#This Row],[عمود9]]+الجدول5[[#This Row],[عمود12]]+الجدول5[[#This Row],[عمود15]]+الجدول5[[#This Row],[عمود18]]+الجدول5[[#This Row],[عمود21]]+الجدول5[[#This Row],[عمود24]]+الجدول5[[#This Row],[عمود27]]+الجدول5[[#This Row],[عمود30]] -> 520 | AI84: =الجدول5[[#This Row],[عمود33]]/680*100 -> 76.47058824 | AJ84: =IF(الجدول5[[#This Row],[عمود33]]="","",evaltion(الجدول5[[#This Row],[عمود34]])) -> جيد جدا | AK84: 76 | AL84: =IF(AK84>10,"",atrteb(AK84)) ->  | AM84: =IF(AK84>10,"",IF(COUNTIF(AH$10:$AH84,AH84)=1,"","مكرر")) -> 
B85: =IF(C85="","",SUBTOTAL(3,$C$10:C85)) -> 11 | C85: الطالب 76 | D85: 539 | E85: 36 | F85: 24 | G85: 60 | H85: 36 | I85: 21 | J85: 57 | K85: 30 | L85: 31 | M85: 61 | N85: 41 | O85: 25 | P85: 66 | Q85: 28 | R85: 24 | S85: 52 | T85: 32 | U85: 19 | V85: 51 | W85: 12 | X85: 16 | Y85: 28 | Z85: 17 | AA85: 10 | AB85: 27 | AC85: 12 | AD85: 7 | AE85: 19 | AF85: ذكر | AG85: 1/2 | AH85: =الجدول5[[#This Row],[عمود6]]+الجدول5[[#This Row],[عمود9]]+الجدول5[[#This Row],[عمود12]]+الجدول5[[#This Row],[عمود15]]+الجدول5[[#This Row],[عمود18]]+الجدول5[[#This Row],[عمود21]]+الجدول5[[#This Row],[عمود24]]+الجدول5[[#This Row],[عمود27]]+الجدول5[[#This Row],[عمود30]] -> 421 | AI85: =الجدول5[[#This Row],[عمود33]]/680*100 -> 61.91176471 | AJ85: =IF(الجدول5[[#This Row],[عمود33]]="","",evaltion(الجدول5[[#This Row],[عمود34]])) -> مقبول | AK85: 108 | AL85: =IF(AK85>10,"",atrteb(AK85)) ->  | AM85: =IF(AK85>10,"",IF(COUNTIF(AH$10:$AH85,AH85)=1,"","مكرر")) -> 
B86: =IF(C86="","",SUBTOTAL(3,$C$10:C86)) -> 11 | C86: الطالب 77 | D86: 539 | E86: 48 | F86: 49 | G86: 97 | H86: 36 | I86: 35 | J86: 71 | K86: 45 | L86: 40 | M86: 85 | N86: 46 | O86: 37 | P86: 83 | Q86: 37 | R86: 35 | S86: 72 | T86: 39 | U86: 37 | V86: 76 | W86: 19 | X86: 19 | Y86: 38 | Z86: 18 | AA86: 9 | AB86: 27 | AC86: 15 | AD86: 16 | AE86: 31 | AF86: انثى | AG86: 2/2 | AH86: =الجدول5[[#This Row],[عمود6]]+الجدول5[[#This Row],[عمود9]]+الجدول5[[#This Row],[عمود12]]+الجدول5[[#This Row],[عمود15]]+الجدول5[[#This Row],[عمود18]]+الجدول5[[#This Row],[عمود21]]+الجدول5[[#This Row],[عمود24]]+الجدول5[[#This Row],[عمود27]]+الجدول5[[#This Row],[عمود30]] -> 580 | AI86: =الجدول5[[#This Row],[عمود33]]/680*100 -> 85.29411765 | AJ86: =IF(الجدول5[[#This Row],[عمود33]]="","",evaltion(الجدول5[[#This Row],[عمود34]])) -> ممتاز | AK86: 45 | AL86: =IF(AK86>10,"",atrteb(AK86)) ->  | AM86: =IF(AK86>10,"",IF(COUNTIF(AH$10:$AH86,AH86)=1,"","مكرر")) -> 
B87: =IF(C87="","",SUBTOTAL(3,$C$10:C87)) -> 11 | C87: الطالب 78 | D87: 540 | E87: 48 | F87: 48 | G87: 96 | H87: 47 | I87: 47 | J87: 94 | K87: 50 | L87: 50 | M87: 100 | N87: 50 | O87: 50 | P87: 100 | Q87: 39 | R87: 39 | S87: 78 | T87: 40 | U87: 40 | V87: 80 | W87: 19 | X87: 19 | Y87: 38 | Z87: 20 | AA87: 18 | AB87: 38 | AC87: 18 | AD87: 17 | AE87: 35 | AF87: انثى | AG87: 2/2 | AH87: =الجدول5[[#This Row],[عمود6]]+الجدول5[[#This Row],[عمود9]]+الجدول5[[#This Row],[عمود12]]+الجدول5[[#This Row],[عمود15]]+الجدول5[[#This Row],[عمود18]]+الجدول5[[#This Row],[عمود21]]+الجدول5[[#This Row],[عمود24]]+الجدول5[[#This Row],[عمود27]]+الجدول5[[#This Row],[عمود30]] -> 659 | AI87: =الجدول5[[#This Row],[عمود33]]/680*100 -> 96.91176471 | AJ87: =IF(الجدول5[[#This Row],[عمود33]]="","",evaltion(الجدول5[[#This Row],[عمود34]])) -> ممتاز | AK87: 9 | AL87: =IF(AK87>10,"",atrteb(AK87)) -> الترتيب التاسع | AM87: =IF(AK87>10,"",IF(COUNTIF(AH$10:$AH87,AH87)=1,"","مكرر")) -> مكرر
B88: =IF(C88="","",SUBTOTAL(3,$C$10:C88)) -> 11 | C88: الطالب 79 | D88: 540 | E88: 47 | F88: 47 | G88: 94 | H88: 39 | I88: 33 | J88: 72 | K88: 33 | L88: 36 | M88: 69 | N88: 48 | O88: 42 | P88: 90 | Q88: 35 | R88: 34 | S88: 69 | T88: 39 | U88: 32 | V88: 71 | W88: 20 | X88: 19 | Y88: 39 | Z88: 20 | AA88: 6 | AB88: 26 | AC88: 13 | AD88: 12 | AE88: 25 | AF88: انثى | AG88: 2/2 | AH88: =الجدول5[[#This Row],[عمود6]]+الجدول5[[#This Row],[عمود9]]+الجدول5[[#This Row],[عمود12]]+الجدول5[[#This Row],[عمود15]]+الجدول5[[#This Row],[عمود18]]+الجدول5[[#This Row],[عمود21]]+الجدول5[[#This Row],[عمود24]]+الجدول5[[#This Row],[عمود27]]+الجدول5[[#This Row],[عمود30]] -> 555 | AI88: =الجدول5[[#This Row],[عمود33]]/680*100 -> 81.61764706 | AJ88: =IF(الجدول5[[#This Row],[عمود33]]="","",evaltion(الجدول5[[#This Row],[عمود34]])) -> جيد جدا | AK88: 60 | AL88: =IF(AK88>10,"",atrteb(AK88)) ->  | AM88: =IF(AK88>10,"",IF(COUNTIF(AH$10:$AH88,AH88)=1,"","مكرر")) -> 
B89: =IF(C89="","",SUBTOTAL(3,$C$10:C89)) -> 11 | C89: الطالب 80 | D89: 541 | E89: 42 | F89: 38 | G89: 80 | H89: 33 | I89: 30 | J89: 63 | K89: 34 | L89: 27 | M89: 61 | N89: 41 | O89: 40 | P89: 81 | Q89: 29 | R89: 34 | S89: 63 | T89: 33 | U89: 24 | V89: 57 | W89: 19 | X89: 17 | Y89: 36 | Z89: 12 | AA89: 13 | AB89: 25 | AC89: 12 | AD89: 7 | AE89: 19 | AF89: ذكر | AG89: 3/2 | AH89: =الجدول5[[#This Row],[عمود6]]+الجدول5[[#This Row],[عمود9]]+الجدول5[[#This Row],[عمود12]]+الجدول5[[#This Row],[عمود15]]+الجدول5[[#This Row],[عمود18]]+الجدول5[[#This Row],[عمود21]]+الجدول5[[#This Row],[عمود24]]+الجدول5[[#This Row],[عمود27]]+الجدول5[[#This Row],[عمود30]] -> 485 | AI89: =الجدول5[[#This Row],[عمود33]]/680*100 -> 71.32352941 | AJ89: =IF(الجدول5[[#This Row],[عمود33]]="","",evaltion(الجدول5[[#This Row],[عمود34]])) -> جيد فقط | AK89: 89 | AL89: =IF(AK89>10,"",atrteb(AK89)) ->  | AM89: =IF(AK89>10,"",IF(COUNTIF(AH$10:$AH89,AH89)=1,"","مكرر")) -> 
B90: =IF(C90="","",SUBTOTAL(3,$C$10:C90)) -> 11 | C90: الطالب 81 | D90: 541 | E90: 39 | F90: 26 | G90: 65 | H90: 27 | I90: 18 | J90: 45 | K90: 33 | L90: 25 | M90: 58 | N90: 39 | O90: 26 | P90: 65 | Q90: 16 | R90: 27 | S90: 43 | T90: 29 | U90: 16 | V90: 45 | W90: 16 | X90: 19 | Y90: 35 | Z90: 13 | AA90: 3 | AB90: 16 | AC90: 12 | AD90: 7 | AE90: 19 | AF90: انثى | AG90: 3/2 | AH90: =الجدول5[[#This Row],[عمود6]]+الجدول5[[#This Row],[عمود9]]+الجدول5[[#This Row],[عمود12]]+الجدول5[[#This Row],[عمود15]]+الجدول5[[#This Row],[عمود18]]+الجدول5[[#This Row],[عمود21]]+الجدول5[[#This Row],[عمود24]]+الجدول5[[#This Row],[عمود27]]+الجدول5[[#This Row],[عمود30]] -> 391 | AI90: =الجدول5[[#This Row],[عمود33]]/680*100 -> 57.5 | AJ90: =IF(الجدول5[[#This Row],[عمود33]]="","",evaltion(الجدول5[[#This Row],[عمود34]])) -> مقبول | AK90: 121 | AL90: =IF(AK90>10,"",atrteb(AK90)) ->  | AM90: =IF(AK90>10,"",IF(COUNTIF(AH$10:$AH90,AH90)=1,"","مكرر")) -> 
B91: =IF(C91="","",SUBTOTAL(3,$C$10:C91)) -> 12 | C91: الطالب 82 | D91: 542 | E91: 48 | F91: 44 | G91: 92 | H91: 44 | I91: 37 | J91: 81 | K91: 49 | L91: 47 | M91: 96 | N91: 49 | O91: 42 | P91: 91 | Q91: 38 | R91: 29 | S91: 67 | T91: 35 | U91: 28 | V91: 63 | W91: 19 | X91: 19 | Y91: 38 | Z91: 19 | AA91: 13 | AB91: 32 | AC91: 16 | AD91: 12 | AE91: 28 | AF91: انثى | AG91: 1/2 | AH91: =الجدول5[[#This Row],[عمود6]]+الجدول5[[#This Row],[عمود9]]+الجدول5[[#This Row],[عمود12]]+الجدول5[[#This Row],[عمود15]]+الجدول5[[#This Row],[عمود18]]+الجدول5[[#This Row],[عمود21]]+الجدول5[[#This Row],[عمود24]]+الجدول5[[#This Row],[عمود27]]+الجدول5[[#This Row],[عمود30]] -> 588 | AI91: =الجدول5[[#This Row],[عمود33]]/680*100 -> 86.47058824 | AJ91: =IF(الجدول5[[#This Row],[عمود33]]="","",evaltion(الجدول5[[#This Row],[عمود34]])) -> ممتاز | AK91: 40 | AL91: =IF(AK91>10,"",atrteb(AK91)) ->  | AM91: =IF(AK91>10,"",IF(COUNTIF(AH$10:$AH91,AH91)=1,"","مكرر")) -> 
B92: =IF(C92="","",SUBTOTAL(3,$C$10:C92)) -> 12 | C92: الطالب 83 | D92: 542 | E92: 48 | F92: 49 | G92: 97 | H92: 46 | I92: 36 | J92: 82 | K92: 42 | L92: 44 | M92: 86 | N92: 47 | O92: 44 | P92: 91 | Q92: 39 | R92: 39 | S92: 78 | T92: 39 | U92: 40 | V92: 79 | W92: 20 | X92: 19 | Y92: 39 | Z92: 20 | AA92: 15 | AB92: 35 | AC92: 17 | AD92: 16 | AE92: 33 | AF92: انثى | AG92: 4/2 | AH92: =الجدول5[[#This Row],[عمود6]]+الجدول5[[#This Row],[عمود9]]+الجدول5[[#This Row],[عمود12]]+الجدول5[[#This Row],[عمود15]]+الجدول5[[#This Row],[عمود18]]+الجدول5[[#This Row],[عمود21]]+الجدول5[[#This Row],[عمود24]]+الجدول5[[#This Row],[عمود27]]+الجدول5[[#This Row],[عمود30]] -> 620 | AI92: =الجدول5[[#This Row],[عمود33]]/680*100 -> 91.17647059 | AJ92: =IF(الجدول5[[#This Row],[عمود33]]="","",evaltion(الجدول5[[#This Row],[عمود34]])) -> ممتاز | AK92: 27 | AL92: =IF(AK92>10,"",atrteb(AK92)) ->  | AM92: =IF(AK92>10,"",IF(COUNTIF(AH$10:$AH92,AH92)=1,"","مكرر")) -> 
B93: =IF(C93="","",SUBTOTAL(3,$C$10:C93)) -> 12 | C93: الطالب 84 | D93: 543 | E93: 45 | F93: 46 | G93: 91 | H93: 41 | I93: 42 | J93: 83 | K93: 38 | L93: 40 | M93: 78 | N93: 47 | O93: 38 | P93: 85 | Q93: 36 | R93: 39 | S93: 75 | T93: 36 | U93: 31 | V93: 67 | W93: 17 | X93: 17 | Y93: 34 | Z93: 18 | AA93: 13 | AB93: 31 | AC93: 16 | AD93: 14 | AE93: 30 | AF93: ذكر | AG93: 1/2 | AH93: =الجدول5[[#This Row],[عمود6]]+الجدول5[[#This Row],[عمود9]]+الجدول5[[#This Row],[عمود12]]+الجدول5[[#This Row],[عمود15]]+الجدول5[[#This Row],[عمود18]]+الجدول5[[#This Row],[عمود21]]+الجدول5[[#This Row],[عمود24]]+الجدول5[[#This Row],[عمود27]]+الجدول5[[#This Row],[عمود30]] -> 574 | AI93: =الجدول5[[#This Row],[عمود33]]/680*100 -> 84.41176471 | AJ93: =IF(الجدول5[[#This Row],[عمود33]]="","",evaltion(الجدول5[[#This Row],[عمود34]])) -> جيد جدا | AK93: 50 | AL93: =IF(AK93>10,"",atrteb(AK93)) ->  | AM93: =IF(AK93>10,"",IF(COUNTIF(AH$10:$AH93,AH93)=1,"","مكرر")) -> 
B94: =IF(C94="","",SUBTOTAL(3,$C$10:C94)) -> 12 | C94: الطالب 85 | D94: 543 | E94: 44 | F94: 43 | G94: 87 | H94: 35 | I94: 33 | J94: 68 | K94: 42 | L94: 36 | M94: 78 | N94: 50 | O94: 43 | P94: 93 | Q94: 34 | R94: 36 | S94: 70 | T94: 39 | U94: 35 | V94: 74 | W94: 18 | X94: 20 | Y94: 38 | Z94: 13 | AA94: 10 | AB94: 23 | AC94: 15 | AD94: 16 | AE94: 31 | AF94: انثى | AG94: 4/2 | AH94: =الجدول5[[#This Row],[عمود6]]+الجدول5[[#This Row],[عمود9]]+الجدول5[[#This Row],[عمود12]]+الجدول5[[#This Row],[عمود15]]+الجدول5[[#This Row],[عمود18]]+الجدول5[[#This Row],[عمود21]]+الجدول5[[#This Row],[عمود24]]+الجدول5[[#This Row],[عمود27]]+الجدول5[[#This Row],[عمود30]] -> 562 | AI94: =الجدول5[[#This Row],[عمود33]]/680*100 -> 82.64705882 | AJ94: =IF(الجدول5[[#This Row],[عمود33]]="","",evaltion(الجدول5[[#This Row],[عمود34]])) -> جيد جدا | AK94: 54 | AL94: =IF(AK94>10,"",atrteb(AK94)) ->  | AM94: =IF(AK94>10,"",IF(COUNTIF(AH$10:$AH94,AH94)=1,"","مكرر")) -> 
B95: =IF(C95="","",SUBTOTAL(3,$C$10:C95)) -> 12 | C95: الطالب 86 | D95: 544 | E95: 31 | F95: 29 | G95: 60 | H95: 26 | I95: 26 | J95: 52 | K95: 37 | L95: 26 | M95: 63 | N95: 40 | O95: 34 | P95: 74 | Q95: 23 | R95: 25 | S95: 48 | T95: 30 | U95: 19 | V95: 49 | W95: 18 | X95: 16 | Y95: 34 | Z95: 12 | AA95: 4 | AB95: 16 | AC95: 11 | AD95: 9 | AE95: 20 | AF95: انثى | AG95: 3/2 | AH95: =الجدول5[[#This Row],[عمود6]]+الجدول5[[#This Row],[عمود9]]+الجدول5[[#This Row],[عمود12]]+الجدول5[[#This Row],[عمود15]]+الجدول5[[#This Row],[عمود18]]+الجدول5[[#This Row],[عمود21]]+الجدول5[[#This Row],[عمود24]]+الجدول5[[#This Row],[عمود27]]+الجدول5[[#This Row],[عمود30]] -> 416 | AI95: =الجدول5[[#This Row],[عمود33]]/680*100 -> 61.17647059 | AJ95: =IF(الجدول5[[#This Row],[عمود33]]="","",evaltion(الجدول5[[#This Row],[عمود34]])) -> مقبول | AK95: 113 | AL95: =IF(AK95>10,"",atrteb(AK95)) ->  | AM95: =IF(AK95>10,"",IF(COUNTIF(AH$10:$AH95,AH95)=1,"","مكرر")) -> 
B96: =IF(C96="","",SUBTOTAL(3,$C$10:C96)) -> 12 | C96: الطالب 87 | D96: 544 | E96: 36 | F96: 38 | G96: 74 | H96: 30 | I96: 18 | J96: 48 | K96: 33 | L96: 25 | M96: 58 | N96: 45 | O96: 46 | P96: 91 | Q96: 31 | R96: 31 | S96: 62 | T96: 32 | U96: 27 | V96: 59 | W96: 18 | X96: 16 | Y96: 34 | Z96: 12 | AA96: 11 | AB96: 23 | AC96: 13 | AD96: 7 | AE96: 20 | AF96: انثى | AG96: 3/2 | AH96: =الجدول5[[#This Row],[عمود6]]+الجدول5[[#This Row],[عمود9]]+الجدول5[[#This Row],[عمود12]]+الجدول5[[#This Row],[عمود15]]+الجدول5[[#This Row],[عمود18]]+الجدول5[[#This Row],[عمود21]]+الجدول5[[#This Row],[عمود24]]+الجدول5[[#This Row],[عمود27]]+الجدول5[[#This Row],[عمود30]] -> 469 | AI96: =الجدول5[[#This Row],[عمود33]]/680*100 -> 68.97058824 | AJ96: =IF(الجدول5[[#This Row],[عمود33]]="","",evaltion(الجدول5[[#This Row],[عمود34]])) -> جيد فقط | AK96: 93 | AL96: =IF(AK96>10,"",atrteb(AK96)) ->  | AM96: =IF(AK96>10,"",IF(COUNTIF(AH$10:$AH96,AH96)=1,"","مكرر")) -> 
B97: =IF(C97="","",SUBTOTAL(3,$C$10:C97)) -> 12 | C97: الطالب 88 | D97: 545 | E97: 29 | F97: 31 | G97: 60 | H97: 32 | I97: 29 | J97: 61 | K97: 40 | L97: 30 | M97: 70 | N97: 38 | O97: 32 | P97: 70 | Q97: 20 | R97: 26 | S97: 46 | T97: 31 | U97: 18 | V97: 49 | W97: 11 | X97: 8 | Y97: 19 | Z97: 14 | AA97: 3 | AB97: 17 | AC97: 12 | AD97: 13 | AE97: 25 | AF97: ذكر | AG97: 4/2 | AH97: =الجدول5[[#This Row],[عمود6]]+الجدول5[[#This Row],[عمود9]]+الجدول5[[#This Row],[عمود12]]+الجدول5[[#This Row],[عمود15]]+الجدول5[[#This Row],[عمود18]]+الجدول5[[#This Row],[عمود21]]+الجدول5[[#This Row],[عمود24]]+الجدول5[[#This Row],[عمود27]]+الجدول5[[#This Row],[عمود30]] -> 417 | AI97: =الجدول5[[#This Row],[عمود33]]/680*100 -> 61.32352941 | AJ97: =IF(الجدول5[[#This Row],[عمود33]]="","",evaltion(الجدول5[[#This Row],[عمود34]])) -> مقبول | AK97: 110 | AL97: =IF(AK97>10,"",atrteb(AK97)) ->  | AM97: =IF(AK97>10,"",IF(COUNTIF(AH$10:$AH97,AH97)=1,"","مكرر")) -> 
B98: =IF(C98="","",SUBTOTAL(3,$C$10:C98)) -> 12 | C98: الطالب 89 | D98: 545 | E98: 49 | F98: 47 | G98: 96 | H98: 48 | I98: 48 | J98: 96 | K98: 50 | L98: 50 | M98: 100 | N98: 50 | O98: 49 | P98: 99 | Q98: 40 | R98: 40 | S98: 80 | T98: 39 | U98: 40 | V98: 79 | W98: 20 | X98: 20 | Y98: 40 | Z98: 20 | AA98: 19 | AB98: 39 | AC98: 18 | AD98: 19 | AE98: 37 | AF98: انثى | AG98: 3/2 | AH98: =الجدول5[[#This Row],[عمود6]]+الجدول5[[#This Row],[عمود9]]+الجدول5[[#This Row],[عمود12]]+الجدول5[[#This Row],[عمود15]]+الجدول5[[#This Row],[عمود18]]+الجدول5[[#This Row],[عمود21]]+الجدول5[[#This Row],[عمود24]]+الجدول5[[#This Row],[عمود27]]+الجدول5[[#This Row],[عمود30]] -> 666 | AI98: =الجدول5[[#This Row],[عمود33]]/680*100 -> 97.94117647 | AJ98: =IF(الجدول5[[#This Row],[عمود33]]="","",evaltion(الجدول5[[#This Row],[عمود34]])) -> ممتاز | AK98: 5 | AL98: =IF(AK98>10,"",atrteb(AK98)) -> الترتيب الخامس | AM98: =IF(AK98>10,"",IF(COUNTIF(AH$10:$AH98,AH98)=1,"","مكرر")) -> 
B99: =IF(C99="","",SUBTOTAL(3,$C$10:C99)) -> 13 | C99: الطالب 90 | D99: 546 | E99: 46 | F99: 44 | G99: 90 | H99: 34 | I99: 34 | J99: 68 | K99: 46 | L99: 36 | M99: 82 | N99: 40 | O99: 36 | P99: 76 | Q99: 31 | R99: 34 | S99: 65 | T99: 33 | U99: 27 | V99: 60 | W99: 19 | X99: 18 | Y99: 37 | Z99: 20 | AA99: 11 | AB99: 31 | AC99: 12 | AD99: 9 | AE99: 21 | AF99: انثى | AG99: 1/2 | AH99: =الجدول5[[#This Row],[عمود6]]+الجدول5[[#This Row],[عمود9]]+الجدول5[[#This Row],[عمود12]]+الجدول5[[#This Row],[عمود15]]+الجدول5[[#This Row],[عمود18]]+الجدول5[[#This Row],[عمود21]]+الجدول5[[#This Row],[عمود24]]+الجدول5[[#This Row],[عمود27]]+الجدول5[[#This Row],[عمود30]] -> 530 | AI99: =الجدول5[[#This Row],[عمود33]]/680*100 -> 77.94117647 | AJ99: =IF(الجدول5[[#This Row],[عمود33]]="","",evaltion(الجدول5[[#This Row],[عمود34]])) -> جيد جدا | AK99: 72 | AL99: =IF(AK99>10,"",atrteb(AK99)) ->  | AM99: =IF(AK99>10,"",IF(COUNTIF(AH$10:$AH99,AH99)=1,"","مكرر")) -> 
B100: =IF(C100="","",SUBTOTAL(3,$C$10:C100)) -> 13 | C100: الطالب 91 | D100: 546 | E100: 45 | F100: 43 | G100: 88 | H100: 40 | I100: 26 | J100: 66 | K100: 30 | L100: 29 | M100: 59 | N100: 44 | O100: 36 | P100: 80 | Q100: 29 | R100: 27 | S100: 56 | T100: 32 | U100: 14 | V100: 46 | W100: 14 | X100: 19 | Y100: 33 | Z100: 14 | AA100: 9 | AB100: 23 | AC100: 12 | AD100: 8 | AE100: 20 | AF100: انثى | AG100: 2/2 | AH100: =الجدول5[[#This Row],[عمود6]]+الجدول5[[#This Row],[عمود9]]+الجدول5[[#This Row],[عمود12]]+الجدول5[[#This Row],[عمود15]]+الجدول5[[#This Row],[عمود18]]+الجدول5[[#This Row],[عمود21]]+الجدول5[[#This Row],[عمود24]]+الجدول5[[#This Row],[عمود27]]+الجدول5[[#This Row],[عمود30]] -> 471 | AI100: =الجدول5[[#This Row],[عمود33]]/680*100 -> 69.26470588 | AJ100: =IF(الجدول5[[#This Row],[عمود33]]="","",evaltion(الجدول5[[#This Row],[عمود34]])) -> جيد فقط | AK100: 92 | AL100: =IF(AK100>10,"",atrteb(AK100)) ->  | AM100: =IF(AK100>10,"",IF(COUNTIF(AH$10:$AH100,AH100)=1,"","مكرر")) -> 
B101: =IF(C101="","",SUBTOTAL(3,$C$10:C101)) -> 13 | C101: الطالب 92 | D101: 547 | E101: 46 | F101: 44 | G101: 90 | H101: 40 | I101: 35 | J101: 75 | K101: 50 | L101: 43 | M101: 93 | N101: 47 | O101: 42 | P101: 89 | Q101: 37 | R101: 38 | S101: 75 | T101: 39 | U101: 36 | V101: 75 | W101: 19 | X101: 20 | Y101: 39 | Z101: 19 | AA101: 17 | AB101: 36 | AC101: 16 | AD101: 16 | AE101: 32 | AF101: ذكر | AG101: 4/2 | AH101: =الجدول5[[#This Row],[عمود6]]+الجدول5[[#This Row],[عمود9]]+الجدول5[[#This Row],[عمود12]]+الجدول5[[#This Row],[عمود15]]+الجدول5[[#This Row],[عمود18]]+الجدول5[[#This Row],[عمود21]]+الجدول5[[#This Row],[عمود24]]+الجدول5[[#This Row],[عمود27]]+الجدول5[[#This Row],[عمود30]] -> 604 | AI101: =الجدول5[[#This Row],[عمود33]]/680*100 -> 88.82352941 | AJ101: =IF(الجدول5[[#This Row],[عمود33]]="","",evaltion(الجدول5[[#This Row],[عمود34]])) -> ممتاز | AK101: 34 | AL101: =IF(AK101>10,"",atrteb(AK101)) ->  | AM101: =IF(AK101>10,"",IF(COUNTIF(AH$10:$AH101,AH101)=1,"","مكرر")) -> 
B102: =IF(C102="","",SUBTOTAL(3,$C$10:C102)) -> 13 | C102: الطالب 93 | D102: 547 | E102: 42 | F102: 37 | G102: 79 | H102: 31 | I102: 18 | J102: 49 | K102: 35 | L102: 20 | M102: 55 | N102: 43 | O102: 32 | P102: 75 | Q102: 28 | R102: 25 | S102: 53 | T102: 35 | U102: 24 | V102: 59 | W102: 19 | X102: 16 | Y102: 35 | Z102: 19 | AA102: 4 | AB102: 23 | AC102: 13 | AD102: 6 | AE102: 19 | AF102: انثى | AG102: 4/2 | AH102: =الجدول5[[#This Row],[عمود6]]+الجدول5[[#This Row],[عمود9]]+الجدول5[[#This Row],[عمود12]]+الجدول5[[#This Row],[عمود15]]+الجدول5[[#This Row],[عمود18]]+الجدول5[[#This Row],[عمود21]]+الجدول5[[#This Row],[عمود24]]+الجدول5[[#This Row],[عمود27]]+الجدول5[[#This Row],[عمود30]] -> 447 | AI102: =الجدول5[[#This Row],[عمود33]]/680*100 -> 65.73529412 | AJ102: =IF(الجدول5[[#This Row],[عمود33]]="","",evaltion(الجدول5[[#This Row],[عمود34]])) -> جيد فقط | AK102: 100 | AL102: =IF(AK102>10,"",atrteb(AK102)) ->  | AM102: =IF(AK102>10,"",IF(COUNTIF(AH$10:$AH102,AH102)=1,"","مكرر")) -> 
B103: =IF(C103="","",SUBTOTAL(3,$C$10:C103)) -> 13 | C103: الطالب 94 | D103: 548 | E103: 47 | F103: 46 | G103: 93 | H103: 40 | I103: 41 | J103: 81 | K103: 43 | L103: 48 | M103: 91 | N103: 49 | O103: 42 | P103: 91 | Q103: 35 | R103: 36 | S103: 71 | T103: 39 | U103: 34 | V103: 73 | W103: 19 | X103: 20 | Y103: 39 | Z103: 19 | AA103: 17 | AB103: 36 | AC103: 12 | AD103: 15 | AE103: 27 | AF103: انثى | AG103: 4/2 | AH103: =الجدول5[[#This Row],[عمود6]]+الجدول5[[#This Row],[عمود9]]+الجدول5[[#This Row],[عمود12]]+الجدول5[[#This Row],[عمود15]]+الجدول5[[#This Row],[عمود18]]+الجدول5[[#This Row],[عمود21]]+الجدول5[[#This Row],[عمود24]]+الجدول5[[#This Row],[عمود27]]+الجدول5[[#This Row],[عمود30]] -> 602 | AI103: =الجدول5[[#This Row],[عمود33]]/680*100 -> 88.52941176 | AJ103: =IF(الجدول5[[#This Row],[عمود33]]="","",evaltion(الجدول5[[#This Row],[عمود34]])) -> ممتاز | AK103: 35 | AL103: =IF(AK103>10,"",atrteb(AK103)) ->  | AM103: =IF(AK103>10,"",IF(COUNTIF(AH$10:$AH103,AH103)=1,"","مكرر")) -> 
B104: =IF(C104="","",SUBTOTAL(3,$C$10:C104)) -> 13 | C104: الطالب 95 | D104: 548 | E104: 49 | F104: 49 | G104: 98 | H104: 46 | I104: 48 | J104: 94 | K104: 48 | L104: 48 | M104: 96 | N104: 49 | O104: 44 | P104: 93 | Q104: 40 | R104: 40 | S104: 80 | T104: 39 | U104: 39 | V104: 78 | W104: 19 | X104: 20 | Y104: 39 | Z104: 20 | AA104: 19 | AB104: 39 | AC104: 16 | AD104: 14 | AE104: 30 | AF104: انثى | AG104: 2/2 | AH104: =الجدول5[[#This Row],[عمود6]]+الجدول5[[#This Row],[عمود9]]+الجدول5[[#This Row],[عمود12]]+الجدول5[[#This Row],[عمود15]]+الجدول5[[#This Row],[عمود18]]+الجدول5[[#This Row],[عمود21]]+الجدول5[[#This Row],[عمود24]]+الجدول5[[#This Row],[عمود27]]+الجدول5[[#This Row],[عمود30]] -> 647 | AI104: =الجدول5[[#This Row],[عمود33]]/680*100 -> 95.14705882 | AJ104: =IF(الجدول5[[#This Row],[عمود33]]="","",evaltion(الجدول5[[#This Row],[عمود34]])) -> ممتاز | AK104: 15 | AL104: =IF(AK104>10,"",atrteb(AK104)) ->  | AM104: =IF(AK104>10,"",IF(COUNTIF(AH$10:$AH104,AH104)=1,"","مكرر")) -> 
B105: =IF(C105="","",SUBTOTAL(3,$C$10:C105)) -> 13 | C105: الطالب 96 | D105: 549 | E105: 34 | F105: 36 | G105: 70 | H105: 33 | I105: 37 | J105: 70 | K105: 21 | L105: 12 | M105: 33 | N105: 34 | O105: 19 | P105: 53 | Q105: 25 | R105: 23 | S105: 48 | T105: 19 | U105: 9 | V105: 28 | W105: 15 | X105: 16 | Y105: 31 | Z105: 18 | AA105: 4 | AB105: 22 | AC105: 10 | AD105: 9 | AE105: 19 | AF105: ذكر | AG105: 1/2 | AH105: =الجدول5[[#This Row],[عمود6]]+الجدول5[[#This Row],[عمود9]]+الجدول5[[#This Row],[عمود12]]+الجدول5[[#This Row],[عمود15]]+الجدول5[[#This Row],[عمود18]]+الجدول5[[#This Row],[عمود21]]+الجدول5[[#This Row],[عمود24]]+الجدول5[[#This Row],[عمود27]]+الجدول5[[#This Row],[عمود30]] -> 374 | AI105: =الجدول5[[#This Row],[عمود33]]/680*100 -> 55 | AJ105: =IF(الجدول5[[#This Row],[عمود33]]="","",evaltion(الجدول5[[#This Row],[عمود34]])) -> مقبول | AK105: 123 | AL105: =IF(AK105>10,"",atrteb(AK105)) ->  | AM105: =IF(AK105>10,"",IF(COUNTIF(AH$10:$AH105,AH105)=1,"","مكرر")) -> 
B106: =IF(C106="","",SUBTOTAL(3,$C$10:C106)) -> 14 | C106: الطالب 97 | D106: 549 | E106: 45 | F106: 49 | G106: 94 | H106: 49 | I106: 48 | J106: 97 | K106: 49 | L106: 48 | M106: 97 | N106: 50 | O106: 46 | P106: 96 | Q106: 40 | R106: 38 | S106: 78 | T106: 39 | U106: 34 | V106: 73 | W106: 20 | X106: 20 | Y106: 40 | Z106: 20 | AA106: 19 | AB106: 39 | AC106: 17 | AD106: 15 | AE106: 32 | AF106: انثى | AG106: 1/2 | AH106: =الجدول5[[#This Row],[عمود6]]+الجدول5[[#This Row],[عمود9]]+الجدول5[[#This Row],[عمود12]]+الجدول5[[#This Row],[عمود15]]+الجدول5[[#This Row],[عمود18]]+الجدول5[[#This Row],[عمود21]]+الجدول5[[#This Row],[عمود24]]+الجدول5[[#This Row],[عمود27]]+الجدول5[[#This Row],[عمود30]] -> 646 | AI106: =الجدول5[[#This Row],[عمود33]]/680*100 -> 95 | AJ106: =IF(الجدول5[[#This Row],[عمود33]]="","",evaltion(الجدول5[[#This Row],[عمود34]])) -> ممتاز | AK106: 16 | AL106: =IF(AK106>10,"",atrteb(AK106)) ->  | AM106: =IF(AK106>10,"",IF(COUNTIF(AH$10:$AH106,AH106)=1,"","مكرر")) -> 
B107: =IF(C107="","",SUBTOTAL(3,$C$10:C107)) -> 14 | C107: الطالب 98 | D107: 550 | E107: 43 | F107: 36 | G107: 79 | H107: 38 | I107: 25 | J107: 63 | K107: 41 | L107: 32 | M107: 73 | N107: 48 | O107: 35 | P107: 83 | Q107: 26 | R107: 27 | S107: 53 | T107: 34 | U107: 30 | V107: 64 | W107: 18 | X107: 19 | Y107: 37 | Z107: 18 | AA107: 2 | AB107: 20 | AC107: 14 | AD107: 8 | AE107: 22 | AF107: انثى | AG107: 3/2 | AH107: =الجدول5[[#This Row],[عمود6]]+الجدول5[[#This Row],[عمود9]]+الجدول5[[#This Row],[عمود12]]+الجدول5[[#This Row],[عمود15]]+الجدول5[[#This Row],[عمود18]]+الجدول5[[#This Row],[عمود21]]+الجدول5[[#This Row],[عمود24]]+الجدول5[[#This Row],[عمود27]]+الجدول5[[#This Row],[عمود30]] -> 494 | AI107: =الجدول5[[#This Row],[عمود33]]/680*100 -> 72.64705882 | AJ107: =IF(الجدول5[[#This Row],[عمود33]]="","",evaltion(الجدول5[[#This Row],[عمود34]])) -> جيد فقط | AK107: 85 | AL107: =IF(AK107>10,"",atrteb(AK107)) ->  | AM107: =IF(AK107>10,"",IF(COUNTIF(AH$10:$AH107,AH107)=1,"","مكرر")) -> 
B108: =IF(C108="","",SUBTOTAL(3,$C$10:C108)) -> 14 | C108: الطالب 99 | D108: 550 | E108: 49 | F108: 49 | G108: 98 | H108: 48 | I108: 50 | J108: 98 | K108: 50 | L108: 50 | M108: 100 | N108: 50 | O108: 50 | P108: 100 | Q108: 39 | R108: 40 | S108: 79 | T108: 40 | U108: 40 | V108: 80 | W108: 20 | X108: 20 | Y108: 40 | Z108: 20 | AA108: 20 | AB108: 40 | AC108: 18 | AD108: 18 | AE108: 36 | AF108: انثى | AG108: 4/2 | AH108: =الجدول5[[#This Row],[عمود6]]+الجدول5[[#This Row],[عمود9]]+الجدول5[[#This Row],[عمود12]]+الجدول5[[#This Row],[عمود15]]+الجدول5[[#This Row],[عمود18]]+الجدول5[[#This Row],[عمود21]]+الجدول5[[#This Row],[عمود24]]+الجدول5[[#This Row],[عمود27]]+الجدول5[[#This Row],[عمود30]] -> 671 | AI108: =الجدول5[[#This Row],[عمود33]]/680*100 -> 98.67647059 | AJ108: =IF(الجدول5[[#This Row],[عمود33]]="","",evaltion(الجدول5[[#This Row],[عمود34]])) -> ممتاز | AK108: 3 | AL108: =IF(AK108>10,"",atrteb(AK108)) -> الترتيب الثالث | AM108: =IF(AK108>10,"",IF(COUNTIF(AH$10:$AH108,AH108)=1,"","مكرر")) -> 
B109: =IF(C109="","",SUBTOTAL(3,$C$10:C109)) -> 14 | C109: الطالب 100 | D109: 551 | E109: 47 | F109: 46 | G109: 93 | H109: 48 | I109: 40 | J109: 88 | K109: 45 | L109: 42 | M109: 87 | N109: 47 | O109: 43 | P109: 90 | Q109: 32 | R109: 36 | S109: 68 | T109: 37 | U109: 33 | V109: 70 | W109: 19 | X109: 15 | Y109: 34 | Z109: 20 | AA109: 14 | AB109: 34 | AC109: 13 | AD109: 18 | AE109: 31 | AF109: ذكر | AG109: 3/2 | AH109: =الجدول5[[#This Row],[عمود6]]+الجدول5[[#This Row],[عمود9]]+الجدول5[[#This Row],[عمود12]]+الجدول5[[#This Row],[عمود15]]+الجدول5[[#This Row],[عمود18]]+الجدول5[[#This Row],[عمود21]]+الجدول5[[#This Row],[عمود24]]+الجدول5[[#This Row],[عمود27]]+الجدول5[[#This Row],[عمود30]] -> 595 | AI109: =الجدول5[[#This Row],[عمود33]]/680*100 -> 87.5 | AJ109: =IF(الجدول5[[#This Row],[عمود33]]="","",evaltion(الجدول5[[#This Row],[عمود34]])) -> ممتاز | AK109: 38 | AL109: =IF(AK109>10,"",atrteb(AK109)) ->  | AM109: =IF(AK109>10,"",IF(COUNTIF(AH$10:$AH109,AH109)=1,"","مكرر")) -> 
B110: =IF(C110="","",SUBTOTAL(3,$C$10:C110)) -> 14 | C110: الطالب 101 | D110: 551 | E110: 36 | F110: 36 | G110: 72 | H110: 31 | I110: 15 | J110: 46 | K110: 32 | L110: 27 | M110: 59 | N110: 37 | O110: 33 | P110: 70 | Q110: 26 | R110: 29 | S110: 55 | T110: 26 | U110: 15 | V110: 41 | W110: 16 | X110: 17 | Y110: 33 | Z110: 12 | AA110: 4 | AB110: 16 | AC110: 12 | AD110: 6 | AE110: 18 | AF110: انثى | AG110: 3/2 | AH110: =الجدول5[[#This Row],[عمود6]]+الجدول5[[#This Row],[عمود9]]+الجدول5[[#This Row],[عمود12]]+الجدول5[[#This Row],[عمود15]]+الجدول5[[#This Row],[عمود18]]+الجدول5[[#This Row],[عمود21]]+الجدول5[[#This Row],[عمود24]]+الجدول5[[#This Row],[عمود27]]+الجدول5[[#This Row],[عمود30]] -> 410 | AI110: =الجدول5[[#This Row],[عمود33]]/680*100 -> 60.29411765 | AJ110: =IF(الجدول5[[#This Row],[عمود33]]="","",evaltion(الجدول5[[#This Row],[عمود34]])) -> مقبول | AK110: 114 | AL110: =IF(AK110>10,"",atrteb(AK110)) ->  | AM110: =IF(AK110>10,"",IF(COUNTIF(AH$10:$AH110,AH110)=1,"","مكرر")) -> 
B111: =IF(C111="","",SUBTOTAL(3,$C$10:C111)) -> 14 | C111: الطالب 102 | D111: 552 | E111: 46 | F111: 41 | G111: 87 | H111: 39 | I111: 38 | J111: 77 | K111: 41 | L111: 30 | M111: 71 | N111: 47 | O111: 42 | P111: 89 | Q111: 32 | R111: 37 | S111: 69 | T111: 37 | U111: 30 | V111: 67 | W111: 20 | X111: 20 | Y111: 40 | Z111: 13 | AA111: 15 | AB111: 28 | AC111: 15 | AD111: 10 | AE111: 25 | AF111: انثى | AG111: 3/2 | AH111: =الجدول5[[#This Row],[عمود6]]+الجدول5[[#This Row],[عمود9]]+الجدول5[[#This Row],[عمود12]]+الجدول5[[#This Row],[عمود15]]+الجدول5[[#This Row],[عمود18]]+الجدول5[[#This Row],[عمود21]]+الجدول5[[#This Row],[عمود24]]+الجدول5[[#This Row],[عمود27]]+الجدول5[[#This Row],[عمود30]] -> 553 | AI111: =الجدول5[[#This Row],[عمود33]]/680*100 -> 81.32352941 | AJ111: =IF(الجدول5[[#This Row],[عمود33]]="","",evaltion(الجدول5[[#This Row],[عمود34]])) -> جيد جدا | AK111: 61 | AL111: =IF(AK111>10,"",atrteb(AK111)) ->  | AM111: =IF(AK111>10,"",IF(COUNTIF(AH$10:$AH111,AH111)=1,"","مكرر")) -> 
B112: =IF(C112="","",SUBTOTAL(3,$C$10:C112)) -> 14 | C112: الطالب 103 | D112: 552 | E112: 36 | F112: 36 | G112: 72 | H112: 30 | I112: 28 | J112: 58 | K112: 43 | L112: 37 | M112: 80 | N112: 44 | O112: 34 | P112: 78 | Q112: 26 | R112: 25 | S112: 51 | T112: 36 | U112: 18 | V112: 54 | W112: 15 | X112: 11 | Y112: 26 | Z112: 18 | AA112: 15 | AB112: 33 | AC112: 14 | AD112: 9 | AE112: 23 | AF112: انثى | AG112: 4/2 | AH112: =الجدول5[[#This Row],[عمود6]]+الجدول5[[#This Row],[عمود9]]+الجدول5[[#This Row],[عمود12]]+الجدول5[[#This Row],[عمود15]]+الجدول5[[#This Row],[عمود18]]+الجدول5[[#This Row],[عمود21]]+الجدول5[[#This Row],[عمود24]]+الجدول5[[#This Row],[عمود27]]+الجدول5[[#This Row],[عمود30]] -> 475 | AI112: =الجدول5[[#This Row],[عمود33]]/680*100 -> 69.85294118 | AJ112: =IF(الجدول5[[#This Row],[عمود33]]="","",evaltion(الجدول5[[#This Row],[عمود34]])) -> جيد فقط | AK112: 90 | AL112: =IF(AK112>10,"",atrteb(AK112)) ->  | AM112: =IF(AK112>10,"",IF(COUNTIF(AH$10:$AH112,AH112)=1,"","مكرر")) -> 
B113: =IF(C113="","",SUBTOTAL(3,$C$10:C113)) -> 14 | C113: الطالب 104 | D113: 553 | E113: 43 | F113: 41 | G113: 84 | H113: 37 | I113: 32 | J113: 69 | K113: 34 | L113: 33 | M113: 67 | N113: 44 | O113: 37 | P113: 81 | Q113: 37 | R113: 30 | S113: 67 | T113: 33 | U113: 22 | V113: 55 | W113: 19 | X113: 19 | Y113: 38 | Z113: 15 | AA113: 9 | AB113: 24 | AC113: 11 | AD113: 12 | AE113: 23 | AF113: ذكر | AG113: 1/2 | AH113: =الجدول5[[#This Row],[عمود6]]+الجدول5[[#This Row],[عمود9]]+الجدول5[[#This Row],[عمود12]]+الجدول5[[#This Row],[عمود15]]+الجدول5[[#This Row],[عمود18]]+الجدول5[[#This Row],[عمود21]]+الجدول5[[#This Row],[عمود24]]+الجدول5[[#This Row],[عمود27]]+الجدول5[[#This Row],[عمود30]] -> 508 | AI113: =الجدول5[[#This Row],[عمود33]]/680*100 -> 74.70588235 | AJ113: =IF(الجدول5[[#This Row],[عمود33]]="","",evaltion(الجدول5[[#This Row],[عمود34]])) -> جيد فقط | AK113: 79 | AL113: =IF(AK113>10,"",atrteb(AK113)) ->  | AM113: =IF(AK113>10,"",IF(COUNTIF(AH$10:$AH113,AH113)=1,"","مكرر")) -> 
B114: =IF(C114="","",SUBTOTAL(3,$C$10:C114)) -> 14 | C114: الطالب 105 | D114: 553 | E114: 49 | F114: 48 | G114: 97 | H114: 44 | I114: 50 | J114: 94 | K114: 42 | L114: 50 | M114: 92 | N114: 48 | O114: 50 | P114: 98 | Q114: 39 | R114: 36 | S114: 75 | T114: 37 | U114: 36 | V114: 73 | W114: 15 | X114: 20 | Y114: 35 | Z114: 20 | AA114: 18 | AB114: 38 | AC114: 17 | AD114: 16 | AE114: 33 | AF114: انثى | AG114: 2/2 | AH114: =الجدول5[[#This Row],[عمود6]]+الجدول5[[#This Row],[عمود9]]+الجدول5[[#This Row],[عمود12]]+الجدول5[[#This Row],[عمود15]]+الجدول5[[#This Row],[عمود18]]+الجدول5[[#This Row],[عمود21]]+الجدول5[[#This Row],[عمود24]]+الجدول5[[#This Row],[عمود27]]+الجدول5[[#This Row],[عمود30]] -> 635 | AI114: =الجدول5[[#This Row],[عمود33]]/680*100 -> 93.38235294 | AJ114: =IF(الجدول5[[#This Row],[عمود33]]="","",evaltion(الجدول5[[#This Row],[عمود34]])) -> ممتاز | AK114: 20 | AL114: =IF(AK114>10,"",atrteb(AK114)) ->  | AM114: =IF(AK114>10,"",IF(COUNTIF(AH$10:$AH114,AH114)=1,"","مكرر")) -> 
B115: =IF(C115="","",SUBTOTAL(3,$C$10:C115)) -> 14 | C115: الطالب 106 | D115: 554 | E115: 48 | F115: 49 | G115: 97 | H115: 45 | I115: 47 | J115: 92 | K115: 41 | L115: 50 | M115: 91 | N115: 50 | O115: 48 | P115: 98 | Q115: 37 | R115: 39 | S115: 76 | T115: 39 | U115: 40 | V115: 79 | W115: 20 | X115: 19 | Y115: 39 | Z115: 20 | AA115: 16 | AB115: 36 | AC115: 15 | AD115: 18 | AE115: 33 | AF115: انثى | AG115: 2/2 | AH115: =الجدول5[[#This Row],[عمود6]]+الجدول5[[#This Row],[عمود9]]+الجدول5[[#This Row],[عمود12]]+الجدول5[[#This Row],[عمود15]]+الجدول5[[#This Row],[عمود18]]+الجدول5[[#This Row],[عمود21]]+الجدول5[[#This Row],[عمود24]]+الجدول5[[#This Row],[عمود27]]+الجدول5[[#This Row],[عمود30]] -> 641 | AI115: =الجدول5[[#This Row],[عمود33]]/680*100 -> 94.26470588 | AJ115: =IF(الجدول5[[#This Row],[عمود33]]="","",evaltion(الجدول5[[#This Row],[عمود34]])) -> ممتاز | AK115: 18 | AL115: =IF(AK115>10,"",atrteb(AK115)) ->  | AM115: =IF(AK115>10,"",IF(COUNTIF(AH$10:$AH115,AH115)=1,"","مكرر")) -> 
B116: =IF(C116="","",SUBTOTAL(3,$C$10:C116)) -> 14 | C116: الطالب 107 | D116: 554 | E116: 45 | F116: 45 | G116: 90 | H116: 41 | I116: 40 | J116: 81 | K116: 45 | L116: 48 | M116: 93 | N116: 49 | O116: 45 | P116: 94 | Q116: 38 | R116: 39 | S116: 77 | T116: 36 | U116: 33 | V116: 69 | W116: 14 | X116: 17 | Y116: 31 | Z116: 20 | AA116: 17 | AB116: 37 | AC116: 17 | AD116: 17 | AE116: 34 | AF116: انثى | AG116: 4/2 | AH116: =الجدول5[[#This Row],[عمود6]]+الجدول5[[#This Row],[عمود9]]+الجدول5[[#This Row],[عمود12]]+الجدول5[[#This Row],[عمود15]]+الجدول5[[#This Row],[عمود18]]+الجدول5[[#This Row],[عمود21]]+الجدول5[[#This Row],[عمود24]]+الجدول5[[#This Row],[عمود27]]+الجدول5[[#This Row],[عمود30]] -> 606 | AI116: =الجدول5[[#This Row],[عمود33]]/680*100 -> 89.11764706 | AJ116: =IF(الجدول5[[#This Row],[عمود33]]="","",evaltion(الجدول5[[#This Row],[عمود34]])) -> ممتاز | AK116: 32 | AL116: =IF(AK116>10,"",atrteb(AK116)) ->  | AM116: =IF(AK116>10,"",IF(COUNTIF(AH$10:$AH116,AH116)=1,"","مكرر")) -> 
B117: =IF(C117="","",SUBTOTAL(3,$C$10:C117)) -> 14 | C117: الطالب 108 | D117: 555 | E117: 44 | F117: 46 | G117: 90 | H117: 37 | I117: 36 | J117: 73 | K117: 43 | L117: 30 | M117: 73 | N117: 48 | O117: 37 | P117: 85 | Q117: 35 | R117: 33 | S117: 68 | T117: 36 | U117: 28 | V117: 64 | W117: 17 | X117: 19 | Y117: 36 | Z117: 16 | AA117: 8 | AB117: 24 | AC117: 13 | AD117: 11 | AE117: 24 | AF117: ذكر | AG117: 1/2 | AH117: =الجدول5[[#This Row],[عمود6]]+الجدول5[[#This Row],[عمود9]]+الجدول5[[#This Row],[عمود12]]+الجدول5[[#This Row],[عمود15]]+الجدول5[[#This Row],[عمود18]]+الجدول5[[#This Row],[عمود21]]+الجدول5[[#This Row],[عمود24]]+الجدول5[[#This Row],[عمود27]]+الجدول5[[#This Row],[عمود30]] -> 537 | AI117: =الجدول5[[#This Row],[عمود33]]/680*100 -> 78.97058824 | AJ117: =IF(الجدول5[[#This Row],[عمود33]]="","",evaltion(الجدول5[[#This Row],[عمود34]])) -> جيد جدا | AK117: 66 | AL117: =IF(AK117>10,"",atrteb(AK117)) ->  | AM117: =IF(AK117>10,"",IF(COUNTIF(AH$10:$AH117,AH117)=1,"","مكرر")) -> 
B118: =IF(C118="","",SUBTOTAL(3,$C$10:C118)) -> 14 | C118: الطالب 109 | D118: 555 | E118: 35 | F118: 30 | G118: 65 | H118: 27 | I118: 18 | J118: 45 | K118: 33 | L118: 17 | M118: 50 | N118: 40 | O118: 28 | P118: 68 | Q118: 24 | R118: 23 | S118: 47 | T118: 27 | U118: 19 | V118: 46 | W118: 16 | X118: 19 | Y118: 35 | Z118: 16 | AA118: 3 | AB118: 19 | AC118: 14 | AD118: 4 | AE118: 18 | AF118: انثى | AG118: 3/2 | AH118: =الجدول5[[#This Row],[عمود6]]+الجدول5[[#This Row],[عمود9]]+الجدول5[[#This Row],[عمود12]]+الجدول5[[#This Row],[عمود15]]+الجدول5[[#This Row],[عمود18]]+الجدول5[[#This Row],[عمود21]]+الجدول5[[#This Row],[عمود24]]+الجدول5[[#This Row],[عمود27]]+الجدول5[[#This Row],[عمود30]] -> 393 | AI118: =الجدول5[[#This Row],[عمود33]]/680*100 -> 57.79411765 | AJ118: =IF(الجدول5[[#This Row],[عمود33]]="","",evaltion(الجدول5[[#This Row],[عمود34]])) -> مقبول | AK118: 120 | AL118: =IF(AK118>10,"",atrteb(AK118)) ->  | AM118: =IF(AK118>10,"",IF(COUNTIF(AH$10:$AH118,AH118)=1,"","مكرر")) -> 
B119: =IF(C119="","",SUBTOTAL(3,$C$10:C119)) -> 14 | C119: الطالب 110 | D119: 556 | E119: 31 | F119: 32 | G119: 63 | H119: 29 | I119: 13 | J119: 42 | K119: 29 | L119: 9 | M119: 38 | N119: 35 | O119: 21 | P119: 56 | Q119: 23 | R119: 23 | S119: 46 | T119: 30 | U119: 20 | V119: 50 | W119: 15 | X119: 14 | Y119: 29 | Z119: 14 | AA119: 0 | AB119: 14 | AC119: 8 | AD119: 8 | AE119: 16 | AF119: انثى | AG119: 4/2 | AH119: =الجدول5[[#This Row],[عمود6]]+الجدول5[[#This Row],[عمود9]]+الجدول5[[#This Row],[عمود12]]+الجدول5[[#This Row],[عمود15]]+الجدول5[[#This Row],[عمود18]]+الجدول5[[#This Row],[عمود21]]+الجدول5[[#This Row],[عمود24]]+الجدول5[[#This Row],[عمود27]]+الجدول5[[#This Row],[عمود30]] -> 354 | AI119: =الجدول5[[#This Row],[عمود33]]/680*100 -> 52.05882353 | AJ119: =IF(الجدول5[[#This Row],[عمود33]]="","",evaltion(الجدول5[[#This Row],[عمود34]])) -> مقبول | AK119: 126 | AL119: =IF(AK119>10,"",atrteb(AK119)) ->  | AM119: =IF(AK119>10,"",IF(COUNTIF(AH$10:$AH119,AH119)=1,"","مكرر")) -> 
B120: =IF(C120="","",SUBTOTAL(3,$C$10:C120)) -> 14 | C120: الطالب 111 | D120: 556 | E120: 49 | F120: 49 | G120: 98 | H120: 47 | I120: 50 | J120: 97 | K120: 47 | L120: 48 | M120: 95 | N120: 49 | O120: 42 | P120: 91 | Q120: 38 | R120: 38 | S120: 76 | T120: 40 | U120: 40 | V120: 80 | W120: 20 | X120: 20 | Y120: 40 | Z120: 20 | AA120: 19 | AB120: 39 | AC120: 16 | AD120: 14 | AE120: 30 | AF120: انثى | AG120: 2/2 | AH120: =الجدول5[[#This Row],[عمود6]]+الجدول5[[#This Row],[عمود9]]+الجدول5[[#This Row],[عمود12]]+الجدول5[[#This Row],[عمود15]]+الجدول5[[#This Row],[عمود18]]+الجدول5[[#This Row],[عمود21]]+الجدول5[[#This Row],[عمود24]]+الجدول5[[#This Row],[عمود27]]+الجدول5[[#This Row],[عمود30]] -> 646 | AI120: =الجدول5[[#This Row],[عمود33]]/680*100 -> 95 | AJ120: =IF(الجدول5[[#This Row],[عمود33]]="","",evaltion(الجدول5[[#This Row],[عمود34]])) -> ممتاز | AK120: 16 | AL120: =IF(AK120>10,"",atrteb(AK120)) ->  | AM120: =IF(AK120>10,"",IF(COUNTIF(AH$10:$AH120,AH120)=1,"","مكرر")) -> 
B121: =IF(C121="","",SUBTOTAL(3,$C$10:C121)) -> 14 | C121: الطالب 112 | D121: 557 | E121: 44 | F121: 43 | G121: 87 | H121: 34 | I121: 31 | J121: 65 | K121: 41 | L121: 14 | M121: 55 | N121: 43 | O121: 38 | P121: 81 | Q121: 31 | R121: 35 | S121: 66 | T121: 38 | U121: 28 | V121: 66 | W121: 18 | X121: 20 | Y121: 38 | Z121: 16 | AA121: 5 | AB121: 21 | AC121: 12 | AD121: 11 | AE121: 23 | AF121: ذكر | AG121: 1/2 | AH121: =الجدول5[[#This Row],[عمود6]]+الجدول5[[#This Row],[عمود9]]+الجدول5[[#This Row],[عمود12]]+الجدول5[[#This Row],[عمود15]]+الجدول5[[#This Row],[عمود18]]+الجدول5[[#This Row],[عمود21]]+الجدول5[[#This Row],[عمود24]]+الجدول5[[#This Row],[عمود27]]+الجدول5[[#This Row],[عمود30]] -> 502 | AI121: =الجدول5[[#This Row],[عمود33]]/680*100 -> 73.82352941 | AJ121: =IF(الجدول5[[#This Row],[عمود33]]="","",evaltion(الجدول5[[#This Row],[عمود34]])) -> جيد فقط | AK121: 82 | AL121: =IF(AK121>10,"",atrteb(AK121)) ->  | AM121: =IF(AK121>10,"",IF(COUNTIF(AH$10:$AH121,AH121)=1,"","مكرر")) -> 
B122: =IF(C122="","",SUBTOTAL(3,$C$10:C122)) -> 14 | C122: الطالب 113 | D122: 557 | E122: 30 | F122: 27 | G122: 57 | H122: 29 | I122: 14 | J122: 43 | K122: 28 | L122: 12 | M122: 40 | N122: 44 | O122: 17 | P122: 61 | Q122: 21 | R122: 24 | S122: 45 | T122: 35 | U122: 18 | V122: 53 | W122: 11 | X122: 13 | Y122: 24 | Z122: 17 | AA122: 2 | AB122: 19 | AC122: 10 | AD122: 6 | AE122: 16 | AF122: انثى | AG122: 4/2 | AH122: =الجدول5[[#This Row],[عمود6]]+الجدول5[[#This Row],[عمود9]]+الجدول5[[#This Row],[عمود12]]+الجدول5[[#This Row],[عمود15]]+الجدول5[[#This Row],[عمود18]]+الجدول5[[#This Row],[عمود21]]+الجدول5[[#This Row],[عمود24]]+الجدول5[[#This Row],[عمود27]]+الجدول5[[#This Row],[عمود30]] -> 358 | AI122: =الجدول5[[#This Row],[عمود33]]/680*100 -> 52.64705882 | AJ122: =IF(الجدول5[[#This Row],[عمود33]]="","",evaltion(الجدول5[[#This Row],[عمود34]])) -> مقبول | AK122: 124 | AL122: =IF(AK122>10,"",atrteb(AK122)) ->  | AM122: =IF(AK122>10,"",IF(COUNTIF(AH$10:$AH122,AH122)=1,"","مكرر")) -> 
B123: =IF(C123="","",SUBTOTAL(3,$C$10:C123)) -> 14 | C123: الطالب 114 | D123: 558 | E123: 40 | F123: 31 | G123: 71 | H123: 28 | I123: 22 | J123: 50 | K123: 33 | L123: 26 | M123: 59 | N123: 38 | O123: 29 | P123: 67 | Q123: 28 | R123: 30 | S123: 58 | T123: 35 | U123: 25 | V123: 60 | W123: 15 | X123: 18 | Y123: 33 | Z123: 13 | AA123: 9 | AB123: 22 | AC123: 9 | AD123: 5 | AE123: 14 | AF123: انثى | AG123: 4/2 | AH123: =الجدول5[[#This Row],[عمود6]]+الجدول5[[#This Row],[عمود9]]+الجدول5[[#This Row],[عمود12]]+الجدول5[[#This Row],[عمود15]]+الجدول5[[#This Row],[عمود18]]+الجدول5[[#This Row],[عمود21]]+الجدول5[[#This Row],[عمود24]]+الجدول5[[#This Row],[عمود27]]+الجدول5[[#This Row],[عمود30]] -> 434 | AI123: =الجدول5[[#This Row],[عمود33]]/680*100 -> 63.82352941 | AJ123: =IF(الجدول5[[#This Row],[عمود33]]="","",evaltion(الجدول5[[#This Row],[عمود34]])) -> مقبول | AK123: 103 | AL123: =IF(AK123>10,"",atrteb(AK123)) ->  | AM123: =IF(AK123>10,"",IF(COUNTIF(AH$10:$AH123,AH123)=1,"","مكرر")) -> 
B124: =IF(C124="","",SUBTOTAL(3,$C$10:C124)) -> 14 | C124: الطالب 115 | D124: 558 | E124: 42 | F124: 41 | G124: 83 | H124: 43 | I124: 46 | J124: 89 | K124: 38 | L124: 37 | M124: 75 | N124: 45 | O124: 47 | P124: 92 | Q124: 35 | R124: 31 | S124: 66 | T124: 38 | U124: 34 | V124: 72 | W124: 19 | X124: 20 | Y124: 39 | Z124: 14 | AA124: 12 | AB124: 26 | AC124: 12 | AD124: 12 | AE124: 24 | AF124: انثى | AG124: 4/2 | AH124: =الجدول5[[#This Row],[عمود6]]+الجدول5[[#This Row],[عمود9]]+الجدول5[[#This Row],[عمود12]]+الجدول5[[#This Row],[عمود15]]+الجدول5[[#This Row],[عمود18]]+الجدول5[[#This Row],[عمود21]]+الجدول5[[#This Row],[عمود24]]+الجدول5[[#This Row],[عمود27]]+الجدول5[[#This Row],[عمود30]] -> 566 | AI124: =الجدول5[[#This Row],[عمود33]]/680*100 -> 83.23529412 | AJ124: =IF(الجدول5[[#This Row],[عمود33]]="","",evaltion(الجدول5[[#This Row],[عمود34]])) -> جيد جدا | AK124: 52 | AL124: =IF(AK124>10,"",atrteb(AK124)) ->  | AM124: =IF(AK124>10,"",IF(COUNTIF(AH$10:$AH124,AH124)=1,"","مكرر")) -> 
B125: =IF(C125="","",SUBTOTAL(3,$C$10:C125)) -> 14 | C125: الطالب 116 | D125: 559 | E125: 41 | F125: 41 | G125: 82 | H125: 37 | I125: 33 | J125: 70 | K125: 40 | L125: 29 | M125: 69 | N125: 46 | O125: 39 | P125: 85 | Q125: 35 | R125: 34 | S125: 69 | T125: 37 | U125: 31 | V125: 68 | W125: 18 | X125: 17 | Y125: 35 | Z125: 20 | AA125: 6 | AB125: 26 | AC125: 14 | AD125: 12 | AE125: 26 | AF125: ذكر | AG125: 4/2 | AH125: =الجدول5[[#This Row],[عمود6]]+الجدول5[[#This Row],[عمود9]]+الجدول5[[#This Row],[عمود12]]+الجدول5[[#This Row],[عمود15]]+الجدول5[[#This Row],[عمود18]]+الجدول5[[#This Row],[عمود21]]+الجدول5[[#This Row],[عمود24]]+الجدول5[[#This Row],[عمود27]]+الجدول5[[#This Row],[عمود30]] -> 530 | AI125: =الجدول5[[#This Row],[عمود33]]/680*100 -> 77.94117647 | AJ125: =IF(الجدول5[[#This Row],[عمود33]]="","",evaltion(الجدول5[[#This Row],[عمود34]])) -> جيد جدا | AK125: 72 | AL125: =IF(AK125>10,"",atrteb(AK125)) ->  | AM125: =IF(AK125>10,"",IF(COUNTIF(AH$10:$AH125,AH125)=1,"","مكرر")) -> 
B126: =IF(C126="","",SUBTOTAL(3,$C$10:C126)) -> 14 | C126: الطالب 117 | D126: 559 | E126: 33 | F126: 32 | G126: 65 | H126: 26 | I126: 16 | J126: 42 | K126: 36 | L126: 37 | M126: 73 | N126: 42 | O126: 31 | P126: 73 | Q126: 29 | R126: 28 | S126: 57 | T126: 28 | U126: 20 | V126: 48 | W126: 14 | X126: 16 | Y126: 30 | Z126: 15 | AA126: 7 | AB126: 22 | AC126: 10 | AD126: 9 | AE126: 19 | AF126: انثى | AG126: 4/2 | AH126: =الجدول5[[#This Row],[عمود6]]+الجدول5[[#This Row],[عمود9]]+الجدول5[[#This Row],[عمود12]]+الجدول5[[#This Row],[عمود15]]+الجدول5[[#This Row],[عمود18]]+الجدول5[[#This Row],[عمود21]]+الجدول5[[#This Row],[عمود24]]+الجدول5[[#This Row],[عمود27]]+الجدول5[[#This Row],[عمود30]] -> 429 | AI126: =الجدول5[[#This Row],[عمود33]]/680*100 -> 63.08823529 | AJ126: =IF(الجدول5[[#This Row],[عمود33]]="","",evaltion(الجدول5[[#This Row],[عمود34]])) -> مقبول | AK126: 106 | AL126: =IF(AK126>10,"",atrteb(AK126)) ->  | AM126: =IF(AK126>10,"",IF(COUNTIF(AH$10:$AH126,AH126)=1,"","مكرر")) -> 
B127: =IF(C127="","",SUBTOTAL(3,$C$10:C127)) -> 15 | C127: الطالب 118 | D127: 560 | E127: 47 | F127: 47 | G127: 94 | H127: 46 | I127: 47 | J127: 93 | K127: 50 | L127: 50 | M127: 100 | N127: 49 | O127: 47 | P127: 96 | Q127: 39 | R127: 39 | S127: 78 | T127: 40 | U127: 37 | V127: 77 | W127: 18 | X127: 19 | Y127: 37 | Z127: 20 | AA127: 20 | AB127: 40 | AC127: 16 | AD127: 17 | AE127: 33 | AF127: انثى | AG127: 1/2 | AH127: =الجدول5[[#This Row],[عمود6]]+الجدول5[[#This Row],[عمود9]]+الجدول5[[#This Row],[عمود12]]+الجدول5[[#This Row],[عمود15]]+الجدول5[[#This Row],[عمود18]]+الجدول5[[#This Row],[عمود21]]+الجدول5[[#This Row],[عمود24]]+الجدول5[[#This Row],[عمود27]]+الجدول5[[#This Row],[عمود30]] -> 648 | AI127: =الجدول5[[#This Row],[عمود33]]/680*100 -> 95.29411765 | AJ127: =IF(الجدول5[[#This Row],[عمود33]]="","",evaltion(الجدول5[[#This Row],[عمود34]])) -> ممتاز | AK127: 14 | AL127: =IF(AK127>10,"",atrteb(AK127)) ->  | AM127: =IF(AK127>10,"",IF(COUNTIF(AH$10:$AH127,AH127)=1,"","مكرر")) -> 
B128: =IF(C128="","",SUBTOTAL(3,$C$10:C128)) -> 16 | C128: الطالب 119 | D128: 560 | E128: 48 | F128: 47 | G128: 95 | H128: 47 | I128: 50 | J128: 97 | K128: 47 | L128: 50 | M128: 97 | N128: 49 | O128: 50 | P128: 99 | Q128: 40 | R128: 38 | S128: 78 | T128: 40 | U128: 40 | V128: 80 | W128: 19 | X128: 20 | Y128: 39 | Z128: 20 | AA128: 19 | AB128: 39 | AC128: 17 | AD128: 18 | AE128: 35 | AF128: انثى | AG128: 1/2 | AH128: =الجدول5[[#This Row],[عمود6]]+الجدول5[[#This Row],[عمود9]]+الجدول5[[#This Row],[عمود12]]+الجدول5[[#This Row],[عمود15]]+الجدول5[[#This Row],[عمود18]]+الجدول5[[#This Row],[عمود21]]+الجدول5[[#This Row],[عمود24]]+الجدول5[[#This Row],[عمود27]]+الجدول5[[#This Row],[عمود30]] -> 659 | AI128: =الجدول5[[#This Row],[عمود33]]/680*100 -> 96.91176471 | AJ128: =IF(الجدول5[[#This Row],[عمود33]]="","",evaltion(الجدول5[[#This Row],[عمود34]])) -> ممتاز | AK128: 9 | AL128: =IF(AK128>10,"",atrteb(AK128)) -> الترتيب التاسع | AM128: =IF(AK128>10,"",IF(COUNTIF(AH$10:$AH128,AH128)=1,"","مكرر")) -> مكرر
B129: =IF(C129="","",SUBTOTAL(3,$C$10:C129)) -> 16 | C129: الطالب 120 | D129: 561 | E129: 36 | F129: 33 | G129: 69 | H129: 31 | I129: 15 | J129: 46 | K129: 37 | L129: 25 | M129: 62 | N129: 42 | O129: 35 | P129: 77 | Q129: 27 | R129: 28 | S129: 55 | T129: 36 | U129: 28 | V129: 64 | W129: 15 | X129: 18 | Y129: 33 | Z129: 16 | AA129: 10 | AB129: 26 | AC129: 14 | AD129: 12 | AE129: 26 | AF129: ذكر | AG129: 3/2 | AH129: =الجدول5[[#This Row],[عمود6]]+الجدول5[[#This Row],[عمود9]]+الجدول5[[#This Row],[عمود12]]+الجدول5[[#This Row],[عمود15]]+الجدول5[[#This Row],[عمود18]]+الجدول5[[#This Row],[عمود21]]+الجدول5[[#This Row],[عمود24]]+الجدول5[[#This Row],[عمود27]]+الجدول5[[#This Row],[عمود30]] -> 458 | AI129: =الجدول5[[#This Row],[عمود33]]/680*100 -> 67.35294118 | AJ129: =IF(الجدول5[[#This Row],[عمود33]]="","",evaltion(الجدول5[[#This Row],[عمود34]])) -> جيد فقط | AK129: 97 | AL129: =IF(AK129>10,"",atrteb(AK129)) ->  | AM129: =IF(AK129>10,"",IF(COUNTIF(AH$10:$AH129,AH129)=1,"","مكرر")) -> 
B130: =IF(C130="","",SUBTOTAL(3,$C$10:C130)) -> 17 | C130: الطالب 121 | D130: 561 | E130: 47 | F130: 44 | G130: 91 | H130: 37 | I130: 28 | J130: 65 | K130: 37 | L130: 33 | M130: 70 | N130: 42 | O130: 32 | P130: 74 | Q130: 33 | R130: 28 | S130: 61 | T130: 36 | U130: 26 | V130: 62 | W130: 16 | X130: 20 | Y130: 36 | Z130: 16 | AA130: 6 | AB130: 22 | AC130: 14 | AD130: 12 | AE130: 26 | AF130: انثى | AG130: 1/2 | AH130: =الجدول5[[#This Row],[عمود6]]+الجدول5[[#This Row],[عمود9]]+الجدول5[[#This Row],[عمود12]]+الجدول5[[#This Row],[عمود15]]+الجدول5[[#This Row],[عمود18]]+الجدول5[[#This Row],[عمود21]]+الجدول5[[#This Row],[عمود24]]+الجدول5[[#This Row],[عمود27]]+الجدول5[[#This Row],[عمود30]] -> 507 | AI130: =الجدول5[[#This Row],[عمود33]]/680*100 -> 74.55882353 | AJ130: =IF(الجدول5[[#This Row],[عمود33]]="","",evaltion(الجدول5[[#This Row],[عمود34]])) -> جيد فقط | AK130: 81 | AL130: =IF(AK130>10,"",atrteb(AK130)) ->  | AM130: =IF(AK130>10,"",IF(COUNTIF(AH$10:$AH130,AH130)=1,"","مكرر")) -> 
B131: =IF(C131="","",SUBTOTAL(3,$C$10:C131)) -> 17 | C131: الطالب 122 | D131: 562 | E131: 43 | F131: 42 | G131: 85 | H131: 37 | I131: 31 | J131: 68 | K131: 38 | L131: 33 | M131: 71 | N131: 41 | O131: 41 | P131: 82 | Q131: 29 | R131: 34 | S131: 63 | T131: 37 | U131: 36 | V131: 73 | W131: 17 | X131: 19 | Y131: 36 | Z131: 12 | AA131: 12 | AB131: 24 | AC131: 14 | AD131: 7 | AE131: 21 | AF131: انثى | AG131: 3/2 | AH131: =الجدول5[[#This Row],[عمود6]]+الجدول5[[#This Row],[عمود9]]+الجدول5[[#This Row],[عمود12]]+الجدول5[[#This Row],[عمود15]]+الجدول5[[#This Row],[عمود18]]+الجدول5[[#This Row],[عمود21]]+الجدول5[[#This Row],[عمود24]]+الجدول5[[#This Row],[عمود27]]+الجدول5[[#This Row],[عمود30]] -> 523 | AI131: =الجدول5[[#This Row],[عمود33]]/680*100 -> 76.91176471 | AJ131: =IF(الجدول5[[#This Row],[عمود33]]="","",evaltion(الجدول5[[#This Row],[عمود34]])) -> جيد جدا | AK131: 75 | AL131: =IF(AK131>10,"",atrteb(AK131)) ->  | AM131: =IF(AK131>10,"",IF(COUNTIF(AH$10:$AH131,AH131)=1,"","مكرر")) -> 
B132: =IF(C132="","",SUBTOTAL(3,$C$10:C132)) -> 17 | C132: الطالب 123 | D132: 562 | E132: 37 | F132: 38 | G132: 75 | H132: 27 | I132: 24 | J132: 51 | K132: 40 | L132: 36 | M132: 76 | O132: 35 | P132: 35 | Q132: 29 | R132: 24 | S132: 53 | T132: 36 | U132: 24 | V132: 60 | W132: 17 | X132: 16 | Y132: 33 | Z132: 14 | AA132: 11 | AB132: 25 | AC132: 13 | AD132: 11 | AE132: 24 | AF132: انثى | AG132: 3/2 | AH132: =الجدول5[[#This Row],[عمود6]]+الجدول5[[#This Row],[عمود9]]+الجدول5[[#This Row],[عمود12]]+الجدول5[[#This Row],[عمود15]]+الجدول5[[#This Row],[عمود18]]+الجدول5[[#This Row],[عمود21]]+الجدول5[[#This Row],[عمود24]]+الجدول5[[#This Row],[عمود27]]+الجدول5[[#This Row],[عمود30]] -> 432 | AI132: =الجدول5[[#This Row],[عمود33]]/680*100 -> 63.52941176 | AJ132: =IF(الجدول5[[#This Row],[عمود33]]="","",evaltion(الجدول5[[#This Row],[عمود34]])) -> مقبول | AK132: 104 | AL132: =IF(AK132>10,"",atrteb(AK132)) ->  | AM132: =IF(AK132>10,"",IF(COUNTIF(AH$10:$AH132,AH132)=1,"","مكرر")) -> 
B133: =IF(C133="","",SUBTOTAL(3,$C$10:C133)) -> 17 | C133: الطالب 124 | D133: 563 | E133: 49 | F133: 49 | G133: 98 | H133: 47 | I133: 48 | J133: 95 | K133: 47 | L133: 50 | M133: 97 | N133: 50 | O133: 50 | P133: 100 | Q133: 39 | R133: 40 | S133: 79 | T133: 39 | U133: 37 | V133: 76 | W133: 20 | X133: 20 | Y133: 40 | Z133: 20 | AA133: 20 | AB133: 40 | AC133: 17 | AD133: 17 | AE133: 34 | AF133: ذكر | AG133: 2/2 | AH133: =الجدول5[[#This Row],[عمود6]]+الجدول5[[#This Row],[عمود9]]+الجدول5[[#This Row],[عمود12]]+الجدول5[[#This Row],[عمود15]]+الجدول5[[#This Row],[عمود18]]+الجدول5[[#This Row],[عمود21]]+الجدول5[[#This Row],[عمود24]]+الجدول5[[#This Row],[عمود27]]+الجدول5[[#This Row],[عمود30]] -> 659 | AI133: =الجدول5[[#This Row],[عمود33]]/680*100 -> 96.91176471 | AJ133: =IF(الجدول5[[#This Row],[عمود33]]="","",evaltion(الجدول5[[#This Row],[عمود34]])) -> ممتاز | AK133: 9 | AL133: =IF(AK133>10,"",atrteb(AK133)) -> الترتيب التاسع | AM133: =IF(AK133>10,"",IF(COUNTIF(AH$10:$AH133,AH133)=1,"","مكرر")) -> مكرر
B134: =IF(C134="","",SUBTOTAL(3,$C$10:C134)) -> 18 | C134: الطالب 125 | D134: 563 | E134: 46 | F134: 47 | G134: 93 | H134: 39 | I134: 27 | J134: 66 | K134: 30 | L134: 33 | M134: 63 | N134: 42 | O134: 40 | P134: 82 | Q134: 31 | R134: 32 | S134: 63 | T134: 33 | U134: 25 | V134: 58 | W134: 18 | X134: 16 | Y134: 34 | Z134: 19 | AA134: 13 | AB134: 32 | AC134: 12 | AD134: 12 | AE134: 24 | AF134: انثى | AG134: 1/2 | AH134: =الجدول5[[#This Row],[عمود6]]+الجدول5[[#This Row],[عمود9]]+الجدول5[[#This Row],[عمود12]]+الجدول5[[#This Row],[عمود15]]+الجدول5[[#This Row],[عمود18]]+الجدول5[[#This Row],[عمود21]]+الجدول5[[#This Row],[عمود24]]+الجدول5[[#This Row],[عمود27]]+الجدول5[[#This Row],[عمود30]] -> 515 | AI134: =الجدول5[[#This Row],[عمود33]]/680*100 -> 75.73529412 | AJ134: =IF(الجدول5[[#This Row],[عمود33]]="","",evaltion(الجدول5[[#This Row],[عمود34]])) -> جيد جدا | AK134: 77 | AL134: =IF(AK134>10,"",atrteb(AK134)) ->  | AM134: =IF(AK134>10,"",IF(COUNTIF(AH$10:$AH134,AH134)=1,"","مكرر")) -> 
B135: =IF(C135="","",SUBTOTAL(3,$C$10:C135)) -> 18 | C135: الطالب 126 | D135: 564 | E135: 47 | F135: 46 | G135: 93 | H135: 44 | I135: 41 | J135: 85 | K135: 41 | L135: 34 | M135: 75 | N135: 45 | O135: 41 | P135: 86 | Q135: 39 | R135: 35 | S135: 74 | T135: 36 | U135: 30 | V135: 66 | W135: 19 | X135: 19 | Y135: 38 | Z135: 18 | AA135: 15 | AB135: 33 | AC135: 14 | AD135: 12 | AE135: 26 | AF135: انثى | AG135: 2/2 | AH135: =الجدول5[[#This Row],[عمود6]]+الجدول5[[#This Row],[عمود9]]+الجدول5[[#This Row],[عمود12]]+الجدول5[[#This Row],[عمود15]]+الجدول5[[#This Row],[عمود18]]+الجدول5[[#This Row],[عمود21]]+الجدول5[[#This Row],[عمود24]]+الجدول5[[#This Row],[عمود27]]+الجدول5[[#This Row],[عمود30]] -> 576 | AI135: =الجدول5[[#This Row],[عمود33]]/680*100 -> 84.70588235 | AJ135: =IF(الجدول5[[#This Row],[عمود33]]="","",evaltion(الجدول5[[#This Row],[عمود34]])) -> جيد جدا | AK135: 46 | AL135: =IF(AK135>10,"",atrteb(AK135)) ->  | AM135: =IF(AK135>10,"",IF(COUNTIF(AH$10:$AH135,AH135)=1,"","مكرر")) -> 
B136: =IF(C136="","",SUBTOTAL(3,$C$10:C136)) -> 19 | C136: الطالب 127 | D136: 564 | E136: 38 | F136: 39 | G136: 77 | H136: 32 | I136: 18 | J136: 50 | K136: 29 | L136: 21 | M136: 50 | N136: 36 | O136: 26 | P136: 62 | Q136: 22 | R136: 26 | S136: 48 | T136: 25 | U136: 15 | V136: 40 | W136: 16 | X136: 18 | Y136: 34 | Z136: 14 | AA136: 3 | AB136: 17 | AC136: 12 | AD136: 8 | AE136: 20 | AF136: انثى | AG136: 1/2 | AH136: =الجدول5[[#This Row],[عمود6]]+الجدول5[[#This Row],[عمود9]]+الجدول5[[#This Row],[عمود12]]+الجدول5[[#This Row],[عمود15]]+الجدول5[[#This Row],[عمود18]]+الجدول5[[#This Row],[عمود21]]+الجدول5[[#This Row],[عمود24]]+الجدول5[[#This Row],[عمود27]]+الجدول5[[#This Row],[عمود30]] -> 398 | AI136: =الجدول5[[#This Row],[عمود33]]/680*100 -> 58.52941176 | AJ136: =IF(الجدول5[[#This Row],[عمود33]]="","",evaltion(الجدول5[[#This Row],[عمود34]])) -> مقبول | AK136: 118 | AL136: =IF(AK136>10,"",atrteb(AK136)) ->  | AM136: =IF(AK136>10,"",IF(COUNTIF(AH$10:$AH136,AH136)=1,"","مكرر")) -> 
B137: =IF(C137="","",SUBTOTAL(3,$C$10:C137)) -> 19 | C137: الطالب 128 | D137: 565 | E137: 45 | F137: 42 | G137: 87 | H137: 34 | I137: 29 | J137: 63 | K137: 42 | L137: 38 | M137: 80 | N137: 46 | O137: 41 | P137: 87 | Q137: 28 | R137: 32 | S137: 60 | T137: 36 | U137: 30 | V137: 66 | W137: 17 | X137: 18 | Y137: 35 | Z137: 16 | AA137: 15 | AB137: 31 | AC137: 12 | AD137: 15 | AE137: 27 | AF137: ذكر | AG137: 4/2 | AH137: =الجدول5[[#This Row],[عمود6]]+الجدول5[[#This Row],[عمود9]]+الجدول5[[#This Row],[عمود12]]+الجدول5[[#This Row],[عمود15]]+الجدول5[[#This Row],[عمود18]]+الجدول5[[#This Row],[عمود21]]+الجدول5[[#This Row],[عمود24]]+الجدول5[[#This Row],[عمود27]]+الجدول5[[#This Row],[عمود30]] -> 536 | AI137: =الجدول5[[#This Row],[عمود33]]/680*100 -> 78.82352941 | AJ137: =IF(الجدول5[[#This Row],[عمود33]]="","",evaltion(الجدول5[[#This Row],[عمود34]])) -> جيد جدا | AK137: 67 | AL137: =IF(AK137>10,"",atrteb(AK137)) ->  | AM137: =IF(AK137>10,"",IF(COUNTIF(AH$10:$AH137,AH137)=1,"","مكرر")) -> 
